Effective Date,Directorate,Service Category,Service Category URI,Supplier Name,Payment Date,Transaction Number,Net Amount,Purpose_of_the_expenditure,Merchant Category
30/07/2023,Finance,Corporate and Democratic Core,131A,NATWEST BANK,04/07/2023,WPST00111614,789.10,NatWest Bank Charges 30-06-23,Bank Charges
30/07/2023,Finance,Corporate and Democratic Core,131A,NATWEST BANK,21/07/2023,WPST00113351,1382.59,Worldpay 263053314,Bank Charges
30/07/2023,Finance,Corporate and Democratic Core,131A,NATWEST BANK,21/07/2023,WPST00113353,2156.34,Worldpay 262885635,Bank Charges
30/07/2023,Finance,Central Services to the Public,131C,SANTANDER,07/07/2023,WPST00112077,767.00,santander 5/7/23,Plastic Cards Processing Fees
30/07/2023,People and Places,Cultural and Related Services,132A,Allcool (NW) Ltd,13/07/2023,PE151010,506.00,Marine Hall: service 29/06/23: deep clean and degrease of kitchen extract ductwork system,Responsive Building Maintenance
30/07/2023,People and Places,Highways,133B,Andrew Signs LTD,05/07/2023,PE150837,195.00,various signs - june 2023,Naming of Streets
30/07/2023,People and Places,Environmental Services,132B,Andrew Signs LTD,05/07/2023,PE150837,221.80,various signs - june 2023,Materials and Consumables
30/07/2023,People and Places,Public Transport,133G,Andrew Signs LTD,26/07/2023,PE151670,890.00,polycarbonate 6mm for Mark and various street name plates for Mark,Repairs to Non-WBC Buildings
30/07/2023,People and Places,Highways,133B,Andrew Signs LTD,26/07/2023,PE151670,332.00,polycarbonate 6mm for Mark and various street name plates for Mark,Naming of Streets
30/07/2023,People and Places,Corporate and Democratic Core,131A,Andrew Signs LTD,05/07/2023,PE150837,25.00,various signs - june 2023,Annual Meeting
30/07/2023,People and Places,Support Services,135B,Andrew Signs LTD,05/07/2023,PE150837,166.50,various signs - june 2023,Materials and Consumables
30/07/2023,Resources,Corporate and Democratic Core,131A,Archway Travel LTD,11/07/2023,RS151077,300.00,"coach for new councillor tour of the borough, 19 June 2023",Training - Non HR Controlled
30/07/2023,Resources,Corporate and Democratic Core,131A,Archway Travel LTD,12/07/2023,RS151078,-300.00,Planning Committee Site Visit Wednesday 5 July 2023,Other Travelling Expenses
30/07/2023,Resources,Corporate and Democratic Core,131A,Archway Travel LTD,12/07/2023,RS151077,-300.00,"coach for new councillor tour of the borough, 19 June 2023",Training - Non HR Controlled
30/07/2023,Resources,Corporate and Democratic Core,131A,Archway Travel LTD,11/07/2023,RS151078,300.00,Planning Committee Site Visit Wednesday 5 July 2023,Other Travelling Expenses
30/07/2023,Resources,Corporate and Democratic Core,131A,Archway Travel LTD,20/07/2023,RS151123,300.00,"coach for new councillor tour of the borough, 19 June 2023",Training - Non HR Controlled
30/07/2023,Resources,Corporate and Democratic Core,131A,Archway Travel LTD,17/07/2023,PE151124,300.00,Planning Committee Site Visit Wednesday 5 July 2023,Other Travelling Expenses
30/07/2023,People and Places,Support Services,135B,Blackpool Council,24/07/2023,PE150933,3070.08,Payment of invoice 31004636,Refuse Collection
30/07/2023,People and Places,Cultural and Related Services,132A,Brighouse and Rastrick Band,11/07/2023,PE150772,3470.00,Ticket sales for Marine Hall 10/06/23,Refund of Ticket Sales to Ext Promoters
30/07/2023,People and Places,Planning and Development Servs,132C,Kings Chambers,14/07/2023,PE151199,900.00,Legal advice Helmsdeep enforcement 23/00050/COU - Phil Robson,Legal Fees
30/07/2023,Resources,Support Services,135B,Idox Software LTD,20/07/2023,RS151319,9000.00,Software: Idox On-Site Mobile Working Apps x6 App Bundle Software Term Licence subscription (3 years) 10% discount applied off the package for a PO,Software Maintenance
30/07/2023,Resources,Support Services,135B,Idox Software LTD,20/07/2023,RS151319,783.00,Software: Idox On-Site Mobile Working Apps x6 App Bundle Software Term Licence subscription (3 years) 10% discount applied off the package for a PO in July Indexation (RPI),Software Maintenance
30/07/2023,Resources,Corporate and Democratic Core,131A,PR Chauffeuring Services,17/07/2023,RS151364,891.00,Mayoral Chauffeuring Service - June 2023 - Monthly Fee,Attendant Chauffeur Service
30/07/2023,Resources,Environmental Services,132B,The Columbaria Company,19/07/2023,RS150722,471.00,REDACT,Plaque Inscriptions and Furniture
30/07/2023,People and Places,Environmental Services,132B,The Columbaria Company,18/07/2023,PE151390,107.00,REDACT,Plaque Inscriptions and Furniture
30/07/2023,Resources,Support Services,135B,Dell Corporation LTD,10/07/2023,RS150988,3911.03,"7.68TB SSD RI SAS ISE 12Gbps 512e 2.5in PM1643a Hot-Plug 1DWPD, CUS Kit [7.68TB SSD RI SAS ISE 12Gbps 512e 2.5inPM1643a Hot-Plug 1 DWPD, CUS Kit - [GMOB8J5]]",Comp Hardware Purchases
30/07/2023,People and Places,Environmental Services,132B,EAS Electrical Mechanical,17/07/2023,PE151284,1063.60,Remove and replace water heater in kitchen at Chtsworth Depot,Responsive Building Maintenance
30/07/2023,People and Places,Support Services,135B,EAS Electrical Mechanical,17/07/2023,PE151283,394.10,Remove and replace damaged heater at Civic Centre,Responsive Building Maintenance
30/07/2023,People and Places,Planning and Development Servs,132C,EAS Electrical Mechanical,11/07/2023,PE151051,822.00,Copse Rd Depot: EICR Remedials,Planned Building Maintenance
30/07/2023,People and Places,Planning and Development Servs,132C,EAS Electrical Mechanical,11/07/2023,PE151056,287.63,Copse Rd Depot: replaced faulty vapor proof light in viola garage and damaged rotary isolator in MOT garage store,Responsive Building Maintenance
30/07/2023,People and Places,Support Services,135B,EAS Electrical Mechanical,11/07/2023,PE151055,48.00,"Civic Centre: Isolate hot water, tighten loose tap and test",Responsive Building Maintenance
30/07/2023,People and Places,Support Services,135B,EAS Electrical Mechanical,11/07/2023,PE151052,96.00,"Civic Centre: refixed wall lights and shades, took light down from lift area and blanked off to replace broken one",Responsive Building Maintenance
30/07/2023,People and Places,Support Services,135B,EAS Electrical Mechanical,11/07/2023,PE151054,72.00,Civic Centre: removed 7 x wall lights and made safe,Responsive Building Maintenance
30/07/2023,People and Places,Support Services,135B,EAS Electrical Mechanical,11/07/2023,PE151053,48.00,Civic Centre: removed 6 x wall lights and stored safe as requested,Responsive Building Maintenance
30/07/2023,People and Places,Planning and Development Servs,132C,EAS Electrical Mechanical,27/07/2023,PE151680,87.21,"Fleetwood Market: Investigate leak on toilet, isolate toilet and cut away rusty bolts, disconnect cistern, remove and replace faulty close couple kit and reinstall cistern and test",Responsive Building Maintenance
30/07/2023,People and Places,Planning and Development Servs,132C,EAS Electrical Mechanical,05/07/2023,PE150846,24.00,Fault on temporary main fire alarm at Fleetwood Market,Alarm Systems and Security - Responsive
30/07/2023,People and Places,Environmental Services,132B,EAS Electrical Mechanical,28/07/2023,PE151699,95.41,"Fleetwood Cemetery: Investigate tap not turning off, remove boxing and clamp warer pipe, remove tap and reduce down to 1/2"" and install new tap.",Responsive Building Maintenance
30/07/2023,People and Places,Cultural and Related Services,132A,EAS Electrical Mechanical,07/07/2023,PE150950,276.00,Hire of x2 space heaters- HIRE COMPLETE,Responsive Building Maintenance
30/07/2023,People and Places,Cultural and Related Services,132A,EAS Electrical Mechanical,07/07/2023,PE150949,396.00,EICR Remedials,Responsive Building Maintenance
30/07/2023,People and Places,Cultural and Related Services,132A,EAS Electrical Mechanical,13/07/2023,PE151164,738.30,"Garstang TIC: EICR, replaced dbl dry lining box, relocated counter skts & x4 data points to cupboard, fit 2 blank plates and installed copex to lghtng on shop front lights for protection where cables leave metal pole from ceiling",Planned Building Maintenance
30/07/2023,People and Places,Planning and Development Servs,132C,EAS Electrical Mechanical,13/07/2023,PE151163,1939.39,Copse Rd Depot: Remedial works to replace section of pressure washer housing cabling and protection,Responsive Building Maintenance
30/07/2023,People and Places,Cultural and Related Services,132A,EAS Electrical Mechanical,10/07/2023,PE150948,62.34,"clock VR West/Nutter Road:  Replaced 16a cartridge fuse, plugged 1 thing in at a time and everything worked fine.",Clock Maintenance - Responsive
30/07/2023,People and Places,Cultural and Related Services,132A,EAS Electrical Mechanical,25/07/2023,PE151634,6360.00,Marine Hall: EICR,Planned Building Maintenance
30/07/2023,People and Places,Cultural and Related Services,132A,EAS Electrical Mechanical,12/07/2023,PE151139,116.21,"Lower Lighthouse, Fleetwood: Outside lighting had tripped tested cable fine, noticed a 30w floodlight out on top balcony so when light failed this could of tripped mcb, replaced light",Responsive Building Maintenance
30/07/2023,People and Places,Cultural and Related Services,132A,EAS Electrical Mechanical,12/07/2023,PE151134,72.00,"YMCA Fleetwood, Marine Splash: turned on valves that were closed and tighten 2 lever valves that were leaking",Responsive Building Maintenance
30/07/2023,People and Places,Support Services,135B,EAS Electrical Mechanical,12/07/2023,PE151154,24.00,Labour charges for for work at Civic,Responsive Building Maintenance
30/07/2023,People and Places,Cultural and Related Services,132A,EAS Electrical Mechanical,12/07/2023,PE151133,48.00,"public Clock lord St Rowntree, Albert Square, Fleetwood: Accessed clock and found 32A MCB had tripped, has been reset but was unsure of outcome when leaving site as clock was in reset mode",Clock Maintenance - Responsive
30/07/2023,People and Places,Cultural and Related Services,132A,EAS Electrical Mechanical,12/07/2023,PE151137,120.00,"Public Clock, VR West shelter 11: EICR",Clock Maintenance - Responsive
30/07/2023,People and Places,Cultural and Related Services,132A,EAS Electrical Mechanical,12/07/2023,PE151140,66.50,Marine Hall: changed two flexi tap connectors,Responsive Building Maintenance
30/07/2023,People and Places,Planning and Development Servs,132C,EAS Electrical Mechanical,12/07/2023,PE151138,66.90,Copse Rd Depot: found fault to be faulty led tube - removed led tube from light and fault was rectified,Responsive Building Maintenance
30/07/2023,People and Places,Planning and Development Servs,132C,EAS Electrical Mechanical,12/07/2023,PE151136,105.34,Fleetwood Market: replaced 1 x faulty 5ft fluorescent with led replacement,Responsive Building Maintenance
30/07/2023,People and Places,Planning and Development Servs,132C,EAS Electrical Mechanical,12/07/2023,PE151135,73.20,"Fleetwood Market: investigate fault on toilet - syphon has snapped, isolate water and drain, replace syphon and test on complettion",Responsive Building Maintenance
30/07/2023,People and Places,Cultural and Related Services,132A,EAS Electrical Mechanical,31/07/2023,PE151713,110.61,Marine Hall: Electric repairs following leak.  Reconcnected 2 greggs which had been pulled down and swapped faulty lamp in bar toilets. Test all cabling in area,Responsive Building Maintenance
30/07/2023,People and Places,Cultural and Related Services,132A,EAS Electrical Mechanical,31/07/2023,PE151712,24.00,"Marine Hall: Remove IPS panel, reattach toilet handle, tighten grub screw and test",Responsive Building Maintenance
30/07/2023,People and Places,Cultural and Related Services,132A,EAS Electrical Mechanical,31/07/2023,PE151709,64.99,Marine Hall: Separated boiler supply from text sign as both were supplied from 1 x 16a MCB - added additional 16a MCB,Responsive Building Maintenance
30/07/2023,People and Places,Support Services,135B,EAS Electrical Mechanical,31/07/2023,PE151710,116.45,"Civic Centre: Refit 4 wall ights and stat, 8 new installed as others were cracked",Responsive Building Maintenance
30/07/2023,People and Places,Support Services,135B,EAS Electrical Mechanical,31/07/2023,PE151711,192.00,"civic Centre: reinstall radiators after  decorating and where damp repairs have been carried out, fill and vent system",Responsive Building Maintenance
30/07/2023,People and Places,Support Services,135B,EK Motors Factors LTD,24/07/2023,PE151513,2.80,Parts,Daywork Materials (Excl.Tyres)
30/07/2023,People and Places,Support Services,135B,EK Motors Factors LTD,24/07/2023,PE151507,9.06,Parts,Daywork Materials (Excl.Tyres)
30/07/2023,People and Places,Support Services,135B,EK Motors Factors LTD,24/07/2023,PE151511,119.43,Parts,Daywork Materials (Excl.Tyres)
30/07/2023,People and Places,Support Services,135B,EK Motors Factors LTD,24/07/2023,PE151510,20.94,Parts,Daywork Materials (Excl.Tyres)
30/07/2023,People and Places,Support Services,135B,EK Motors Factors LTD,24/07/2023,PE151509,199.50,Parts,Daywork Materials (Excl.Tyres)
30/07/2023,People and Places,Support Services,135B,EK Motors Factors LTD,24/07/2023,PE151517,75.67,Parts,Materials and Consumables
30/07/2023,People and Places,Support Services,135B,EK Motors Factors LTD,24/07/2023,PE151520,133.44,Parts,Daywork Materials (Excl.Tyres)
30/07/2023,People and Places,Support Services,135B,EK Motors Factors LTD,24/07/2023,PE151519,8.12,Parts,Daywork Materials (Excl.Tyres)
30/07/2023,People and Places,Support Services,135B,EK Motors Factors LTD,24/07/2023,PE151512,22.73,Parts,Daywork Materials (Excl.Tyres)
30/07/2023,People and Places,Support Services,135B,EK Motors Factors LTD,24/07/2023,PE151518,39.20,Parts,Daywork Materials (Excl.Tyres)
30/07/2023,People and Places,Support Services,135B,EK Motors Factors LTD,24/07/2023,PE151514,2.80,Parts,Daywork Materials (Excl.Tyres)
30/07/2023,People and Places,Support Services,135B,EK Motors Factors LTD,24/07/2023,PE151516,36.50,Parts,Materials and Consumables
30/07/2023,People and Places,Support Services,135B,EK Motors Factors LTD,24/07/2023,PE151515,7.60,Parts,Materials and Consumables
30/07/2023,People and Places,Housing General Fund,134A,EK Motors Factors LTD,24/07/2023,PE151506,6.55,Parts,Daywork Materials (Excl.Tyres)
30/07/2023,People and Places,Housing General Fund,134A,EK Motors Factors LTD,24/07/2023,PE151505,17.08,Parts,Daywork Materials (Excl.Tyres)
30/07/2023,People and Places,Support Services,135B,EK Motors Factors LTD,24/07/2023,PE151508,18.73,Parts,Daywork Materials (Excl.Tyres)
30/07/2023,People and Places,Environmental Services,132B,EK Motors Factors LTD,24/07/2023,PE151523,5.74,Parts,Daywork Materials (Excl.Tyres)
30/07/2023,People and Places,Environmental Services,132B,EK Motors Factors LTD,24/07/2023,PE151522,5.74,Parts,Daywork Materials (Excl.Tyres)
30/07/2023,People and Places,Environmental Services,132B,EK Motors Factors LTD,24/07/2023,PE151524,20.15,Parts,Daywork Materials (Excl.Tyres)
30/07/2023,People and Places,Environmental Services,132B,EK Motors Factors LTD,05/07/2023,PE150895,7.10,Parts,Daywork Materials (Excl.Tyres)
30/07/2023,People and Places,Support Services,135B,EK Motors Factors LTD,24/07/2023,PE151514,-2.80,Parts,Daywork Materials (Excl.Tyres)
30/07/2023,People and Places,Support Services,135B,EK Motors Factors LTD,05/07/2023,PE150897,233.94,Parts,Daywork Materials (Excl.Tyres)
30/07/2023,People and Places,Support Services,135B,EK Motors Factors LTD,05/07/2023,PE150898,25.50,Parts,Materials and Consumables
30/07/2023,People and Places,Support Services,135B,EK Motors Factors LTD,05/07/2023,PE150902,10.91,Parts,Daywork Materials (Excl.Tyres)
30/07/2023,People and Places,Support Services,135B,EK Motors Factors LTD,05/07/2023,PE150901,77.21,Parts,Daywork Materials (Excl.Tyres)
30/07/2023,People and Places,Environmental Services,132B,EK Motors Factors LTD,05/07/2023,PE150893,37.73,Parts,Daywork Materials (Excl.Tyres)
30/07/2023,People and Places,Environmental Services,132B,EK Motors Factors LTD,24/07/2023,PE151525,51.78,Parts,Daywork Materials (Excl.Tyres)
30/07/2023,People and Places,Environmental Services,132B,EK Motors Factors LTD,24/07/2023,PE151525,51.78,Parts,Daywork Materials (Excl.Tyres)
30/07/2023,People and Places,Environmental Services,132B,EK Motors Factors LTD,24/07/2023,PE151525,51.78,Parts,Daywork Materials (Excl.Tyres)
30/07/2023,People and Places,Environmental Services,132B,EK Motors Factors LTD,24/07/2023,PE151521,44.00,Parts,Daywork Materials (Excl.Tyres)
30/07/2023,People and Places,Environmental Services,132B,EK Motors Factors LTD,05/07/2023,PE150894,18.36,Parts,Daywork Materials (Excl.Tyres)
30/07/2023,People and Places,Environmental Services,132B,EK Motors Factors LTD,05/07/2023,PE150892,2.79,Parts,Daywork Materials (Excl.Tyres)
30/07/2023,People and Places,Environmental Services,132B,EK Motors Factors LTD,05/07/2023,PE150891,232.54,Parts,Daywork Materials (Excl.Tyres)
30/07/2023,People and Places,Support Services,135B,EK Motors Factors LTD,05/07/2023,PE150900,29.23,Parts,Daywork Materials (Excl.Tyres)
30/07/2023,People and Places,Support Services,135B,EK Motors Factors LTD,05/07/2023,PE150899,69.63,Parts,Daywork Materials (Excl.Tyres)
30/07/2023,People and Places,Support Services,135B,EK Motors Factors LTD,05/07/2023,PE150896,31.60,Parts,Daywork Materials (Excl.Tyres)
30/07/2023,People and Places,Support Services,135B,FR Sharrock LTD,21/07/2023,PE151083,720.86,Parts,Daywork Materials (Excl.Tyres)
30/07/2023,People and Places,Environmental Services,132B,Glasdon UK LTD,31/07/2023,PE151011,636.14,REDACT,Plaque Inscriptions and Furniture
30/07/2023,People and Places,Support Services,135B,Gunn JCB LTD,07/07/2023,PE150824,3197.40,Service and repair 29/6/23,Daywork Materials (Excl.Tyres)
30/07/2023,People and Places,"Cultural, Environ and Planning",137B,Halcrow Group LTD,13/07/2023,PE151167,3817.23,Current approved order based on agreed additional work. Authorised by Carl Green,Consultants Fees (New CCR)
30/07/2023,People and Places,Support Services,135B,Inskip with Sowerby Parish Council,25/07/2023,PE151478,600.00,wyre  contribution to in bloom,Tourism Support
30/07/2023,People and Places,Environmental Services,132B,Bucher Municipal Limited,19/07/2023,PE151386,258.70,Chanel Brush - 0500mm Steel,Materials and Consumables
30/07/2023,People and Places,Environmental Services,132B,Bucher Municipal Limited,19/07/2023,PE151385,491.32,Various parts,Daywork Materials (Excl.Tyres)
30/07/2023,People and Places,Cultural and Related Services,132A,Key Engineering & Hygiene Supplies LTD,19/07/2023,PE151403,9.30,K403BLKL - KUS. KIT KLASSIC PIQUE POLO BLACK L,Uniforms
30/07/2023,People and Places,Cultural and Related Services,132A,Key Engineering & Hygiene Supplies LTD,19/07/2023,PE151403,8.00,LOGOEMB/WYRETHEATRES,Uniforms
30/07/2023,People and Places,Cultural and Related Services,132A,Key Engineering & Hygiene Supplies LTD,19/07/2023,PE151403,52.82,FW57BKR47 - ALL WEATHER BOOT S3 SIZE 47/12 BLACK,Uniforms
30/07/2023,People and Places,Cultural and Related Services,132A,Key Engineering & Hygiene Supplies LTD,19/07/2023,PE151403,27.90,K403BLKXL - KUS. KIT KLASSIC PIQUE POLO BLACK XL,Uniforms
30/07/2023,People and Places,Planning and Development Servs,132C,Key Engineering & Hygiene Supplies LTD,19/07/2023,PE151367,24.72,LEMON AIR FRESHENER 400ML,Cleaning Materials
30/07/2023,People and Places,Planning and Development Servs,132C,Key Engineering & Hygiene Supplies LTD,19/07/2023,PE151367,17.28,EAUFRESH NON ACIDIC APPLE TOILET CLEANER 1 LTR,Cleaning Materials
30/07/2023,People and Places,Cultural and Related Services,132A,Key Engineering & Hygiene Supplies LTD,17/07/2023,PE151289,300.35,"Gloves, PPE and cleaning products",Protective Clothing
30/07/2023,People and Places,Environmental Services,132B,Key Engineering & Hygiene Supplies LTD,17/07/2023,PE151288,883.00,"Supply and deliver 50 boxes of Blue sacks, code BL09OC1 @ 17.66 per box of 200 Delivery to Wyre Council, Copse Road Depot, Copse Road, Fleetwood, FY7 6RP","Provision of Bins, Boxes and Sacks"
30/07/2023,People and Places,Support Services,135B,Key Engineering & Hygiene Supplies LTD,04/07/2023,PE150852,95.47,Supply and deliver as per quotation 19300,Protective Clothing
30/07/2023,People and Places,Support Services,135B,Key Engineering & Hygiene Supplies LTD,04/07/2023,PE150700,159.28,Supply and deliver as per quotation 19300,Protective Clothing
30/07/2023,People and Places,Cultural and Related Services,132A,Key Engineering & Hygiene Supplies LTD,04/07/2023,PE150852,4.15,Supply and deliver as per quotation 19300,Promotions - General
30/07/2023,People and Places,Environmental Services,132B,Key Engineering & Hygiene Supplies LTD,04/07/2023,PE150700,109.32,Supply and deliver as per quotation 19300,Protective Clothing
30/07/2023,People and Places,Environmental Services,132B,Key Engineering & Hygiene Supplies LTD,04/07/2023,PE150700,49.95,Chukka Boots,Protective Clothing
30/07/2023,People and Places,Environmental Services,132B,Key Engineering & Hygiene Supplies LTD,04/07/2023,PE150852,32.09,Supply and deliver as per quotation 19300,Protective Clothing
30/07/2023,People and Places,Cultural and Related Services,132A,Key Engineering & Hygiene Supplies LTD,19/07/2023,PE151404,24.48,"Gloves, PPE and cleaning products",Protective Clothing
30/07/2023,Resources,Support Services,135B,Key Engineering & Hygiene Supplies LTD,07/07/2023,RS150951,6.81,CITRUS FOAM LEMON SOAP 5 LITRE,Cleaning Materials
30/07/2023,People and Places,Support Services,135B,Key Engineering & Hygiene Supplies LTD,26/07/2023,PE151642,872.29,Supply and deliver clothing as per quotation 19618,Protective Clothing
30/07/2023,People and Places,Support Services,135B,Key Engineering & Hygiene Supplies LTD,26/07/2023,PE151642,37.42,Supply and deliver clothing as per quotation 19618,Protective Clothing
30/07/2023,People and Places,Cultural and Related Services,132A,Key Engineering & Hygiene Supplies LTD,06/07/2023,PE150851,5.76,EAUFRESH NON ACIDIC APPLE TOILET CLEANER 1 LTR,Cleaning Materials
30/07/2023,People and Places,Cultural and Related Services,132A,Key Engineering & Hygiene Supplies LTD,06/07/2023,PE150851,8.36,Order code A 004A Evans Cyclone Spray with Bleach 750ml,Cleaning Materials
30/07/2023,People and Places,Cultural and Related Services,132A,Key Engineering & Hygiene Supplies LTD,06/07/2023,PE150851,35.50,GREEN 1 PLY INTER-FOLD HAND TOWEL 250L X 190W 3600 SHEETS,Cleaning Materials
30/07/2023,People and Places,Environmental Services,132B,Key Engineering & Hygiene Supplies LTD,17/07/2023,PE151264,47.28,Supply and deliver as per quotation 19300,Protective Clothing
30/07/2023,People and Places,Support Services,135B,Konica Minolta Business Solutions UK LTD,18/07/2023,PE150414,157.98,Toner cartridges.  Charges due to Konica sending our invoices to incorrect company since 2021,Materials and Consumables
30/07/2023,Resources,Support Services,135B,Konica Minolta Business Solutions UK LTD,31/07/2023,RS151207,408.90,offset via RS151682,Materials and Consumables
30/07/2023,Resources,Support Services,135B,Konica Minolta Business Solutions UK LTD,31/07/2023,RS150199,216.66,Toner cartridges.  Charges due to Konica sending our invoices to incorrect company since 2021,Materials and Consumables
30/07/2023,Resources,Planning and Development Servs,132C,Konica Minolta Business Solutions UK LTD,06/07/2023,RS150764,34.65,1840080773 - Fleetwood Market,Hire of Tools or Equipment
30/07/2023,Resources,Support Services,135B,Konica Minolta Business Solutions UK LTD,06/07/2023,RS150764,34.65,1840141295 - WECP,Central Printer/Copier Expenses
30/07/2023,Resources,Cultural and Related Services,132A,Konica Minolta Business Solutions UK LTD,06/07/2023,RS150764,24.09,Rental Charges - 01/04/2023-31/03/241840141270 - Visit Garstang,Hire of Tools or Equipment
30/07/2023,Resources,Support Services,135B,Konica Minolta Business Solutions UK LTD,12/07/2023,RS150623,66.35,WECP 26/03/23 to 25/06/23,Central Printer/Copier Expenses
30/07/2023,Resources,Cultural and Related Services,132A,Konica Minolta Business Solutions UK LTD,12/07/2023,RS150623,56.71,Garstang TIC Copy and print charges final 26/03/23 to 25/06/23,Hire of Tools or Equipment
30/07/2023,Resources,Support Services,135B,Konica Minolta Business Solutions UK LTD,31/07/2023,RS151683,114.32,Epson Surecolor SC-T5200 Dual Roll/Urpe000449 - Equipment number 1821320823 - 01/04/2023-31/03/2023  PLEASE ENSURE THIS ORDER NUMBER IS ENTERED ON INVOICES FOR THIS MACHINE,Hire of Tools or Equipment
30/07/2023,Resources,Planning and Development Servs,132C,Konica Minolta Business Solutions UK LTD,12/07/2023,RS150623,18.58,Copy and print charges  Fleetwood Market 26/03/23 to 25/06/23,Hire of Tools or Equipment
30/07/2023,Resources,Support Services,135B,Konica Minolta Business Solutions UK LTD,19/07/2023,RS151206,43.53,182225074853 - Bizhub C3110 - Fleetwood Market CAB,Hire of Tools or Equipment
30/07/2023,Resources,Support Services,135B,Konica Minolta Business Solutions UK LTD,18/07/2023,RS150201,216.66,Toner cartridges.  Charges due to Konica sending our invoices to incorrect company since 2021,Materials and Consumables
30/07/2023,Resources,Support Services,135B,Konica Minolta Business Solutions UK LTD,18/07/2023,RS150200,157.98,Toner cartridges.  Charges due to Konica sending our invoices to incorrect company since 2021,Materials and Consumables
30/07/2023,Resources,Support Services,135B,Konica Minolta Business Solutions UK LTD,18/07/2023,RS150198,374.64,Toner cartridges.  Charges due to Konica sending our invoices to incorrect company since 2021,Materials and Consumables
30/07/2023,Resources,Support Services,135B,Konica Minolta Business Solutions UK LTD,18/07/2023,RS150197,108.33,Toner cartridges.  Charges due to Konica sending our invoices to incorrect company since 2021,Materials and Consumables
30/07/2023,Resources,Support Services,135B,Konica Minolta Business Solutions UK LTD,18/07/2023,RS150196,541.65,Toner cartridges.  Charges due to Konica sending our invoices to incorrect company since 2021,Materials and Consumables
30/07/2023,Resources,Support Services,135B,Lancashire County Council,31/07/2023,RS151698,5926.52,Managed Internet Connection  Civic Centre (WB108)  1Gbps Fibre (100Mb Internet),Internet and Telephone Charges
30/07/2023,Resources,Support Services,135B,Lancashire County Council,31/07/2023,RS151698,1447.42,Managed WAN  Bonded SDSL Broadband WB102 Caf� Cove,Internet and Telephone Charges
30/07/2023,Resources,Support Services,135B,Lancashire County Council,31/07/2023,RS151698,344.41,Domain Name Management  www.wyre.gov.uk www.wyrebc.gov.uk,Internet and Telephone Charges
30/07/2023,People and Places,Planning and Development Servs,132C,Lancashire County Council,11/07/2023,PE151044,4923.00,Archaeological advice for the period April 2023 - End March 2024,Consultants Fees
30/07/2023,People and Places,Cultural and Related Services,132A,Lancashire County Council,18/07/2023,PE151329,192.50,Garstang Library room hire,Training - Non HR Controlled
30/07/2023,People and Places,Cultural and Related Services,132A,Lancashire County Council,13/07/2023,PE151185,403.50,"Hire of Meeting Room at Garstang Library on the following Dates: 4/4/23, 11/4/23, 15/4/23, 18/4/23, 25/4/23, 2/5/23, 5/5/23, 8/5/23, 9/5/23 & 13/6/23",External Contractor
30/07/2023,People and Places,Cultural and Related Services,132A,Lyreco UK LTD,04/07/2023,PE150827,211.04,Product Code 3349389 - Tork White Toilet Tissue,Cleaning Materials
30/07/2023,People and Places,Cultural and Related Services,132A,Lyreco UK LTD,04/07/2023,PE150827,48.60,Customer Number 60807178 Product Code - 9809881 rm500 Multicopy Zero Carbon Paper,Stationery
30/07/2023,Resources,Support Services,135B,Lyreco UK LTD,04/07/2023,RS150828,518.40,A4 Copier Paper,Stationery
30/07/2023,People and Places,Planning and Development Servs,132C,NABMA,11/07/2023,PE150684,768.00,nabma annual subscription,Purchase of Tools or Equipment
30/07/2023,People and Places,Support Services,135B,North West In Bloom,31/07/2023,PE151732,1800.00,In Bloom entries and associated costs North West in Bloom,Tourism Support
30/07/2023,People and Places,Environmental Services,132B,NWIFCA      N W Inshore Fisheries and Conservation,31/07/2023,PE151719,623.00,Shellfish Collection  23/24,Food and Drug Etc Samples
30/07/2023,People and Places,Environmental Services,132B,NWIFCA      N W Inshore Fisheries and Conservation,19/07/2023,PE151318,406.00,Shellfish Collection  23/24,Food and Drug Etc Samples
30/07/2023,Resources,Support Services,135B,Phoenix Software LTD,11/07/2023,RS150501,1686.34,Azure overage for period ending May 2023,Software Maintenance
30/07/2023,Resources,Support Services,135B,Phoenix Software LTD,21/07/2023,RS151442,104000.00,M365 E5 Unified Sub Per User,Software Maintenance
30/07/2023,Resources,Support Services,135B,Phoenix Software LTD,21/07/2023,RS151442,894.36,Azure prepayment,Software Maintenance
30/07/2023,Resources,Support Services,135B,Phoenix Software LTD,21/07/2023,RS151442,10764.00,M365 E3 Unified Sub Per User,Software Maintenance
30/07/2023,Resources,Support Services,135B,Phoenix Software LTD,21/07/2023,RS151442,2050.50,Power Automate Flow Sub Min 5 Licenses,Software Maintenance
30/07/2023,Resources,Support Services,135B,Phoenix Software LTD,21/07/2023,RS151442,62.91,Power Automate Sub Per User,Software Maintenance
30/07/2023,Resources,Support Services,135B,Phoenix Software LTD,21/07/2023,RS151442,248.40,Power BI Premium USL AO Sub Add-on,Software Maintenance
30/07/2023,Resources,Support Services,135B,Phoenix Software LTD,21/07/2023,RS151442,398.10,PowerApps Plan Shared All Lng Subs VL MVL Per User,Software Maintenance
30/07/2023,Resources,Support Services,135B,Phoenix Software LTD,21/07/2023,RS151442,83.87,PowerAppsperAppPlan ShrdSvr ALNG SubsVL MVL,Software Maintenance
30/07/2023,Resources,Support Services,135B,Phoenix Software LTD,21/07/2023,RS151442,1404.00,Teams Rooms Premium Sub Per Device,Software Maintenance
30/07/2023,Resources,Support Services,135B,Phoenix Software LTD,21/07/2023,RS151442,14678.46,VDA AO M365 E3/E5 Sub Per User,Software Maintenance
30/07/2023,Resources,Support Services,135B,Phoenix Software LTD,21/07/2023,RS151442,37.60,Visio P1 Sub Per User,Software Maintenance
30/07/2023,Resources,Support Services,135B,Phoenix Software LTD,21/07/2023,RS151442,6.24,System Center Operations Manager ALng LSA Per User,Software Maintenance
30/07/2023,Resources,Support Services,135B,Phoenix Software LTD,21/07/2023,RS151442,46.14,System Center Standard Core ALng LSA 2L,Software Maintenance
30/07/2023,Resources,Support Services,135B,Phoenix Software LTD,21/07/2023,RS151442,4391.70,Win Server DC Core ALng LSA 16L,Software Maintenance
30/07/2023,Resources,Support Services,135B,Phoenix Software LTD,21/07/2023,RS151442,5572.80,Win Server DC Core ALng LSA 2L,Software Maintenance
30/07/2023,Resources,Support Services,135B,Phoenix Software LTD,24/07/2023,RS151497,5808.60,Win Server Standard Core ALng LSA Cores (40 core total),Software Maintenance
30/07/2023,People and Places,Support Services,135B,Reed Business Information,31/07/2023,PE150981,2999.00,EG Radius subscription,Purchase of Publications
30/07/2023,People and Places,Planning and Development Servs,132C,Suez Recycling And Recovery UK LTD,24/07/2023,PE149981,1024.95,waste removal market suez,Refuse Collection
30/07/2023,People and Places,Planning and Development Servs,132C,Suez Recycling And Recovery UK LTD,11/07/2023,PE150869,1045.65,waste removal market suez,Refuse Collection
30/07/2023,Resources,Support Services,135B,NEC Software Solutions UK Limited,17/07/2023,RS151334,14364.00,Citizen Access � Benefits (CA-B) 01.08.23  31.07.24,Software Maintenance
30/07/2023,Resources,Support Services,135B,NEC Software Solutions UK Limited,17/07/2023,RS151333,4788.00,Citizen Access � Benefits Notifications (CA-BN)01.08.23  31.07.24,Software Maintenance
30/07/2023,Resources,Support Services,135B,NEC Software Solutions UK Limited,25/07/2023,RS151633,70620.00,NPS Onboarding and Managed Service Revenues & Benefits Business Objects - 01/09/2023 to 31/08/2024.,Software Maintenance
30/07/2023,Resources,Current Assets,130B,Whistl Uk Limited,05/07/2023,RS150839,427.57,Postal charges 01/04/2023-31/03/2024,Stores Purchases
30/07/2023,Resources,Current Assets,130B,Whistl Uk Limited,05/07/2023,RS150839,2.30,Postal charges 01/04/2023-31/03/2024,Stores Purchases
30/07/2023,Resources,Current Assets,130B,Whistl Uk Limited,12/07/2023,RS151132,279.96,Postal charges 01/04/2023-31/03/2024,Stores Purchases
30/07/2023,Resources,Current Assets,130B,Whistl Uk Limited,25/07/2023,RS151618,105.01,Postal charges 17/04/23 to 20/07/23,Stores Purchases
30/07/2023,Resources,Current Assets,130B,Whistl Uk Limited,25/07/2023,RS151618,4.30,Postal charges 17/07/23 to 20/07/23,Stores Purchases
30/07/2023,Resources,Current Assets,130B,Whistl Uk Limited,18/07/2023,RS151370,266.24,Postal charges 01/04/2023-31/03/2024,Stores Purchases
30/07/2023,Resources,Current Assets,130B,Whistl Uk Limited,18/07/2023,RS151370,11.20,Postal charges 01/04/2023-31/03/2024,Stores Purchases
30/07/2023,People and Places,Public Transport,133G,Wyre Marine Services,17/07/2023,PE151287,19036.66,Fleetwood - Knott End Ferry Service Schedule of payments 12 Jun 2023 - 11 Jul 2023 = 9518.33 12 Jul 2023 - 11 Aug  2023 = 9518.33,Private Contractors
30/07/2023,People and Places,Cultural and Related Services,132A,Food For Thought,04/07/2023,PE150880,1000.00,Wedding catering - Marine Hall 14/7/23,Private Contractors
30/07/2023,People and Places,Cultural and Related Services,132A,Sunshine Events UK LTD T/A the fun experts,17/07/2023,PE151337,8360.00,"Event Details: Ref 134018 - as per quote to Michelle Beavers, LCCEvent Date: Various datesEvent Time: 13:00 - 16:00 for all events apart from 22nd & 24th Aug, which will be 13:00 - 17:00Event Venue / Location: LancashireDates as follows: 1/3/8",Special Events
30/07/2023,People and Places,Environmental Services,132B,DANFO (UK) LTD,14/07/2023,PE151198,23387.86,Public Conveniences - Maintenance and Cleaning 2023/24,Other Establishments
30/07/2023,Resources,"Cultural, Environ and Planning",137B,DANFO (UK) LTD,12/07/2023,RS150192,430.00,"To replace radar access to keypad access at Changing Places facility at the Kite Club, Fleetwood",Contract (New CCR)
30/07/2023,People and Places,Planning and Development Servs,132C,Siemens Financial Services,12/07/2023,PE150410,200.00,Fleetwood Market - Data Collection and Energy Management (01.03.2023 - 29.02.2024),Planned Building Maintenance
30/07/2023,People and Places,Support Services,135B,Siemens Financial Services,12/07/2023,PE150410,399.00,Civic Centre - Meter Operation and Comms Link Charges (01.03.2023 - 29.02.2024),Planned Building Maintenance
30/07/2023,People and Places,Support Services,135B,Siemens Financial Services,12/07/2023,PE150410,200.00,Civic Centre - Data Collection and Energy Management (01.03.2023 - 29.02.2024),Planned Building Maintenance
30/07/2023,People and Places,Cultural and Related Services,132A,Siemens Financial Services,12/07/2023,PE150410,399.00,Rossall Point Observatory - Meter Operation and Comms Link Charges (01.03.2023 - 29.02.2024),Planned Building Maintenance
30/07/2023,People and Places,Cultural and Related Services,132A,Siemens Financial Services,12/07/2023,PE150410,399.00,Cafe North Promenade - Meter Operation and Comms Link Charges (01.03.2023 - 29.02.2024),Planned Building Maintenance
30/07/2023,People and Places,Cultural and Related Services,132A,Siemens Financial Services,12/07/2023,PE150410,200.00,Cafe North Promenade - Data Collection and Energy Management (01.03.2023 - 29.02.2024),Planned Building Maintenance
30/07/2023,People and Places,Cultural and Related Services,132A,Siemens Financial Services,12/07/2023,PE150410,200.00,Rossall Point Observatory - Data Collection and Energy Management (01.03.2023 - 29.02.2024),Planned Building Maintenance
30/07/2023,People and Places,Environmental Services,132B,Siemens Financial Services,12/07/2023,PE150410,399.00,Royles Brook Pumping Station - Meter Operation and Comms Link Charges (01.03.2023 - 29.02.2024),Planned Building Maintenance
30/07/2023,People and Places,Environmental Services,132B,Siemens Financial Services,12/07/2023,PE150410,200.00,Royles Brook Pumping Station - Data Collection and Energy Management (01.03.2023 - 29.02.2024),Planned Building Maintenance
30/07/2023,People and Places,Planning and Development Servs,132C,Siemens Financial Services,12/07/2023,PE150410,399.00,Copse Road Depot - Meter Operation and Comms Link Charges (01.03.2023 - 29.02.2024),Planned Building Maintenance
30/07/2023,People and Places,Planning and Development Servs,132C,Siemens Financial Services,12/07/2023,PE150410,200.00,Copse Road Depot - Data Collection and Energy Management (01.03.2023 - 29.02.2024),Planned Building Maintenance
30/07/2023,People and Places,Planning and Development Servs,132C,Siemens Financial Services,12/07/2023,PE150410,399.00,Fleetwood Market - Meter Operation and Comms Link Charges (01.03.2023 - 29.02.2024),Planned Building Maintenance
30/07/2023,People and Places,Environmental Services,132B,Balmers GM LTD,17/07/2023,PE151183,876.00,Trimmer/Batt,Street Cleansing Projects
30/07/2023,People and Places,Environmental Services,132B,Balmers GM LTD,17/07/2023,PE151183,1596.00,Battery,Street Cleansing Projects
30/07/2023,People and Places,Environmental Services,132B,Balmers GM LTD,17/07/2023,PE151183,351.00,"Charger   Delivery to Wyre Council, Copse Road Depot, Copse Road, Fleetwood, FY7 6RP",Street Cleansing Projects
30/07/2023,People and Places,Support Services,135B,Balmers GM LTD,04/07/2023,PE150683,1828.00, payment of  127475,Purchase of Tools or Equipment
30/07/2023,People and Places,Cultural and Related Services,132A,EDF Energy,11/07/2023,PE151016,574.82,Electricity charges for Garstang 01-06-23 to 06-06-23swimming pool for the period,Electricity
30/07/2023,People and Places,Cultural and Related Services,132A,EDF Energy,11/07/2023,PE151014,2382.79,Electricity charges for Fleetwood YMCA for the period 01/06/23-06/06/23,Electricity
30/07/2023,People and Places,Cultural and Related Services,132A,EDF Energy,11/07/2023,PE151014,74.49,Electricity charges for Fleetwood YMCA for the period 01/06/23-06/06/23,Electricity
30/07/2023,People and Places,Cultural and Related Services,132A,EDF Energy,11/07/2023,PE151015,2485.60,Electricity chaarges for Thornton YMCA for the period 01/06/23-06/06/23,Electricity
30/07/2023,Resources,Central Services to the Public,131C,Print Image Network LTD,20/07/2023,RS151436,1586.00,Warren By-Election 22 June 2023 - 733 Postal Votes Printing,Printing
30/07/2023,Resources,Central Services to the Public,131C,Print Image Network LTD,20/07/2023,RS151435,1067.00,Warren Ward By-Election 22 June 2023 - 33 Sets of Ballot Books,Printing
30/07/2023,Resources,Central Services to the Public,131C,Print Image Network LTD,20/07/2023,RS151434,1391.00,Warren Ward By-Election - 22 June 2023 - Printing 3285 Poll Cards,Printing
30/07/2023,People and Places,Cultural and Related Services,132A,Pipescan LTD,24/07/2023,PE150697,2400.00,"Kiosk 6 Fleetwood: Investigation excavation at kiosk on 22/06/23 as quoted. Cost includes plant hire, HPWJ unit and tanker services",Responsive Building Maintenance
30/07/2023,People and Places,Support Services,135B,Blackpool Skip Hire LTD,07/07/2023,PE150958,120.00,Empty of skips for Cemetries in Wyre,Containers Skips and Hire
30/07/2023,People and Places,Support Services,135B,Blackpool Skip Hire LTD,27/07/2023,PE151677,300.00,Empty of skips for Cemetries in Wyre,Containers Skips and Hire
30/07/2023,People and Places,Support Services,135B,Blackpool Skip Hire LTD,17/07/2023,PE151328,225.00,Empty of skips for Cemetries in Wyre,Containers Skips and Hire
30/07/2023,Resources,Central Services to the Public,131C,The Association Of Electoral Administrators,25/07/2023,RS151533,7590.40,AEA Consultancy Services (Amerjit Kang) for May 2023. 8.41 days @ 860.06 per day. Mileage - 794 miles @ 45p per mile,Agency Staff
30/07/2023,Resources,Central Services to the Public,131C,The Association Of Electoral Administrators,25/07/2023,RS151532,18918.07,AEA Consultancy Services (Amerjit Kang) for April 2023. 21.18 days @ 860.06 per day Mileage - 1560 @ 45p per mile,Agency Staff
30/07/2023,People and Places,Support Services,135B,People Asset Management LTD,12/07/2023,PE150942,714.00,June 23 PAYG charges,Occupational Health Fees
30/07/2023,Resources,Current Assets,130B,Pitney Bowes LTD  Postage By Phone,05/07/2023,RS150857,1001.24,Franking Machine Top Up,Stores Purchases
30/07/2023,Resources,Support Services,135B,Forbes Solicitors,13/07/2023,RS151162,1334.00,Legal fees - 01/04/23 - 29/06/23 - CL,Legal Fees
30/07/2023,People and Places,Support Services,135B,Groundsman Tools Ltd,21/07/2023,PE151464,515.82,Tools and equipment / safety glasses,Materials and Consumables
30/07/2023,People and Places,Environmental Services,132B,Ashdown Supplies,19/07/2023,PE151320,589.50,REDACT,Plaque Inscriptions and Furniture
30/07/2023,Resources,Support Services,135B,QA Limited,17/07/2023,RS151280,544.00,4 x ITIL Foundation Certificate in IT Service Management Online Learning with manual & online exam. 500 S/L Balance. Free of Charge Pass,Training - Non HR Controlled
30/07/2023,Resources,Support Services,135B,QA Limited,17/07/2023,RS151279,544.00,4 x ITIL Foundation Certificate in IT Service Management Online Learning with manual & online exam. 500 S/L Balance. Free of Charge Pass,Training - Non HR Controlled
30/07/2023,Resources,Support Services,135B,QA Limited,17/07/2023,RS151278,544.00,4 x ITIL Foundation Certificate in IT Service Management Online Learning with manual & online exam. 500 S/L Balance. Free of Charge Pass,Training - Non HR Controlled
30/07/2023,Resources,Support Services,135B,QA Limited,17/07/2023,RS151281,44.00,4 x ITIL Foundation Certificate in IT Service Management Online Learning with manual & online exam. 500 S/L Balance. Free of Charge Pass,Training - Non HR Controlled
30/07/2023,People and Places,Environmental Services,132B,UK Container Maintenance LTD,27/07/2023,PE151687,3520.00,Undertake refurbishment of 1100ltr & 920ltr Bulk Containers (Silver Sheen) @ 176 per containere-mail address - www.ukcontainers.co.ukTelephone Number: 01606 723020Please send a copy of the order to: Victoria Whitaker victoria@ukcontainers.co.,"Provision of Bins, Boxes and Sacks"
30/07/2023,People and Places,Cultural and Related Services,132A,POULTON DRAMA,25/07/2023,PE151396,3408.00,Ticket sales for Hoovering on the edge,Refund of Ticket Sales to Ext Promoters
30/07/2023,People and Places,Parking Services,133F,NSL Services Group,07/07/2023,PE150952,4618.40,Provide enforcement officer for Wyre Council car parks - 1 April 2023 - 31 March 2024,Private Contractors
30/07/2023,People and Places,Support Services,135B,Sefton Council,13/07/2023,PE151072,500.00,North West Legal Consortium Annual Subscription for 2023/2024,Corporate and Professional Subscriptions
30/07/2023,People and Places,Cultural and Related Services,132A,Play Inclusion Project,31/07/2023,PE151730,816.81,Saturday SEND club delivery at YMCA Fleetwood (twice monthly).,External Coaching
30/07/2023,Resources,Support Services,135B,Bartec Municipal Technologies LTD,05/07/2023,RS150874,14100.00,Annual renewal 1st July 2023 to 30th June 2024 Collective Hosting (Legacy) Collective IC150 Subscription Collective Data Plan,Software Maintenance
30/07/2023,People and Places,Planning and Development Servs,132C,Northern Print Distribution,26/07/2023,PE151673,1250.00,50k distribution of Fleetwood Market leaflet,Promotions - General
30/07/2023,People and Places,Environmental Services,132B,D Hollowell & Sons LTD,06/07/2023,PE150714,80.00,REDACT,Other Rechargeable Services
30/07/2023,People and Places,Environmental Services,132B,D Hollowell & Sons LTD,06/07/2023,PE150714,1014.00,REDACT,Other Rechargeable Services
30/07/2023,People and Places,"Cultural, Environ and Planning",137B,Marine Management Organisation,26/07/2023,PE151641,2958.50,Wyre Beach and Dune Management Scheme Phases 1 and 2,Contract (New CCR)
30/07/2023,People and Places,Support Services,135B,Dr Tree Surgeons,18/07/2023,PE151384,295.00,"Quote Number: 795Quote Date: 9th Jul `23Add on tree works&#8208; (rear of property 73 Sta on Road)Vicarage Parkcoppice line of Spindly young Cherry & Ash tree rear of gardenboundary .Reduce mature Sycamore tree in corner , reduce crown profile",Special Maintenance - Trees
30/07/2023,People and Places,Support Services,135B,Dr Tree Surgeons,18/07/2023,PE151416,220.00,"Quote Number: 794Quote Date: 9th Jul `231 Emergency works:Behind 98 West Drive, Cleveleys in Towers Wood �An early mature Elm tree � Please could you remove a hung up (overBT wire) large dead branch and also reduce back the encroachingcrown pr",Special Maintenance - Trees
30/07/2023,People and Places,Support Services,135B,Dr Tree Surgeons,17/07/2023,PE151313,2080.00,"Quote Number: 751 Vicarage Park1   G1 1 Japanese Flowering Cherry, 1 mapleMature, Semi&#8208; mature Low crowns over path. Crown raise to achieve 2.5m clearance over paths and  prune back branches from road as 200.001 2 Sycamore Semi&#8208",Special Maintenance - Trees
30/07/2023,People and Places,Highways,133B,Dr Tree Surgeons,17/07/2023,PE151315,420.00,Quote Number: 7551 Tree work at the Playing field &#8208;The side of 18 Pennine Way GreatEcclestonTotal Net Amount: 50.00VAT @ 20%: 10.00Quote Total: 60.00Quote Number: 75624 Mill Hey Ave1 To Fell one dead tree at 24 Mill Hey Vi,Maintenance of Trees and Shrubs
30/07/2023,People and Places,Highways,133B,Dr Tree Surgeons,17/07/2023,PE151314,450.00,"Quote Number: 644 Quote Date: 14th Oct `22Quote Ref: Thornton JobsFairhaven Close &#8208; On round verge x6 trees, cherry and whitebeamrequiring crown raising and deadwood removal and crown cleans andreduced back from roadside as necessary.450",Maintenance of Trees and Shrubs
30/07/2023,Resources,Support Services,135B,Vodafone LTD,21/07/2023,RS150865,404.49,MSP Dedicated Access Bearer 01/04/20203-30/06/2023,Internet and Telephone Charges
30/07/2023,Resources,Support Services,135B,Vodafone LTD,21/07/2023,RS150865,199.98,PSN - Direct Network Service Provider,Internet and Telephone Charges
30/07/2023,People and Places,"Cultural, Environ and Planning",137B,Landscape Engineering LTD,21/07/2023,PE151472,4850.00,"Work to Cottam Hall Growing area    Strim and clear vegetation from site. 450.00 Clear site of unnecessary items and all growing paraphernalia and metal store Spread remains of previous raised beds across site, remove any items such as plastic pots,",Contract (New CCR)
30/07/2023,People and Places,Support Services,135B,Amenity Horticultural Services LTD,20/07/2023,PE151433,1530.00,Play Area Wood Fibre 30 m3 delivered to Stalmine Playing Field Hall Gate Lane Stalmine FY6 0PJ,Materials and Consumables
30/07/2023,People and Places,Environmental Services,132B,Veolia ES (UK) LTD,20/07/2023,PE151431,4977.81,Bin Provision,"Provision of Bins, Boxes and Sacks"
30/07/2023,People and Places,Environmental Services,132B,Veolia ES (UK) LTD,20/07/2023,PE151431,193845.40,Domestic Waste Management Collection Contract 2023/24,Refuse Collection Contract
30/07/2023,People and Places,Environmental Services,132B,Veolia ES (UK) LTD,20/07/2023,PE151431,2028.62,Pension Pass Through,Refuse Collection Contract
30/07/2023,People and Places,Support Services,135B,Allstar Business Solutions LTD,11/07/2023,PE150822,48.34,Fuel charges up t 30/06/25,Petrol
30/07/2023,People and Places,Support Services,135B,Allstar Business Solutions LTD,11/07/2023,PE150822,98.42,Fuel charges up t 30/06/26,Petrol
30/07/2023,People and Places,Support Services,135B,Allstar Business Solutions LTD,11/07/2023,PE150822,273.34,Fuel charges up t 30/06/24,Fuel
30/07/2023,People and Places,Support Services,135B,Allstar Business Solutions LTD,11/07/2023,PE150822,51.35,Fuel charges up t 30/06/28,Petrol
30/07/2023,People and Places,Support Services,135B,Allstar Business Solutions LTD,11/07/2023,PE150822,462.09,Fuel charges up t 30/06/23,Fuel
30/07/2023,People and Places,Support Services,135B,Allstar Business Solutions LTD,11/07/2023,PE150822,84.13,Fuel charges up t 30/06/27,Petrol
30/07/2023,People and Places,Support Services,135B,Allstar Business Solutions LTD,25/07/2023,PE151363,146.24,Fuel to 14/07/23,Fuel
30/07/2023,People and Places,Support Services,135B,Allstar Business Solutions LTD,25/07/2023,PE151363,54.54,Fuel to 14/07/23,Petrol
30/07/2023,People and Places,Support Services,135B,Allstar Business Solutions LTD,25/07/2023,PE151363,110.19,Fuel to 14/07/23,Petrol
30/07/2023,People and Places,Support Services,135B,Allstar Business Solutions LTD,25/07/2023,PE151363,44.12,Fuel to 14/07/23,Petrol
30/07/2023,People and Places,Support Services,135B,Allstar Business Solutions LTD,25/07/2023,PE151363,297.34,Fuel to 14/07/23,Fuel
30/07/2023,People and Places,Support Services,135B,Allstar Business Solutions LTD,25/07/2023,PE151363,93.76,Fuel to 14/07/23,Petrol
30/07/2023,Resources,Environmental Services,132B,Critiqom LTD,20/07/2023,RS151446,1739.12,Green Waste Reminder Letters,Promotions - General
30/07/2023,Resources,Environmental Services,132B,Critiqom LTD,20/07/2023,RS151446,40.11,Green Waste Reminder Letters - Energy Surcharge,Promotions - General
30/07/2023,Resources,Support Services,135B,Critiqom LTD,20/07/2023,RS151446,290.63,IQ post - Off Serv Admin,Postage
30/07/2023,Resources,Support Services,135B,Critiqom LTD,20/07/2023,RS151446,6.70,IQ post - Off Serv Admin - Energy Surcharge,Postage
30/07/2023,Resources,Central Services to the Public,131C,Critiqom LTD,20/07/2023,RS151446,183.65,IQ post - Electoral,Postage
30/07/2023,Resources,Central Services to the Public,131C,Critiqom LTD,20/07/2023,RS151446,4.23,IQ post - Electoral - Energy Surcharge,Postage
30/07/2023,Resources,Support Services,135B,Critiqom LTD,20/07/2023,RS151446,354.62,IQ Post - Planning,Postage
30/07/2023,Resources,Support Services,135B,Critiqom LTD,20/07/2023,RS151446,8.18,IQ Post - Planning - Energy Surcharge,Postage
30/07/2023,Resources,Support Services,135B,Critiqom LTD,20/07/2023,RS151446,602.99,Ctax Reminders,Postage
30/07/2023,Resources,Support Services,135B,Critiqom LTD,20/07/2023,RS151446,13.90,Ctax Reminders - Energy Surcharge,Postage
30/07/2023,Resources,Support Services,135B,Critiqom LTD,20/07/2023,RS151446,20.85,NNDR Reminders,Postage
30/07/2023,Resources,Support Services,135B,Critiqom LTD,20/07/2023,RS151446,0.48,NNDR Reminders - Energy Surcharge,Postage
30/07/2023,Resources,Support Services,135B,Critiqom LTD,20/07/2023,RS151446,548.87,Ctax Summons,Postage
30/07/2023,Resources,Support Services,135B,Critiqom LTD,20/07/2023,RS151446,12.65,Ctax Summons - Energy Surcharge,Postage
30/07/2023,Resources,Support Services,135B,Critiqom LTD,20/07/2023,RS151446,24.97,NNDR Summons,Postage
30/07/2023,Resources,Support Services,135B,Critiqom LTD,20/07/2023,RS151446,0.58,NNDR Summons - Energy Surcharge,Postage
30/07/2023,Resources,Support Services,135B,Critiqom LTD,20/07/2023,RS151447,1891.74,Council Tax Reminders,Postage
30/07/2023,Resources,Support Services,135B,Critiqom LTD,20/07/2023,RS151447,129.77,NNDR Reminders,Postage
30/07/2023,Resources,Support Services,135B,Critiqom LTD,20/07/2023,RS151447,1520.56,Council Tax Summons,Postage
30/07/2023,Resources,Support Services,135B,Critiqom LTD,20/07/2023,RS151447,72.83,NNDR Summons,Postage
30/07/2023,Resources,Support Services,135B,Critiqom LTD,20/07/2023,RS151446,809.02,IQ post - CC,Postage
30/07/2023,Resources,Support Services,135B,Critiqom LTD,20/07/2023,RS151446,18.65,IQ post - CC - Energy Surcharge,Postage
30/07/2023,Resources,Central Services to the Public,131C,Critiqom LTD,20/07/2023,RS151447,1709.08,Daily Bills,Postage
30/07/2023,Resources,Central Services to the Public,131C,Critiqom LTD,20/07/2023,RS151446,417.00,Daily Bills,Postage
30/07/2023,Resources,Central Services to the Public,131C,Critiqom LTD,20/07/2023,RS151446,9.61,Daily Bills - Energy Surcharge,Postage
30/07/2023,Resources,Housing General Fund,134A,Critiqom LTD,20/07/2023,RS151446,49.61,Benefit Notifications,Postage
30/07/2023,Resources,Housing General Fund,134A,Critiqom LTD,20/07/2023,RS151446,1.14,Benefit Notifications - Energy Surcharge,Postage
30/07/2023,Resources,Housing General Fund,134A,Critiqom LTD,20/07/2023,RS151447,165.70,Benefit Notifications,Postage
30/07/2023,People and Places,Support Services,135B,Critiqom LTD,07/07/2023,PE150975,925.72,June Services,Postage
30/07/2023,People and Places,Support Services,135B,Critiqom LTD,07/07/2023,PE150975,22.36,June Services,Postage
30/07/2023,People and Places,Support Services,135B,Critiqom LTD,07/07/2023,PE150975,241.97,June Services,Postage
30/07/2023,People and Places,Support Services,135B,Critiqom LTD,07/07/2023,PE150975,5.84,June Services,Postage
30/07/2023,People and Places,Support Services,135B,Critiqom LTD,07/07/2023,PE150975,316.96,June Services,Postage
30/07/2023,People and Places,Support Services,135B,Critiqom LTD,07/07/2023,PE150975,7.66,June Services,Postage
30/07/2023,People and Places,Support Services,135B,Critiqom LTD,07/07/2023,PE150975,142.56,June Services,Postage
30/07/2023,People and Places,Support Services,135B,Critiqom LTD,07/07/2023,PE150975,3.44,June Services,Postage
30/07/2023,People and Places,Support Services,135B,Critiqom LTD,07/07/2023,PE150975,6.69,June Services,Postage
30/07/2023,People and Places,Support Services,135B,Critiqom LTD,07/07/2023,PE150975,0.16,June Services,Postage
30/07/2023,People and Places,Support Services,135B,Critiqom LTD,07/07/2023,PE150975,91.48,June Services,Postage
30/07/2023,People and Places,Support Services,135B,Critiqom LTD,07/07/2023,PE150975,2.21,June Services,Postage
30/07/2023,People and Places,Support Services,135B,Critiqom LTD,07/07/2023,PE150975,8.11,June Services,Postage
30/07/2023,People and Places,Support Services,135B,Critiqom LTD,07/07/2023,PE150975,0.20,June Services,Postage
30/07/2023,People and Places,Central Services to the Public,131C,Critiqom LTD,07/07/2023,PE150975,124.44,June Services,Postage
30/07/2023,People and Places,Central Services to the Public,131C,Critiqom LTD,07/07/2023,PE150975,3.01,June Services,Postage
30/07/2023,People and Places,Housing General Fund,134A,Critiqom LTD,07/07/2023,PE150975,1.44,June Services,Postage
30/07/2023,People and Places,Central Services to the Public,131C,Critiqom LTD,07/07/2023,PE150975,423.98,June Services,Postage
30/07/2023,People and Places,Central Services to the Public,131C,Critiqom LTD,07/07/2023,PE150975,10.24,June Services,Postage
30/07/2023,People and Places,Housing General Fund,134A,Critiqom LTD,07/07/2023,PE150975,59.81,June Services,Postage
30/07/2023,People and Places,Support Services,135B,Critiqom LTD,07/07/2023,PE150975,0.57,June Services,Postage
30/07/2023,People and Places,Support Services,135B,Critiqom LTD,07/07/2023,PE150975,0.02,June Services,Postage
30/07/2023,Resources,Support Services,135B,Critiqom LTD,10/07/2023,RS151007,451.41,Council Tax Reminders,Postage
30/07/2023,Resources,Support Services,135B,Critiqom LTD,10/07/2023,RS151007,40.51,NNDR Reminders,Postage
30/07/2023,Resources,Support Services,135B,Critiqom LTD,10/07/2023,RS151007,254.87,Council Tax Summons,Postage
30/07/2023,Resources,Support Services,135B,Critiqom LTD,19/07/2023,RS151394,10.00,Data Quality Infractions June 23,Postage
30/07/2023,Resources,Support Services,135B,Critiqom LTD,10/07/2023,RS151007,22.67,NNDR Summons,Postage
30/07/2023,Resources,Housing General Fund,134A,Critiqom LTD,10/07/2023,RS151007,206.28,Benefit Notifications,Postage
30/07/2023,Resources,Central Services to the Public,131C,Critiqom LTD,10/07/2023,RS151007,1704.21,Daily Bills,Postage
30/07/2023,People and Places,Environmental Services,132B,Northern Fallen Stock LTD,20/07/2023,PE151440,117.00,Collection and removal of dead animals 2023/24,Hazardous Waste Disposal
30/07/2023,People and Places,Environmental Services,132B,Northern Fallen Stock LTD,20/07/2023,PE151439,150.00,Collection and removal of dead animals 2023/24,Hazardous Waste Disposal
30/07/2023,People and Places,Environmental Services,132B,Northern Fallen Stock LTD,20/07/2023,PE151441,187.00,Collection and removal of dead animals 2023/24,Hazardous Waste Disposal
30/07/2023,People and Places,Environmental Services,132B,Northern Fallen Stock LTD,26/07/2023,PE151672,50.00,Collection and removal of dead animals 2023/24,Hazardous Waste Disposal
30/07/2023,People and Places,Cultural and Related Services,132A,Carlsberg UK LTD,24/07/2023,PE151375,47.64,offset via credit PE151335 Invenio Pinot Grigio,Drinks
30/07/2023,People and Places,Cultural and Related Services,132A,Carlsberg UK LTD,18/07/2023,PE151406,152.95,CO2 and mixed gas,Drinks
30/07/2023,People and Places,Cultural and Related Services,132A,Carlsberg UK LTD,18/07/2023,PE151341,55.32,Bad Eye Deer Zinfandel rose x 12 bottles,Drinks
30/07/2023,People and Places,Cultural and Related Services,132A,Carlsberg UK LTD,25/07/2023,PE151503,814.77,Marine Hall Bar stock,Drinks
30/07/2023,People and Places,Cultural and Related Services,132A,Carlsberg UK LTD,11/07/2023,PE150832,560.97,Marine Hall bar,Drinks
30/07/2023,People and Places,Cultural and Related Services,132A,Carlsberg UK LTD,11/07/2023,PE150829,114.00,Co2 and mixed gas,Drinks
30/07/2023,People and Places,Cultural and Related Services,132A,Carlsberg UK LTD,19/07/2023,PE151340,1369.01,Bar order 13/7/23,Drinks
30/07/2023,People and Places,Cultural and Related Services,132A,Northern Citrus Products LTD,27/07/2023,PE151685,494.36,Marine Hall Bar stock,Drinks
30/07/2023,People and Places,Cultural and Related Services,132A,Northern Citrus Products LTD,05/07/2023,PE150858,420.11,Kiosk Stock,Kiosk stock
30/07/2023,Resources,Housing General Fund,134A,Huck Properties LTD,07/07/2023,RS150973,740.00,REDACT,Minor Adaptations
30/07/2023,Resources,Housing General Fund,134A,Huck Properties LTD,07/07/2023,RS150966,450.00,REDACT,Minor Adaptations
30/07/2023,People and Places,Environmental Services,132B,Floating Pontoon Solutions,07/07/2023,PE150972,1295.00,"Carry out urgent necessary tree removal works to the fallen trees causing blockages within Royles Brook behind Thornton Sports Centre, Thornton-Cleveleys:-  Please note: A comprehensive bird nesting survey is to be carried out prior/during the works by Ch",Private Contractors
30/07/2023,People and Places,Environmental Services,132B,John H Mayor And Sons LTD,12/07/2023,PE151122,4811.40,2 packs 9 X 3 X 5.4mtr untreated timber as per quote  ( 120 lengths ) Delivered to our Chatsworth Depot  FY7 8EJ,Materials and Consumables
30/07/2023,People and Places,Cultural and Related Services,132A,M D Security,25/07/2023,PE151057,50.00,"Marine Hall:  Investigated fire alarms, found zone 15 (porch 2) had cobwebs around.  Cleaned and set to double knock, tested all ok left working",Alarm Systems and Security - Responsive
30/07/2023,People and Places,Environmental Services,132B,M D Security,18/07/2023,PE151291,50.00,Call out to test security alarm at Chatsworth Depot,Alarm Systems and Security - Responsive
30/07/2023,People and Places,Support Services,135B,M D Security,10/07/2023,PE150625,183.00,Civic Centre: replaced 2 x emergency light bulk head fittings at top of staircase adjacent room 108 and reprographics room,Alarm Systems and Security - Responsive
30/07/2023,People and Places,Support Services,135B,M D Security,27/07/2023,PE151671,275.00,Civic Centre: replaced 3 x emergency light fittings,Alarm Systems and Security - Responsive
30/07/2023,People and Places,Cultural and Related Services,132A,M D Security,21/07/2023,PE151437,70.00,Mount Cottages: Callout to check on security alarm external sounder which kids have been standing on to get onto roof.  Repaired and put rubber spikes for preverntion,Alarm Systems and Security - Annual
30/07/2023,People and Places,Support Services,135B,M D Security,21/07/2023,PE151438,85.00,Civic Centre: Moved PIT in mayor`s parlour,Alarm Systems and Security - Responsive
30/07/2023,People and Places,Planning and Development Servs,132C,M D Security,31/07/2023,PE151058,50.00,Fleetwood Market: Investigated false alarm diagnosed zone 29 faulty PIR.  To replace when scaffolding is removed,Alarm Systems and Security - Responsive
30/07/2023,People and Places,Support Services,135B,M D Security,18/07/2023,PE151343,60.00,Carried out emergency light test for month 7/23 at Civic Centre,Alarm Systems and Security - Annual
30/07/2023,People and Places,Cultural and Related Services,132A,M D Security,19/07/2023,PE151290,315.60,Rossall pPoint Main building: Investigate fault on emergency lights.,Alarm Systems and Security - Responsive
30/07/2023,People and Places,Planning and Development Servs,132C,British Gas,24/07/2023,PE151467,38.69,"603764150 - Copse Road, Copse Road  Depot 08/06/23 to 30/06/23 gas charges",Gas
30/07/2023,People and Places,Support Services,135B,British Gas,24/07/2023,PE151467,929.77,"603764151 - Wyre Borough Council,  Wyre Civic Centre 08/06/23 to 30/06/23 gas charges",Gas
30/07/2023,People and Places,Cultural and Related Services,132A,British Gas,24/07/2023,PE151467,303.97,"603764149 - Victoria Road East, Thornton  Little Theatre 08/06/23 to 07/07/23 gas charges",Gas
30/07/2023,People and Places,Planning and Development Servs,132C,British Gas,24/07/2023,PE151467,411.29,"603764162 - Adelaide Street, Wyre  Borough Council 08/06/23 to 30/06/23 gas charges",Gas
30/07/2023,People and Places,Planning and Development Servs,132C,British Gas,13/07/2023,PE150664,58.83,"603764150 - Copse Road, Copse Road  Depot 07/05/23 to 07/06/23",Gas
30/07/2023,People and Places,Cultural and Related Services,132A,British Gas,13/07/2023,PE150664,460.91,"603764149 - Victoria Road East, Thornton  Little Theatre 07/05/23 to 07/06/23",Gas
30/07/2023,People and Places,Planning and Development Servs,132C,British Gas,13/07/2023,PE150664,785.88,"603764162 - Adelaide Street, Wyre  Borough Council 28/04/23 to 07/06/23",Gas
30/07/2023,People and Places,Support Services,135B,British Gas,13/07/2023,PE150664,2948.60,"603764151 - Wyre Borough Council,  Wyre Civic Centre 29/04/23 to 07/06/23",Gas
30/07/2023,People and Places,Cultural and Related Services,132A,N Power LTD,14/07/2023,PE151147,939.28,Garstang Swimming Pool 07/06/23 to 30/06/23,Electricity
30/07/2023,People and Places,Cultural and Related Services,132A,N Power LTD,14/07/2023,PE151148,6053.72,Fleetwood Leisure Centre 07/06/23 to 30/06/23,Electricity
30/07/2023,People and Places,Cultural and Related Services,132A,N Power LTD,14/07/2023,PE151145,6987.12,Thornton Leisure Centre 07/06/23 to 30/06/23,Electricity
30/07/2023,People and Places,Cultural and Related Services,132A,N Power LTD,14/07/2023,PE151146,3655.73,Breck Rd Swimming & Fitness Centre 07/06/23 to 30/06/23,Electricity
30/07/2023,People and Places,Parking Services,133F,N Power LTD,19/07/2023,PE151005,450.72,Unmetered supply lighting Civic Centre Breck Rd. Poulton. 010623 to 300623,Electricity
30/07/2023,People and Places,Environmental Services,132B,N Power LTD,13/07/2023,PE151002,13.41,Unmetered electricity supply for town centre cameras  1-30 June 2023,CCTV Running Costs
30/07/2023,People and Places,Environmental Services,132B,N Power LTD,13/07/2023,PE151002,4.81,Unmetered electricity supply for town centre cameras  1-30 June 2023,CCTV Running Costs
30/07/2023,People and Places,Environmental Services,132B,N Power LTD,13/07/2023,PE151002,115.91,Unmetered electricity supply for town centre cameras  1-30 June 2023,CCTV Running Costs
30/07/2023,People and Places,Environmental Services,132B,N Power LTD,13/07/2023,PE151002,80.48,Unmetered electricity supply for town centre cameras  1-30 June 2023,CCTV Running Costs
30/07/2023,People and Places,Parking Services,133F,N Power LTD,12/07/2023,PE151003,2.77,"Unmetered Supply, 01/06/23 to 30/06/23",Electricity
30/07/2023,People and Places,Parking Services,133F,N Power LTD,12/07/2023,PE151003,0.08,"Unmetered Supply, 01/06/23 to 30/06/23",Electricity
30/07/2023,People and Places,Parking Services,133F,N Power LTD,12/07/2023,PE151004,1467.55,Unmetered supply lighting 01/06/23 to 30/06/23,Electricity
30/07/2023,People and Places,Environmental Services,132B,N Power LTD,12/07/2023,PE151004,261.68,Unmetered supply lighting 01/06/23 to 30/06/23,Electricity
30/07/2023,People and Places,Environmental Services,132B,N Power LTD,12/07/2023,PE151003,0.51,"Unmetered Supply, 01/06/23 to 30/06/23",Electricity
30/07/2023,Resources,Support Services,135B,Crown Computing LTD,24/07/2023,RS150703,2925.00,Crown WFM Software G-Cloud,Software Maintenance
30/07/2023,People and Places,Current Assets,130B,Standard Fuel Oils,27/07/2023,PE151645,40281.76,"CONFIRMATION ORDER TO SUPPLY DIESEL 1.1190PPL 35,998 LTRS  DELIVERED 20/07/2023 DELIVERED TO WYRE COUNCIL, COPSE ROAD DEPOT, COPSE ROAD, FLEETWOOD, FY7 6RP",Stock - Copse Road Fuel
30/07/2023,People and Places,Cultural and Related Services,132A,COWLEY FIRE,12/07/2023,PE150711,252.69,Rossall Point Tower: service fire equipment,Planned Building Maintenance
30/07/2023,People and Places,Planning and Development Servs,132C,COWLEY FIRE,13/07/2023,PE151069,784.11,Fleetwood Market: service fire equipment,Planned Building Maintenance
30/07/2023,People and Places,Cultural and Related Services,132A,COWLEY FIRE,10/07/2023,PE150673,136.29,"Old Custom Watch House, Fleetwood: service fire equipment",Planned Building Maintenance
30/07/2023,People and Places,Environmental Services,132B,Calico Enterprise,11/07/2023,PE150826,1946.64,Bulky Matters Contract Calico 2023/24,Refuse Collection Contract
30/07/2023,People and Places,Environmental Services,132B,Poulton Pets LTD,04/07/2023,PE150850,1395.00,Provision of stray dog kennelling service 2023/24,Impounded Dogs Costs
30/07/2023,Resources,Housing General Fund,134A,Salvation Army,13/07/2023,RS151195,27015.82,"Refugee support Q1 23/24 - Casworker costs 18,750 - Resettlement costs 8,265.28",Private Contractors
30/07/2023,Resources,Support Services,135B,Coolspirit LTD,13/07/2023,RS151172,42.24,8 COMCH-HOST-STOR-F-50 COOLSPIRiT CX Fast Storage (SAS/SSD),Software Maintenance
30/07/2023,Resources,Support Services,135B,Coolspirit LTD,13/07/2023,RS151172,173.16,39 COMCH-HOST-STOR-D-1 COOLSPIRiT CX Compute Single Site Dense Storage (SATA),Software Maintenance
30/07/2023,Resources,Support Services,135B,Coolspirit LTD,21/07/2023,RS151484,3316.18,Commvault License Maintenance Subscription - Level: CASP-ESN: F549F Start Date: 01-Jun-2023 End Date: 31-May-2024,Software Maintenance
30/07/2023,Resources,Support Services,135B,Coolspirit LTD,21/07/2023,RS151484,1585.55,"GUARDiAN Support Subscription - Level: CASP-E 1,585.55 1,585.55Start Date: 01-Jun-2023 End Date: 31-May-2024",Software Maintenance
30/07/2023,People and Places,Support Services,135B,The County Tyre (Holdings) LTD,07/07/2023,PE150955,199.80,Tyres Invoices 15I0270679 199.8015I0271150 380.00,Tyres
30/07/2023,People and Places,Support Services,135B,The County Tyre (Holdings) LTD,07/07/2023,PE150954,380.00,Tyres Invoices 15I0270679 199.8015I0271150 380.00,Tyres
30/07/2023,People and Places,Support Services,135B,The County Tyre (Holdings) LTD,04/07/2023,PE150890,900.00,Tyres,Tyres
30/07/2023,People and Places,Support Services,135B,The County Tyre (Holdings) LTD,04/07/2023,PE150889,164.26,Tyres,Materials and Consumables
30/07/2023,People and Places,Support Services,135B,The County Tyre (Holdings) LTD,11/07/2023,PE151080,107.20,Tyres,Tyres
30/07/2023,People and Places,Support Services,135B,GARSTANG IN BLOOM,18/07/2023,PE151389,915.00,Wyre contribution to Garstang in Bloom,Tourism Support
30/07/2023,People and Places,Cultural and Related Services,132A,Lords Deli,18/07/2023,PE151388,587.50,Catering - Marine Hall - Wedding 19/5/23,Private Contractors
30/07/2023,People and Places,Environmental Services,132B,PermiServ Ltd,17/07/2023,PE151075,3537.49,"27,000 Production, Postage and Management of Green Waste  Subscription Stickers/Portal, as per Lancashire Agreement (Unit cost 1.02 per sticker)  Please leave PO open as it will be drawn-off each month  e-mail address: Rebecca Padgham rebecca@permiserv.c",Promotions - General
30/07/2023,People and Places,Environmental Services,132B,PermiServ Ltd,17/07/2023,PE151075,3537.49,"27,000 Production, Postage and Management of Green Waste  Subscription Stickers/Portal, as per Lancashire Agreement (Unit cost 1.02 per sticker)  Please leave PO open as it will be drawn-off each month  e-mail address: Rebecca Padgham rebecca@permiserv.c",Postage
30/07/2023,People and Places,Planning and Development Servs,132C,WATER PLUS LTD,14/07/2023,PE149529,3.43,Unit 6 Dock Ave Water/wastewater charges for the period 01/02/23-01/03/23 estimated reading,Surface Water/Highway Drainage
30/07/2023,People and Places,Planning and Development Servs,132C,WATER PLUS LTD,14/07/2023,PE151153,3.80,"Unit 8 Dock Ave, Fleetwood: Water and waste water 01/10/22 to 01/11/22",Surface Water/Highway Drainage
30/07/2023,People and Places,Planning and Development Servs,132C,WATER PLUS LTD,14/07/2023,PE151152,3.68,"Unit 8 Dock Ave, Fleetwood: Water and waste water 01/11/22 to 01/12/2",Surface Water/Highway Drainage
30/07/2023,People and Places,Planning and Development Servs,132C,WATER PLUS LTD,14/07/2023,PE151151,11.30,"Unit 6 Dock Ave, Fleetwood: Water and waste water 01/03/23 to 05/06/23",Surface Water/Highway Drainage
30/07/2023,People and Places,Planning and Development Servs,132C,WATER PLUS LTD,14/07/2023,PE151150,3.43,Unit 6 Dock Ave Fleetwood: water and waste water 01/02/23 to 01/03/23,Surface Water/Highway Drainage
30/07/2023,People and Places,Planning and Development Servs,132C,WATER PLUS LTD,14/07/2023,PE151149,3.80,Unit 8 Dock Ave Fleetwood: water and waste water 01/12/22 to 01/01/23,Surface Water/Highway Drainage
30/07/2023,People and Places,Planning and Development Servs,132C,WATER PLUS LTD,14/07/2023,PE151073,3.80,Unit 6 Dock Ave Fleetwood: water and waste water 01/12/22 to 01/01/2,Surface Water/Highway Drainage
30/07/2023,People and Places,Planning and Development Servs,132C,WATER PLUS LTD,14/07/2023,PE149532,3.46,water/wastewater charges for the period 05/04/23 to 05/05/23 estimated readings,Surface Water/Highway Drainage
30/07/2023,People and Places,Planning and Development Servs,132C,WATER PLUS LTD,14/07/2023,PE151149,4.83,Unit 8 Dock Ave Fleetwood: water and waste water 01/12/22 to 01/01/23,Water Charges-Metered
30/07/2023,People and Places,Planning and Development Servs,132C,WATER PLUS LTD,14/07/2023,PE149529,40.00,Unit 6 Dock Ave Water/wastewater charges one time chargesfor the period 01/02/23-01/03/23,Water Charges-Metered
30/07/2023,People and Places,Planning and Development Servs,132C,WATER PLUS LTD,14/07/2023,PE151073,4.83,Unit 6 Dock Ave Fleetwood: water and waste water 01/12/22 to 01/01/23,Water Charges-Metered
30/07/2023,People and Places,Planning and Development Servs,132C,WATER PLUS LTD,14/07/2023,PE149532,214.61,water/wastewater charges for the period 05/04/23 to 05/05/23 estimated readings,Water Charges-Metered
30/07/2023,People and Places,Planning and Development Servs,132C,WATER PLUS LTD,14/07/2023,PE149529,36.93,Unit 6 Dock Ave Water/wastewater charges for the period 01/02/23-01/03/23 estimated reading,Water Charges-Metered
30/07/2023,People and Places,Planning and Development Servs,132C,WATER PLUS LTD,14/07/2023,PE151153,4.83,"Unit 8 Dock Ave, Fleetwood: Water and waste water 01/10/22 to 01/11/22",Water Charges-Metered
30/07/2023,People and Places,Planning and Development Servs,132C,WATER PLUS LTD,14/07/2023,PE151152,4.67,"Unit 8 Dock Ave, Fleetwood: Water and waste water 01/11/22 to 01/12/22",Water Charges-Metered
30/07/2023,People and Places,Planning and Development Servs,132C,WATER PLUS LTD,14/07/2023,PE151151,18.81,"Unit 6 Dock Ave, Fleetwood: Water and waste water 01/03/23 to 05/06/23",Water Charges-Metered
30/07/2023,People and Places,Planning and Development Servs,132C,WATER PLUS LTD,14/07/2023,PE151150,4.37,Unit 6 Dock Ave Fleetwood: water and waste water 01/02/23 to 01/03/23,Water Charges-Metered
30/07/2023,People and Places,Planning and Development Servs,132C,WATER PLUS LTD,14/07/2023,PE151150,3.23,Unit 6 Dock Ave Fleetwood: water and waste water 01/02/23 to 01/03/23,Sewerage
30/07/2023,People and Places,Planning and Development Servs,132C,WATER PLUS LTD,14/07/2023,PE151151,12.91,"Unit 6 Dock Ave, Fleetwood: Water and waste water 01/03/23 to 05/06/23",Sewerage
30/07/2023,People and Places,Planning and Development Servs,132C,WATER PLUS LTD,14/07/2023,PE151152,3.45,"Unit 8 Dock Ave, Fleetwood: Water and waste water 01/11/22 to 01/12/2",Sewerage
30/07/2023,People and Places,Planning and Development Servs,132C,WATER PLUS LTD,14/07/2023,PE151153,3.57,"Unit 8 Dock Ave, Fleetwood: Water and waste water 01/10/22 to 01/11/22",Sewerage
30/07/2023,People and Places,Planning and Development Servs,132C,WATER PLUS LTD,14/07/2023,PE149529,25.47,Unit 6 Dock Ave Water/wastewater charges for the period 01/02/23-01/03/23 estimated reading,Sewerage
30/07/2023,People and Places,Planning and Development Servs,132C,WATER PLUS LTD,14/07/2023,PE149532,29.97,water/wastewater charges for the period 05/04/23 to 05/05/23 estimated readings,Sewerage
30/07/2023,People and Places,Planning and Development Servs,132C,WATER PLUS LTD,14/07/2023,PE151073,3.57,Unit 6 Dock Ave Fleetwood: water and waste water 01/12/22 to 01/01/2,Sewerage
30/07/2023,People and Places,Planning and Development Servs,132C,WATER PLUS LTD,14/07/2023,PE151149,3.57,Unit 8 Dock Ave Fleetwood: water and waste water 01/12/22 to 01/01/23,Sewerage
30/07/2023,People and Places,Planning and Development Servs,132C,WATER PLUS LTD,10/07/2023,PE150863,6.22,Water/Wastewater charges for the period 22/06/22 to 01/08/22,Water Charges-Metered
30/07/2023,People and Places,Planning and Development Servs,132C,WATER PLUS LTD,10/07/2023,PE150715,46.74,Water/wastewater charges for the period 05/05/23 to 05/06/23,Water Charges-Metered
30/07/2023,People and Places,Planning and Development Servs,132C,WATER PLUS LTD,10/07/2023,PE150863,4.60,Water/Wastewater charges for the period 22/06/22 to 01/08/22,Sewerage
30/07/2023,People and Places,Planning and Development Servs,132C,WATER PLUS LTD,10/07/2023,PE150715,31.39,Water/wastewater charges for the period 05/05/23 to 05/06/23,Sewerage
30/07/2023,People and Places,Planning and Development Servs,132C,WATER PLUS LTD,10/07/2023,PE150715,3.58,Water/wastewater charges for the period 05/05/23 to 05/06/23,Surface Water/Highway Drainage
30/07/2023,People and Places,Planning and Development Servs,132C,WATER PLUS LTD,10/07/2023,PE150863,4.91,Water/Wastewater charges for the period 22/06/22 to 01/08/22,Surface Water/Highway Drainage
30/07/2023,People and Places,Cultural and Related Services,132A,WATER PLUS LTD,24/07/2023,PE151470,336.13,"3002656321 Marine Hall, The Esplanade, FLEETWOOD, FY7 6HF Water Charge",Water Charges-Metered
30/07/2023,People and Places,Cultural and Related Services,132A,WATER PLUS LTD,24/07/2023,PE151470,90.95,"3003028006 Playing Fields, Cottam Hall, POULTON LE FYLDE, FY6 7RG Water  Charge",Water Charges-Metered
30/07/2023,People and Places,Environmental Services,132B,WATER PLUS LTD,24/07/2023,PE151470,14.70,"3002137634 Cemetery, Cemetery Lane, Preesall, POULTON LE FYLDE, FY6 0JA  Water Charge",Water Charges-Metered
30/07/2023,People and Places,Environmental Services,132B,WATER PLUS LTD,24/07/2023,PE151470,23.14,"3002415766 Cemetery, Garstang Road East, POULTON LE FYLDE, FY6 8JH Water  Charge",Water Charges-Metered
30/07/2023,People and Places,Planning and Development Servs,132C,WATER PLUS LTD,24/07/2023,PE151470,6.48,"3001923857 Fleetwood Traditional Market, Adelaide Street, FLEETWOOD, FY7  6AB Water Charge",Water Charges-Metered
30/07/2023,People and Places,Central Services to the Public,131C,WATER PLUS LTD,24/07/2023,PE151470,61.16,"3002564850 Day Centre, Queensway, POULTON LE FYLDE, FY6 7ST Sewerage  Charge",Sewerage
30/07/2023,People and Places,Cultural and Related Services,132A,WATER PLUS LTD,24/07/2023,PE151470,4.48,"3002110760 Changing Room King George V Pl, Fleetwood Road, FLEETWOOD, FY7  8AS Sewerage Charge",Sewerage
30/07/2023,People and Places,Cultural and Related Services,132A,WATER PLUS LTD,24/07/2023,PE151470,51.70,"3001212063 Ashdell Nursery Bowling Green &amp; Pc`S, Victoria Road East,  THORNTON CLEVELEYS, FY5 3SZ Sewerage Charge",Sewerage
30/07/2023,People and Places,Cultural and Related Services,132A,WATER PLUS LTD,24/07/2023,PE151470,349.92,"3002656321 Paddling Pool, Marine Gardens, FLEETWOOD, FY7 6HE Sewerage  Charge",Sewerage
30/07/2023,People and Places,Cultural and Related Services,132A,WATER PLUS LTD,24/07/2023,PE151470,233.60,"3002656321 Marine Gardens, The Esplanade, FLEETWOOD, FY7 6HE Sewerage  Charge",Sewerage
30/07/2023,People and Places,Cultural and Related Services,132A,WATER PLUS LTD,24/07/2023,PE151470,175.83,"3002656038 Toilets, Warrenhurst Park, FLEETWOOD, FY7 6SH Sewerage Charge",Sewerage
30/07/2023,People and Places,Environmental Services,132B,WATER PLUS LTD,24/07/2023,PE151470,16.62,"3002252263 Cemetery &amp; Offices, Beach Road, FLEETWOOD, FY7 8PN  Sewerage Charge",Sewerage
30/07/2023,People and Places,Environmental Services,132B,WATER PLUS LTD,24/07/2023,PE151470,8.53,"3002252263 Fleetwood Corporation Cemetery, Beach Road, FLEETWOOD, FY7 8PH  Sewerage Charge",Sewerage
30/07/2023,People and Places,Planning and Development Servs,132C,WATER PLUS LTD,24/07/2023,PE151470,4.48,"3001923857 Fleetwood Traditional Market, Adelaide Street, FLEETWOOD, FY7  6AB Sewerage Charge",Sewerage
30/07/2023,People and Places,Cultural and Related Services,132A,WATER PLUS LTD,24/07/2023,PE151470,973.68,"300265633X Marine Lake, Laidleys Walk, FLEETWOOD, FY7 7HS Water Charge",Water Charges-Metered
30/07/2023,People and Places,Cultural and Related Services,132A,WATER PLUS LTD,24/07/2023,PE151470,21.09,"3000427023 Park, North Drive, THORNTON CLEVELEYS, FY5 3AR Water Charge",Water Charges-Metered
30/07/2023,People and Places,Cultural and Related Services,132A,WATER PLUS LTD,24/07/2023,PE151470,12.64,"3002268488 Club House, River Road, THORNTON-CLEVELEYS, FY5 5LR Water  Charge",Water Charges-Metered
30/07/2023,People and Places,Cultural and Related Services,132A,WATER PLUS LTD,24/07/2023,PE151470,12.87,"3002268488 Wyreside Ecology Centre, River Road, THORNTON-CLEVELEYS, FY5  5LR Water Charge",Water Charges-Metered
30/07/2023,People and Places,Environmental Services,132B,WATER PLUS LTD,24/07/2023,PE151470,12.64,"3002656259 Wyre Sea Defences Depot, Chatsworth Avenue, Fleetwood, FY7 8EJ  Water Charge",Water Charges-Metered
30/07/2023,People and Places,Environmental Services,132B,WATER PLUS LTD,24/07/2023,PE151470,21.09,"3001923946 White House, The Square, Great Eccleston, Preston, PR3 0ZB  Water Charge",Water Charges-Metered
30/07/2023,People and Places,Environmental Services,132B,WATER PLUS LTD,24/07/2023,PE151470,64.22,"3001923946 Toilets, Teanlowe Centre, POULTON-LE-FYLDE, FY6 7DF Water  Charge",Water Charges-Metered
30/07/2023,People and Places,Environmental Services,132B,WATER PLUS LTD,24/07/2023,PE151470,117.66,"3001923946 Public Conveniences, Rough Lea Road, THORNTON CLEVELEYS, FY5  1DA Water Charge",Water Charges-Metered
30/07/2023,People and Places,Environmental Services,132B,WATER PLUS LTD,24/07/2023,PE151470,160.54,"3001923946 Public Toilet, Rough Lea Road, THORNTON CLEVELEYS, FY5 1BW  Water Charge",Water Charges-Metered
30/07/2023,People and Places,Environmental Services,132B,WATER PLUS LTD,24/07/2023,PE151470,35.24,"3001923946 Public Toilets, Off Quail Holme Road, Knott End-On-Sea,  POULTON-LE-FYLDE, FY6 0BT Water Charge",Water Charges-Metered
30/07/2023,People and Places,Environmental Services,132B,WATER PLUS LTD,24/07/2023,PE151470,18.80,"3001923946 Toilet Block, Lawson Road, Little Thornton, THORNTON  CLEVELEYS, FY5 5DX Water Charge",Water Charges-Metered
30/07/2023,People and Places,Environmental Services,132B,WATER PLUS LTD,24/07/2023,PE151470,19.03,"3001923946 Toilet Block, Park Hill Road, Garstang, PRESTON, PR3 1EL Water  Charge",Water Charges-Metered
30/07/2023,People and Places,Environmental Services,132B,WATER PLUS LTD,24/07/2023,PE151470,251.15,"3001923946 Toilets, Car Park, High Street, Garstang, PRESTON, PR3 1FA  Water Charge",Water Charges-Metered
30/07/2023,People and Places,Environmental Services,132B,WATER PLUS LTD,24/07/2023,PE151470,51.67,"3001923946 Toilets, Higher Lane, Scorton, PRESTON, PR3 1BE Water Charge",Water Charges-Metered
30/07/2023,People and Places,Environmental Services,132B,WATER PLUS LTD,24/07/2023,PE151470,47.56,"3001923946 Toilets, Preston Street, FLEETWOOD, FY7 6JA Water Charge",Water Charges-Metered
30/07/2023,People and Places,Environmental Services,132B,WATER PLUS LTD,24/07/2023,PE151470,12.64,"3001923946 Toilets, Smallwood Hey, Pilling, PRESTON, PR3 6HB Water Charge",Water Charges-Metered
30/07/2023,People and Places,Environmental Services,132B,WATER PLUS LTD,24/07/2023,PE151470,80.68,"3001923946 Conveniences, Bold Street, FLEETWOOD, FY7 6HL Water Charge",Water Charges-Metered
30/07/2023,People and Places,Environmental Services,132B,WATER PLUS LTD,24/07/2023,PE151470,45.51,"3001923946 Fleetwood Corporation Toilets, Beach Road, FLEETWOOD, FY7 8PH  Water Charge",Water Charges-Metered
30/07/2023,People and Places,Environmental Services,132B,WATER PLUS LTD,24/07/2023,PE151470,16.75,"3001923946 Public Convenience, View Lune, Bourne May Road, Knott  End-On-Sea, POULTON-LE-FYLDE, FY6 0AB Water Charge",Water Charges-Metered
30/07/2023,People and Places,Support Services,135B,WATER PLUS LTD,24/07/2023,PE151470,320.85,"3002029939 Wyre Civic Centre, Breck Road, POULTON-LE-FYLDE, FY6 7PU Water  Charge",Water Charges-Metered
30/07/2023,People and Places,Cultural and Related Services,132A,WATER PLUS LTD,24/07/2023,PE151470,214.98,"3002656321 Marine Hall, The Esplanade, FLEETWOOD, FY7 6HF Sewerage Charge",Sewerage
30/07/2023,People and Places,Cultural and Related Services,132A,WATER PLUS LTD,24/07/2023,PE151470,58.46,"3003028006 Playing Fields, Cottam Hall, POULTON LE FYLDE, FY6 7RG  Sewerage Charge",Sewerage
30/07/2023,People and Places,Cultural and Related Services,132A,WATER PLUS LTD,24/07/2023,PE151470,634.64,"300265633X Marine Lake, Laidleys Walk, FLEETWOOD, FY7 7HS Sewerage Charge",Sewerage
30/07/2023,People and Places,Cultural and Related Services,132A,WATER PLUS LTD,24/07/2023,PE151470,13.92,"3000427023 Park, North Drive, THORNTON CLEVELEYS, FY5 3AR Sewerage Charge",Sewerage
30/07/2023,People and Places,Cultural and Related Services,132A,WATER PLUS LTD,24/07/2023,PE151470,8.53,"3002268488 Wyreside Ecology Centre, River Road, THORNTON-CLEVELEYS, FY5  5LR Sewerage Charge",Sewerage
30/07/2023,People and Places,Cultural and Related Services,132A,WATER PLUS LTD,24/07/2023,PE151470,8.53,"3002268488 Club House, River Road, THORNTON-CLEVELEYS, FY5 5LR Sewerage  Charge",Sewerage
30/07/2023,People and Places,Environmental Services,132B,WATER PLUS LTD,24/07/2023,PE151470,15.27,"3002415766 Cemetery, Garstang Road East, POULTON LE FYLDE, FY6 8JH  Sewerage Charge",Sewerage
30/07/2023,People and Places,Environmental Services,132B,WATER PLUS LTD,24/07/2023,PE151470,11.22,"3001923946 Public Convenience, View Lune, Bourne May Road, Knott  End-On-Sea, POULTON-LE-FYLDE, FY6 0AB Sewerage Charge",Sewerage
30/07/2023,People and Places,Environmental Services,132B,WATER PLUS LTD,24/07/2023,PE151470,30.12,"3001923946 Fleetwood Corporation Toilets, Beach Road, FLEETWOOD, FY7 8PH  Sewerage Charge",Sewerage
30/07/2023,People and Places,Environmental Services,132B,WATER PLUS LTD,24/07/2023,PE151470,51.70,"3001923946 Conveniences, Bold Street, FLEETWOOD, FY7 6HL Sewerage Charge",Sewerage
30/07/2023,People and Places,Environmental Services,132B,WATER PLUS LTD,24/07/2023,PE151470,8.53,"3001923946 Toilets, Smallwood Hey, Pilling, PRESTON, PR3 6HB Sewerage  Charge",Sewerage
30/07/2023,People and Places,Environmental Services,132B,WATER PLUS LTD,24/07/2023,PE151470,31.47,"3001923946 Toilets, Preston Street, FLEETWOOD, FY7 6JA Sewerage Charge",Sewerage
30/07/2023,People and Places,Environmental Services,132B,WATER PLUS LTD,24/07/2023,PE151470,13.92,"3001923946 Toilets Rear, White Bull Hotel, The Square, High Street, Great  Eccleston, PRESTON, PR3 0ZB Sewerage Charge",Sewerage
30/07/2023,People and Places,Environmental Services,132B,WATER PLUS LTD,24/07/2023,PE151470,12.57,"3001923946 Toilet Block, Lawson Road, Little Thornton, THORNTON  CLEVELEYS, FY5 5DX Sewerage Charge",Sewerage
30/07/2023,People and Places,Environmental Services,132B,WATER PLUS LTD,24/07/2023,PE151470,165.05,"3001923946 Toilets, Car Park, High Street, Garstang, PRESTON, PR3 1FA  Sewerage Charge",Sewerage
30/07/2023,People and Places,Environmental Services,132B,WATER PLUS LTD,24/07/2023,PE151470,12.57,"3001923946 Toilet Block, Park Hill Road, Garstang, PRESTON, PR3 1EL  Sewerage Charge",Sewerage
30/07/2023,People and Places,Planning and Development Servs,132C,WATER PLUS LTD,24/07/2023,PE151470,143.25,"3002656569 Highway Dept, Copse Road, FLEETWOOD, FY7 7HB Water Charge",Water Charges-Metered
30/07/2023,People and Places,Planning and Development Servs,132C,WATER PLUS LTD,24/07/2023,PE151470,12.98,"3002656569 Highway Dept, Copse Road, FLEETWOOD, FY7 7HB Water Standing  Charge",Water Charges-Metered
30/07/2023,People and Places,Planning and Development Servs,132C,WATER PLUS LTD,24/07/2023,PE151470,80.67,"3002656569 Swilling Bay, Copse Road, FLEETWOOD, FY7 7HB Water Charge",Water Charges-Metered
30/07/2023,People and Places,Environmental Services,132B,WATER PLUS LTD,24/07/2023,PE151470,105.68,"3001923946 Public Toilet, Rough Lea Road, THORNTON CLEVELEYS, FY5 1BW  Sewerage Charge",Sewerage
30/07/2023,People and Places,Environmental Services,132B,WATER PLUS LTD,24/07/2023,PE151470,23.38,"3001923946 Public Toilets, Off Quail Holme Road, Knott End-On-Sea,  POULTON-LE-FYLDE, FY6 0BT Sewerage Charge",Sewerage
30/07/2023,People and Places,Environmental Services,132B,WATER PLUS LTD,24/07/2023,PE151470,76.00,"3001923946 Public Conveniences, Rough Lea Road, THORNTON CLEVELEYS, FY5  1DA Sewerage Charge",Sewerage
30/07/2023,People and Places,Environmental Services,132B,WATER PLUS LTD,24/07/2023,PE151470,34.16,"3001923946 Toilets, Higher Lane, Scorton, PRESTON, PR3 1BE Sewerage  Charge",Sewerage
30/07/2023,People and Places,Environmental Services,132B,WATER PLUS LTD,24/07/2023,PE151470,42.26,"3001923946 Toilets, Teanlowe Centre, POULTON-LE-FYLDE, FY6 7DF Sewerage  Charge",Sewerage
30/07/2023,People and Places,Support Services,135B,WATER PLUS LTD,24/07/2023,PE151470,192.61,"3002029939 Wyre Civic Centre, Breck Road, POULTON-LE-FYLDE, FY6 7PU  Sewerage Charge",Sewerage
30/07/2023,People and Places,Cultural and Related Services,132A,WATER PLUS LTD,24/07/2023,PE151470,338.18,"3001212063 Ashdell Nursery Bowling Green  &amp; Pc`S, Victoria Road East, THORNTON CLEVELEYS, FY5 3SZ Drainage Charge",Surface Water/Highway Drainage
30/07/2023,People and Places,Cultural and Related Services,132A,WATER PLUS LTD,24/07/2023,PE151470,12.91,"3000427023 Park, North Drive, THORNTON CLEVELEYS, FY5 3AR Drainage Charge",Surface Water/Highway Drainage
30/07/2023,People and Places,Environmental Services,132B,WATER PLUS LTD,24/07/2023,PE151470,161.69,"3002656259 Wyre Sea Defences Depot, Chatsworth Avenue, Fleetwood, FY7 8EJ  Drainage Charge",Surface Water/Highway Drainage
30/07/2023,People and Places,Environmental Services,132B,WATER PLUS LTD,24/07/2023,PE151470,8.53,"3002656259 Wyre Sea Defences Depot, Chatsworth Avenue, Fleetwood, FY7 8EJ  Sewerage Charge",Sewerage
30/07/2023,People and Places,Environmental Services,132B,WATER PLUS LTD,24/07/2023,PE151470,12.91,"3002415766 Cemetery, Garstang Road East, POULTON LE FYLDE, FY6 8JH  Drainage Charge",Surface Water/Highway Drainage
30/07/2023,People and Places,Planning and Development Servs,132C,WATER PLUS LTD,24/07/2023,PE151470,12.91,"3001923857 Store 8 26 Adelaide Street, FLEETWOOD, FY7 6AB Drainage Charge",Surface Water/Highway Drainage
30/07/2023,People and Places,Planning and Development Servs,132C,WATER PLUS LTD,24/07/2023,PE151470,4.48,"3002656569 Swilling Bay, Copse Road, FLEETWOOD, FY7 7HB Sewerage Charge",Sewerage
30/07/2023,People and Places,Planning and Development Servs,132C,WATER PLUS LTD,24/07/2023,PE151470,80.47,"3002656569 Highway Dept, Copse Road, FLEETWOOD, FY7 7HB Sewerage Charge",Sewerage
30/07/2023,People and Places,Planning and Development Servs,132C,WATER PLUS LTD,24/07/2023,PE151470,51.55,"3002656569 Copse Road Depot, FLEETWOOD, FY7 6RP Total Charge per DPID",Sewerage
30/07/2023,People and Places,Central Services to the Public,131C,WATER PLUS LTD,24/07/2023,PE151470,95.06,"3002564850 Day Centre, Queensway, POULTON LE FYLDE, FY6 7ST Water Charge",Water Charges-Metered
30/07/2023,People and Places,Cultural and Related Services,132A,WATER PLUS LTD,24/07/2023,PE151470,6.71,"3002110760 Changing Room King George V Pl, Fleetwood Road, FLEETWOOD, FY7  8AS Water Charge",Water Charges-Metered
30/07/2023,People and Places,Cultural and Related Services,132A,WATER PLUS LTD,24/07/2023,PE151470,80.68,"3001212063 Ashdell Nursery Bowling Green &amp; Pc`S, Victoria Road East,  THORNTON CLEVELEYS, FY5 3SZ Water Charge",Water Charges-Metered
30/07/2023,People and Places,Cultural and Related Services,132A,WATER PLUS LTD,24/07/2023,PE151470,380.04,"3002656321 Marine Gardens, The Esplanade, FLEETWOOD, FY7 6HE Water Charge",Water Charges-Metered
30/07/2023,People and Places,Cultural and Related Services,132A,WATER PLUS LTD,24/07/2023,PE151470,536.68,"3002656321 Paddling Pool, Marine Gardens, FLEETWOOD, FY7 6HE Water Charge",Water Charges-Metered
30/07/2023,People and Places,Cultural and Related Services,132A,WATER PLUS LTD,24/07/2023,PE151470,280.64,"3002656038 Toilets, Warrenhurst Park, FLEETWOOD, FY7 6SH Water Charge",Water Charges-Metered
30/07/2023,People and Places,Cultural and Related Services,132A,WATER PLUS LTD,24/07/2023,PE151470,8.53,"3002284742 Nursery, Rutland Avenue, POULTON LE FYLDE, FY6 7SA Water  Charge",Water Charges-Metered
30/07/2023,People and Places,Cultural and Related Services,132A,WATER PLUS LTD,24/07/2023,PE151470,6.71,"3002284742 Standpipe, Allotments, Hargate Road, THORNTON CLEVELEYS, FY5  4PG Water Charge",Water Charges-Metered
30/07/2023,People and Places,Cultural and Related Services,132A,WATER PLUS LTD,24/07/2023,PE151470,12.90,"3002284742 Supply To Allotments, Sandringham Avenue, THORNTON CLEVELEYS,  FY5 4LU Water Charge",Water Charges-Metered
30/07/2023,People and Places,Environmental Services,132B,WATER PLUS LTD,24/07/2023,PE151470,16.99,"3002252263 Fleetwood Corporation Cemetery, Beach Road, FLEETWOOD, FY7 8PH  Water Charge",Water Charges-Metered
30/07/2023,People and Places,Environmental Services,132B,WATER PLUS LTD,24/07/2023,PE151470,25.20,"3002252263 Cemetery &amp; Offices, Beach Road, FLEETWOOD, FY7 8PN Water  Charge",Water Charges-Metered
30/07/2023,People and Places,Cultural and Related Services,132A,WATER PLUS LTD,24/07/2023,PE151470,37.83,"3000518096 Rossall Point Outer Promenade, The Esplanade, Fleetwood, FY7  8PG Water Charge",Water Charges-Metered
30/07/2023,People and Places,Cultural and Related Services,132A,WATER PLUS LTD,24/07/2023,PE151470,10.59,"3002029947 Jean Stansfield Memorial Park, Vicarage Road, Knott  End-On-Sea, POULTON-LE-FYLDE, FY6 0BH Water Charge",Water Charges-Metered
30/07/2023,People and Places,Cultural and Related Services,132A,WATER PLUS LTD,24/07/2023,PE151470,7.18,"3002029947 Jean Stansfield Memorial Park, Vicarage Road, Knott  End-On-Sea, POULTON-LE-FYLDE, FY6 0BH Sewerage Charge",Sewerage
30/07/2023,People and Places,Cultural and Related Services,132A,WATER PLUS LTD,24/07/2023,PE151470,12.91,"3002029947 Jean Stansfield Memorial Park, Vicarage Road, Knott  End-On-Sea, POULTON-LE-FYLDE, FY6 0BH Drainage Charge",Surface Water/Highway Drainage
30/07/2023,People and Places,Cultural and Related Services,132A,WATER PLUS LTD,24/07/2023,PE151470,12.91,"3002656038 Toilets, Warrenhurst Park, FLEETWOOD, FY7 6SH Drainage Charge",Surface Water/Highway Drainage
30/07/2023,People and Places,Planning and Development Servs,132C,WATER PLUS LTD,24/07/2023,PE151470,12.91,"3000168214 Toll Ferry Office, The Esplanade, FLEETWOOD, FY7 6DN Drainage  Charge",Surface Water/Highway Drainage
30/07/2023,People and Places,Cultural and Related Services,132A,WATER PLUS LTD,24/07/2023,PE151470,434.93,"3003011863 The New Wave, North Promenade, THORNTON-CLEVELEYS, FY5 1LW  Sewerage Charge",Sewerage
30/07/2023,People and Places,Environmental Services,132B,WATER PLUS LTD,24/07/2023,PE151470,32.07,"3001923946 Public Toilet, Rough Lea Road, THORNTON CLEVELEYS, FY5 1BW  Drainage Charge",Surface Water/Highway Drainage
30/07/2023,People and Places,Environmental Services,132B,WATER PLUS LTD,24/07/2023,PE151470,12.91,"3001923946 Toilet Block, Lawson Road, Little Thornton, THORNTON  CLEVELEYS, FY5 5DX Drainage Charge",Surface Water/Highway Drainage
30/07/2023,People and Places,Environmental Services,132B,WATER PLUS LTD,24/07/2023,PE151470,239.57,"3001923946 Toilets, Car Park, High Street, Garstang, PRESTON, PR3 1FA  Drainage Charge",Surface Water/Highway Drainage
30/07/2023,People and Places,Environmental Services,132B,WATER PLUS LTD,24/07/2023,PE151470,32.07,"3002920924 Toilets, Gubberford Lane, Scorton, PRESTON, PR3 1AX Drainage  Charge",Surface Water/Highway Drainage
30/07/2023,People and Places,Environmental Services,132B,WATER PLUS LTD,24/07/2023,PE151470,12.91,"3001923946 Toilets, Teanlowe Centre, POULTON-LE-FYLDE, FY6 7DF Drainage  Charge",Surface Water/Highway Drainage
30/07/2023,People and Places,Environmental Services,132B,WATER PLUS LTD,24/07/2023,PE151470,12.91,"3001923946 Conveniences, Bold Street, FLEETWOOD, FY7 6HL Drainage Charge",Surface Water/Highway Drainage
30/07/2023,People and Places,Environmental Services,132B,WATER PLUS LTD,24/07/2023,PE151470,12.91,"3001923946 Fleetwood Corporation Toilets, Beach Road, FLEETWOOD, FY7 8PH  Drainage Charge",Surface Water/Highway Drainage
30/07/2023,People and Places,Environmental Services,132B,WATER PLUS LTD,24/07/2023,PE151470,12.91,"3001923946 Public Conveniences, Rough Lea Road, THORNTON CLEVELEYS, FY5  1DA Drainage Charge",Surface Water/Highway Drainage
30/07/2023,People and Places,Planning and Development Servs,132C,WATER PLUS LTD,24/07/2023,PE151470,12.91,"3001923857 Store 6 26 Adelaide Street, FLEETWOOD, FY7 6AB Drainage Charge",Surface Water/Highway Drainage
30/07/2023,People and Places,Planning and Development Servs,132C,WATER PLUS LTD,24/07/2023,PE151470,12.91,"3001923857 Store 7 26 Adelaide Street, FLEETWOOD, FY7 6AB Drainage Charge",Surface Water/Highway Drainage
30/07/2023,People and Places,Planning and Development Servs,132C,WATER PLUS LTD,18/07/2023,PE151332,3.60,"Unit 8 Dock Ave, Fleetwood: 01/01/23 to 01/02/23",Sewerage
30/07/2023,People and Places,Planning and Development Servs,132C,WATER PLUS LTD,18/07/2023,PE151332,3.78,"Unit 8 Dock Ave, Fleetwood: 01/01/23 to 01/02/23",Surface Water/Highway Drainage
30/07/2023,People and Places,Planning and Development Servs,132C,WATER PLUS LTD,18/07/2023,PE151332,4.86,"Unit 8 Dock Ave, Fleetwood: 01/01/23 to 01/02/23",Water Charges-Metered
30/07/2023,People and Places,Planning and Development Servs,132C,WATER PLUS LTD,20/07/2023,PE151424,4.26,Unit 8 Dock Ave Fleetwood: 01/03/23 to 05/04/23 water and waste water,Water Charges-Metered
30/07/2023,People and Places,Planning and Development Servs,132C,WATER PLUS LTD,20/07/2023,PE151423,4.37,"Unit 8 Dock Ave, Fleetwood: 01/02/23 to 01/03/23 water and waste water",Water Charges-Metered
30/07/2023,People and Places,Planning and Development Servs,132C,WATER PLUS LTD,20/07/2023,PE151422,7.53,"Unit 8 Dock Ave, Fleetwood: 05/05/23 to 09/06/23 water and waste water",Water Charges-Metered
30/07/2023,People and Places,Planning and Development Servs,132C,WATER PLUS LTD,20/07/2023,PE151424,5.68,Unit 8 Dock Ave Fleetwood: 01/03/23 to 05/04/23 water and waste water,Water Charges-Metered
30/07/2023,People and Places,Planning and Development Servs,132C,WATER PLUS LTD,20/07/2023,PE151424,4.14,Unit 8 Dock Ave Fleetwood: 01/03/23 to 05/04/23 water and waste water,Water Charges-Metered
30/07/2023,People and Places,Planning and Development Servs,132C,WATER PLUS LTD,20/07/2023,PE151423,3.43,"Unit 8 Dock Ave, Fleetwood: 01/02/23 to 01/03/23 water and waste wate",Surface Water/Highway Drainage
30/07/2023,People and Places,Planning and Development Servs,132C,WATER PLUS LTD,20/07/2023,PE151422,4.04,"Unit 8 Dock Ave, Fleetwood: 05/05/23 to 09/06/23 water and waste wate",Surface Water/Highway Drainage
30/07/2023,People and Places,Planning and Development Servs,132C,WATER PLUS LTD,20/07/2023,PE151422,5.03,"Unit 8 Dock Ave, Fleetwood: 05/05/23 to 09/06/23 water and waste wate",Sewerage
30/07/2023,People and Places,Planning and Development Servs,132C,WATER PLUS LTD,20/07/2023,PE151423,3.23,"Unit 8 Dock Ave, Fleetwood: 01/02/23 to 01/03/23 water and waste wate",Sewerage
30/07/2023,People and Places,Planning and Development Servs,132C,WATER PLUS LTD,28/07/2023,PE151694,4.31,3201359866 Unit 8 Dock Ave FY7 6PS: 05/04/23 to 05/05/23 water and waste wate,Sewerage
30/07/2023,People and Places,Planning and Development Servs,132C,WATER PLUS LTD,28/07/2023,PE151695,4.17,"3201359831 Unit 6 Dock Ave, FY7 6PS: 05/06/23 to 04/07/23 water and waste water",Sewerage
30/07/2023,People and Places,Planning and Development Servs,132C,WATER PLUS LTD,28/07/2023,PE151696,3.59,3201359866 Unit 8 Dock Ave FY7 6PS: 09/06/23 to 04/07/23 water and waste water,Sewerage
30/07/2023,People and Places,Planning and Development Servs,132C,WATER PLUS LTD,28/07/2023,PE151696,2.88,3201359866 Unit 8 Dock Ave FY7 6PS: 09/06/23 to 04/07/23 water and waste water,Surface Water/Highway Drainage
30/07/2023,People and Places,Planning and Development Servs,132C,WATER PLUS LTD,28/07/2023,PE151695,3.35,"3201359831 Unit 6 Dock Ave, FY7 6PS: 05/06/23 to 04/07/23 water and waste water",Surface Water/Highway Drainage
30/07/2023,People and Places,Planning and Development Servs,132C,WATER PLUS LTD,28/07/2023,PE151694,3.46,3201359866 Unit 8 Dock Ave FY7 6PS: 05/04/23 to 05/05/23 water and waste wate,Surface Water/Highway Drainage
30/07/2023,People and Places,Planning and Development Servs,132C,WATER PLUS LTD,28/07/2023,PE151696,5.38,3201359866 Unit 8 Dock Ave FY7 6PS: 09/06/23 to 04/07/23 water and waste water,Water Charges-Metered
30/07/2023,People and Places,Planning and Development Servs,132C,WATER PLUS LTD,28/07/2023,PE151695,6.24,"3201359831 Unit 6 Dock Ave, FY7 6PS: 05/06/23 to 04/07/23 water and waste water",Water Charges-Metered
30/07/2023,People and Places,Planning and Development Servs,132C,WATER PLUS LTD,28/07/2023,PE151694,6.45,3201359866 Unit 8 Dock Ave FY7 6PS: 05/04/23 to 05/05/23 water and waste water,Water Charges-Metered
30/07/2023,People and Places,Planning and Development Servs,132C,WATER PLUS LTD,11/07/2023,PE151019,4.83,Water/wastewater charges for unit 6  fot the period 01/08/22-01/09/22,Water Charges-Metered
30/07/2023,People and Places,Planning and Development Servs,132C,WATER PLUS LTD,11/07/2023,PE151018,4.67,Water/Wastewater charges for Unit 6 for the period 01/09/22-01/10/22,Water Charges-Metered
30/07/2023,People and Places,Planning and Development Servs,132C,WATER PLUS LTD,11/07/2023,PE150679,131.35,7b Dock Ave  01/03/23 to 05/06/23 water supply,Water Charges-Metered
30/07/2023,People and Places,Planning and Development Servs,132C,WATER PLUS LTD,11/07/2023,PE151022,4.83,Water/Wastewater charges for Unit 6 for the period 01/10/22-01/11/22,Water Charges-Metered
30/07/2023,People and Places,Planning and Development Servs,132C,WATER PLUS LTD,11/07/2023,PE151021,6.22,Water/wastewater charges for Unit 8 for the period 22/06/22-01/08/22,Water Charges-Metered
30/07/2023,People and Places,Planning and Development Servs,132C,WATER PLUS LTD,11/07/2023,PE151020,4.67,Water/Wastewater Charges for unit 6 for the period 01/11/22-01/12/22,Water Charges-Metered
30/07/2023,People and Places,Planning and Development Servs,132C,WATER PLUS LTD,13/07/2023,PE151040,3.35,"Unit 7b Dock Ave, Fleetwood.  Water and waste water 05/06/23 to 04/07/23",Surface Water/Highway Drainage
30/07/2023,People and Places,Planning and Development Servs,132C,WATER PLUS LTD,13/07/2023,PE151042,3.68,Unit 8 Fleetwood: Water and waste water 01/09/22 to 01/10/22,Surface Water/Highway Drainage
30/07/2023,People and Places,Planning and Development Servs,132C,WATER PLUS LTD,13/07/2023,PE151041,3.78,"Unit 6 Dock Ave, Water and waste water 01/01/23 to 01/02/2",Surface Water/Highway Drainage
30/07/2023,People and Places,Planning and Development Servs,132C,WATER PLUS LTD,13/07/2023,PE151041,3.60,"Unit 6 Dock Ave, Water and waste water 01/01/23 to 01/02/2",Sewerage
30/07/2023,People and Places,Planning and Development Servs,132C,WATER PLUS LTD,13/07/2023,PE151042,3.45,Unit 8 Fleetwood: Water and waste water 01/09/22 to 01/10/22,Sewerage
30/07/2023,People and Places,Planning and Development Servs,132C,WATER PLUS LTD,13/07/2023,PE151040,27.26,"Unit 7b Dock Ave, Fleetwood.  Water and waste water 05/06/23 to 04/07/23",Sewerage
30/07/2023,People and Places,Planning and Development Servs,132C,WATER PLUS LTD,13/07/2023,PE151040,40.59,"Unit 7b Dock Ave, Fleetwood.  Water and waste water 05/06/23 to 04/07/23",Water Charges-Metered
30/07/2023,People and Places,Planning and Development Servs,132C,WATER PLUS LTD,13/07/2023,PE151042,4.67,Unit 8 Fleetwood: Water and waste water 01/09/22 to 01/10/22,Water Charges-Metered
30/07/2023,People and Places,Planning and Development Servs,132C,WATER PLUS LTD,13/07/2023,PE151041,4.86,"Unit 6 Dock Ave, Water and waste water 01/01/23 to 01/02/23",Water Charges-Metered
30/07/2023,People and Places,Planning and Development Servs,132C,WATER PLUS LTD,11/07/2023,PE151020,3.45,Water/Wastewater Charges for unit 6 for the period 01/11/22-01/12/22,Sewerage
30/07/2023,People and Places,Planning and Development Servs,132C,WATER PLUS LTD,11/07/2023,PE151021,4.60,Water/wastewater charges for Unit 8 for the period 22/06/22-01/08/22,Sewerage
30/07/2023,People and Places,Planning and Development Servs,132C,WATER PLUS LTD,11/07/2023,PE151022,3.57,Water/Wastewater charges for Unit 6 for the period 01/10/22-01/11/22,Sewerage
30/07/2023,People and Places,Planning and Development Servs,132C,WATER PLUS LTD,11/07/2023,PE150679,88.95,7b Dock Ave  01/03/23 to 05/06/23 used water,Sewerage
30/07/2023,People and Places,Planning and Development Servs,132C,WATER PLUS LTD,11/07/2023,PE151018,3.45,Water/Wastewater charges for Unit 6 for the period 01/09/22-01/10/22,Sewerage
30/07/2023,People and Places,Planning and Development Servs,132C,WATER PLUS LTD,11/07/2023,PE151019,3.57,Water/wastewater charges for unit 6  fot the period 01/08/22-01/09/22,Sewerage
30/07/2023,People and Places,Planning and Development Servs,132C,WATER PLUS LTD,11/07/2023,PE151019,3.80,Water/wastewater charges for unit 6  fot the period 01/08/22-01/09/22,Surface Water/Highway Drainage
30/07/2023,People and Places,Planning and Development Servs,132C,WATER PLUS LTD,11/07/2023,PE151018,3.68,Water/Wastewater charges for Unit 6 for the period 01/09/22-01/10/22,Surface Water/Highway Drainage
30/07/2023,People and Places,Planning and Development Servs,132C,WATER PLUS LTD,11/07/2023,PE150679,11.30,7b Dock Ave  01/03/23 to 05/06/23 surface water drainage,Surface Water/Highway Drainage
30/07/2023,People and Places,Planning and Development Servs,132C,WATER PLUS LTD,11/07/2023,PE151022,3.80,Water/Wastewater charges for Unit 6 for the period 01/10/22-01/11/22,Surface Water/Highway Drainage
30/07/2023,People and Places,Planning and Development Servs,132C,WATER PLUS LTD,11/07/2023,PE151021,4.91,Water/wastewater charges for Unit 8 for the period 22/06/22-01/08/22,Surface Water/Highway Drainage
30/07/2023,People and Places,Planning and Development Servs,132C,WATER PLUS LTD,11/07/2023,PE151020,3.68,Water/Wastewater Charges for unit 6 for the period 01/11/22-01/12/22,Surface Water/Highway Drainage
30/07/2023,People and Places,Planning and Development Servs,132C,WATER PLUS LTD,24/07/2023,PE149175,7.08,320135984X 7a Dock Ave Fleetwood 01/03/23 to 01/04/23 water and waste water,Sewerage
30/07/2023,People and Places,Planning and Development Servs,132C,WATER PLUS LTD,24/07/2023,PE149617,27.40,"320135984X Unit 7a Dock Ave, Fleetwood, FY7 6PS 01/04/23 to 01/05/23",Sewerage
30/07/2023,People and Places,Planning and Development Servs,132C,WATER PLUS LTD,24/07/2023,PE150689,27.54,Water/Wastewater charges for the period 01/05/23-01/06/2,Sewerage
30/07/2023,People and Places,Planning and Development Servs,132C,WATER PLUS LTD,24/07/2023,PE151043,29.12,320135984X Unit 7a Dock Ave: 01/06/23 to 04/07/23 water and waste water,Sewerage
30/07/2023,People and Places,Planning and Development Servs,132C,WATER PLUS LTD,24/07/2023,PE151045,3.57,3201359866 Unit 8 Dock Ave: 01/08/22 to 01/09/22 water and waste wate,Sewerage
30/07/2023,People and Places,Planning and Development Servs,132C,WATER PLUS LTD,24/07/2023,PE151045,4.83,3201359866 Unit 8 Dock Ave: 01/08/22 to 01/09/22 water and waste water,Water Charges-Metered
30/07/2023,People and Places,Planning and Development Servs,132C,WATER PLUS LTD,24/07/2023,PE151043,43.34,320135984X Unit 7a Dock Ave: 01/06/23 to 04/07/23 water and waste water,Water Charges-Metered
30/07/2023,People and Places,Planning and Development Servs,132C,WATER PLUS LTD,24/07/2023,PE150689,41.02,Water/Wastewater charges for the period 01/05/23-01/06/23,Water Charges-Metered
30/07/2023,People and Places,Planning and Development Servs,132C,WATER PLUS LTD,24/07/2023,PE149617,40.80,"320135984X Unit 7a Dock Ave, Fleetwood, FY7 6PS 01/04/23 to 01/05/23",Water Charges-Metered
30/07/2023,People and Places,Planning and Development Servs,132C,WATER PLUS LTD,24/07/2023,PE149175,9.97,320135984X 7a Dock Ave Fleetwood 01/03/23 to 01/04/23 water and waste water,Water Charges-Metered
30/07/2023,People and Places,Planning and Development Servs,132C,WATER PLUS LTD,24/07/2023,PE151045,3.80,3201359866 Unit 8 Dock Ave: 01/08/22 to 01/09/22 water and waste wate,Surface Water/Highway Drainage
30/07/2023,People and Places,Planning and Development Servs,132C,WATER PLUS LTD,24/07/2023,PE151043,3.81,320135984X Unit 7a Dock Ave: 01/06/23 to 04/07/23 water and waste water,Surface Water/Highway Drainage
30/07/2023,People and Places,Planning and Development Servs,132C,WATER PLUS LTD,24/07/2023,PE150689,3.58,Water/Wastewater charges for the period 01/05/23-01/06/2,Surface Water/Highway Drainage
30/07/2023,People and Places,Planning and Development Servs,132C,WATER PLUS LTD,24/07/2023,PE149617,3.46,"320135984X Unit 7a Dock Ave, Fleetwood, FY7 6PS 01/04/23 to 01/05/23",Surface Water/Highway Drainage
30/07/2023,People and Places,Planning and Development Servs,132C,WATER PLUS LTD,24/07/2023,PE149175,3.80,320135984X 7a Dock Ave Fleetwood 01/03/23 to 01/04/23 water and waste water,Surface Water/Highway Drainage
30/07/2023,People and Places,Planning and Development Servs,132C,WATER PLUS LTD,25/07/2023,PE150911,46.74,3201359831 Unit 6 Dock Ave: 05/05/23 to 01/06/23 credited in full,Water Charges-Metered
30/07/2023,People and Places,Planning and Development Servs,132C,WATER PLUS LTD,25/07/2023,PE150910,420.81,3201359831 Unit 6 Dock Ave 22/06/22 to 05/05/23 - credited in full,Water Charges-Metered
30/07/2023,People and Places,Planning and Development Servs,132C,WATER PLUS LTD,25/07/2023,PE150910,289.41,3201359831 Unit 6 Dock Ave 22/06/22 to 05/05/23 - credited in ful,Sewerage
30/07/2023,People and Places,Planning and Development Servs,132C,WATER PLUS LTD,25/07/2023,PE150911,31.39,3201359831 Unit 6 Dock Ave: 05/05/23 to 01/06/23 credited in ful,Sewerage
30/07/2023,People and Places,Planning and Development Servs,132C,WATER PLUS LTD,25/07/2023,PE150911,3.58,3201359831 Unit 6 Dock Ave: 05/05/23 to 01/06/23 credited in ful,Surface Water/Highway Drainage
30/07/2023,People and Places,Planning and Development Servs,132C,WATER PLUS LTD,25/07/2023,PE150910,38.60,3201359831 Unit 6 Dock Ave 22/06/22 to 05/05/23 - credited in ful,Surface Water/Highway Drainage
30/07/2023,People and Places,Planning and Development Servs,132C,WATER PLUS LTD,12/07/2023,PE149531,4.26,water /wastewater charges for the period 01/03/23 to 05/04/23 estimated readings,Surface Water/Highway Drainage
30/07/2023,People and Places,Planning and Development Servs,132C,WATER PLUS LTD,12/07/2023,PE150716,3.58,Unit 6 Dock Ave water serivces 05/05/23 to 05/06/23,Surface Water/Highway Drainage
30/07/2023,People and Places,Planning and Development Servs,132C,WATER PLUS LTD,12/07/2023,PE149531,45.61,water /wastewater charges for the period 01/03/23 to 05/04/23 estimated readings,Water Charges-Metered
30/07/2023,People and Places,Planning and Development Servs,132C,WATER PLUS LTD,12/07/2023,PE150716,46.74,Unit 6 Dock Ave water serivces 05/05/23 to 05/06/23,Water Charges-Metered
30/07/2023,People and Places,Planning and Development Servs,132C,WATER PLUS LTD,12/07/2023,PE150716,31.39,Unit 6 Dock Ave water serivces 05/05/23 to 05/06/23,Sewerage
30/07/2023,People and Places,Planning and Development Servs,132C,WATER PLUS LTD,12/07/2023,PE149531,31.36,water /wastewater charges for the period 01/03/23 to 05/04/23 estimated readings,Sewerage
30/07/2023,People and Places,Cultural and Related Services,132A,WATER PLUS LTD,24/07/2023,PE151470,666.09,"3003011863 The New Wave, North Promenade, THORNTON-CLEVELEYS, FY5 1LW  Water Charge",Water Charges-Metered
30/07/2023,People and Places,Cultural and Related Services,132A,WATER PLUS LTD,24/07/2023,PE151470,6.71,"3000110372 Tourist Information Centre, Unit 1 Cherestanc Square,  Garstang, PRESTON, PR3 1EF Water Charge",Water Charges-Metered
30/07/2023,People and Places,Cultural and Related Services,132A,WATER PLUS LTD,24/07/2023,PE151470,4.48,"3000110372 Tourist Information Centre, Unit 1 Cherestanc Square,  Garstang, PRESTON, PR3 1EF Sewerage Charge",Sewerage
30/07/2023,People and Places,Cultural and Related Services,132A,WATER PLUS LTD,24/07/2023,PE151470,32.07,"3000110372 Tourist Information Centre, Unit 1 Cherestanc Square,  Garstang, PRESTON, PR3 1EF Drainage Charge",Surface Water/Highway Drainage
30/07/2023,People and Places,Central Services to the Public,131C,WATER PLUS LTD,24/07/2023,PE151470,12.91,"3002564850 Day Centre, Queensway, POULTON LE FYLDE, FY6 7ST Drainage  Charge",Surface Water/Highway Drainage
30/07/2023,People and Places,Cultural and Related Services,132A,WATER PLUS LTD,24/07/2023,PE151470,764.93,"3002656321 Marine Hall, The Esplanade, FLEETWOOD, FY7 6HF Drainage Charge",Surface Water/Highway Drainage
30/07/2023,People and Places,Cultural and Related Services,132A,WATER PLUS LTD,24/07/2023,PE151470,12.91,"3002268488 Club House, River Road, THORNTON-CLEVELEYS, FY5 5LR Drainage  Charge",Surface Water/Highway Drainage
30/07/2023,People and Places,Cultural and Related Services,132A,WATER PLUS LTD,24/07/2023,PE151470,161.69,"3002268488 Wyreside Ecology Centre, River Road, THORNTON-CLEVELEYS, FY5  5LR Drainage Charge",Surface Water/Highway Drainage
30/07/2023,People and Places,Environmental Services,132B,WATER PLUS LTD,24/07/2023,PE151470,12.91,"3002252263 Cemetery &amp; Offices, Beach Road, FLEETWOOD, FY7 8PN  Drainage Charge",Surface Water/Highway Drainage
30/07/2023,Resources,Housing General Fund,134A,BRADBURN ESTATES LTD,11/07/2023,RS151046,740.00,REDACT,Rough Sleeper Project/NSNO
30/07/2023,Resources,Support Services,135B,AVC WISE LTD,12/07/2023,RS151156,404.98,INVOICE NUMBER: 105139,Commission Fees Etc.
30/07/2023,Resources,Support Services,135B,AVC WISE LTD,26/07/2023,RS151666,414.88,INVOICE NUMBER: 105376,Commission Fees Etc.
30/07/2023,People and Places,Cultural and Related Services,132A,THE WINDMILL PLAYERS,20/07/2023,PE151449,4110.00,Incident Room  07 to 10/06/23 ticket sales,Refund of Ticket Sales to Ext Promoters
30/07/2023,People and Places,Cultural and Related Services,132A,THE WINDMILL PLAYERS,20/07/2023,PE151395,-4110.00,Ticket Sales for The Incident Room June 2023,Refund of Ticket Sales to Ext Promoters
30/07/2023,People and Places,Cultural and Related Services,132A,THE WINDMILL PLAYERS,19/07/2023,PE151395,4110.00,Ticket Sales for The Incident Room June 2023,Refund of Ticket Sales to Ext Promoters
30/07/2023,People and Places,Support Services,135B,HUWS GRAY LTD,21/07/2023,PE151377,300.00,Bird spikes,Materials and Consumables
30/07/2023,People and Places,Environmental Services,132B,HUWS GRAY LTD,25/07/2023,PE151639,280.96,"to supply for collection items ordered on quote H5 L16800 , consisting of concrete blocks ,slabs, bricks , hanson multi cem , sand and gravel board for works at preesall cemetery",Special Works
30/07/2023,People and Places,Cultural and Related Services,132A,HUWS GRAY LTD,24/07/2023,PE150517,379.70,Wood for brock bottom car park,Materials and Consumables
30/07/2023,People and Places,Cultural and Related Services,132A,HUWS GRAY LTD,24/07/2023,PE151376,105.76,Wood for board walk at Fleetwood,Materials and Consumables
30/07/2023,People and Places,Cultural and Related Services,132A,HUWS GRAY LTD,24/07/2023,PE151378,263.88,3 ton top dressing,Materials and Consumables
30/07/2023,People and Places,Cultural and Related Services,132A,HUWS GRAY LTD,24/07/2023,PE151142,426.00,3 x bench kits,Materials and Consumables
30/07/2023,People and Places,Cultural and Related Services,132A,HUWS GRAY LTD,24/07/2023,PE151141,197.94,wood stain for WECP,Materials and Consumables
30/07/2023,People and Places,Support Services,135B,HUWS GRAY LTD,31/07/2023,PE150934,39.86,Materials  Keith Urwin,Protective Clothing
30/07/2023,People and Places,Housing General Fund,134A,HUWS GRAY LTD,31/07/2023,PE150934,16.04,Care & repair parts,Materials and Consumables
30/07/2023,People and Places,Support Services,135B,HUWS GRAY LTD,31/07/2023,PE150934,50.90,MaterialsKeith urwin,Materials and Consumables
30/07/2023,People and Places,Cultural and Related Services,132A,HUWS GRAY LTD,06/07/2023,PE150929,16.67,1 x black bin,Purchase of Tools or Equipment
30/07/2023,People and Places,Cultural and Related Services,132A,HUWS GRAY LTD,06/07/2023,PE150931,39.68,2 x 3.6 4by4,Materials and Consumables
30/07/2023,People and Places,Cultural and Related Services,132A,HUWS GRAY LTD,06/07/2023,PE150930,71.48,2 x ton 40mm to dust,Materials and Consumables
30/07/2023,Resources,Housing General Fund,134A,RHEA PROJECTS LTD,14/07/2023,RS151197,7440.00,"Payment of invocie No - RP - 1882 - Affordable warmth support at 95 Links Road, 5 Hexham Avenue & 4 Conway avenue",Affordable Warmth 2017/18
30/07/2023,People and Places,Planning and Development Servs,132C,JP DISTRIBUTION,05/07/2023,PE150137,500.00,"Collate and distribute 20,000 D/L Leaflets @ 25.00 per 1,000 for Fleetwood Market",Promotions - General
30/07/2023,People and Places,Planning and Development Servs,132C,JP DISTRIBUTION,05/07/2023,PE150138,150.00,"Add on A3 posters for Fleetwood Market  Into Hotel, Guesthouses, Caravan Parks, TICs and Places of Interest",Promotions - General
30/07/2023,People and Places,Cultural and Related Services,132A,JP DISTRIBUTION,05/07/2023,PE150139,100.00,4k distribution of Marine Hall What`s on Guide,Advertising - General
30/07/2023,People and Places,"Cultural, Environ and Planning",137B,Middlemarch-Environmental Ltd,17/07/2023,PE151117,-16150.00,Offsets PE150976,Consultants Fees (New CCR)
30/07/2023,People and Places,Support Services,135B,Corona Energy Retail 4 Limited,17/07/2023,PE151099,-12064.12,1600000162857 Civic Centre Breck Road Blackpool FY39DT 01/05/23 TO 31/05/23,Electricity
30/07/2023,People and Places,Support Services,135B,Corona Energy Retail 4 Limited,17/07/2023,PE151091,-12289.48,1600000162857 Civic Centre Breck Road Blackpool FY39DT 01/04/23 TO 30/04/23,Electricity
30/07/2023,People and Places,Cultural and Related Services,132A,Corona Energy Retail 4 Limited,17/07/2023,PE151100,-5862.13,1600000162875 Marine Hall The Esplanade Fleetwood FY76HF 01/05/23 TO 31/05/23,Electricity
30/07/2023,People and Places,Cultural and Related Services,132A,Corona Energy Retail 4 Limited,17/07/2023,PE151084,-7161.06,1600000162875 Marine Hall The Esplanade Fleetwood FY76HF 01/04/23 TO 30/04/23,Electricity
30/07/2023,People and Places,Cultural and Related Services,132A,Corona Energy Retail 4 Limited,17/07/2023,PE151088,-2399.77,1630000670291 Promendae Cafe North Promenade Thornton-Cleveleys FY51DB 01/05/23 TO 31/05/23,Electricity
30/07/2023,People and Places,Cultural and Related Services,132A,Corona Energy Retail 4 Limited,17/07/2023,PE151101,-2169.38,1630000670291 Promendae Cafe North Promenade Thornton-Cleveleys FY51DB 01/04/23 TO 30/04/23,Electricity
30/07/2023,People and Places,Cultural and Related Services,132A,Corona Energy Retail 4 Limited,17/07/2023,PE151089,2104.05,1630000670291 Promendae Cafe North  Promenade Thornton-Cleveleys FY51DB 01/04/23 TO 30/04/23,Electricity
30/07/2023,People and Places,Cultural and Related Services,132A,Corona Energy Retail 4 Limited,17/07/2023,PE151094,2327.95,1630000670291 Promendae Cafe North  Promenade Thornton-Cleveleys FY51DB 01/05/23 TO 31/05/23,Electricity
30/07/2023,People and Places,Cultural and Related Services,132A,Corona Energy Retail 4 Limited,17/07/2023,PE151262,2349.57,1630000670291 Promendae Cafe North  Promenade Thornton-Cleveleys FY51DB 01/06/23 to 30/06/23,Electricity
30/07/2023,People and Places,Planning and Development Servs,132C,Corona Energy Retail 4 Limited,17/07/2023,PE151096,-1977.13,1640000184606 Council Depot Copse Road Fleetwood FY76RP 01/05/23 TO 31/05/23,Electricity
30/07/2023,People and Places,Planning and Development Servs,132C,Corona Energy Retail 4 Limited,17/07/2023,PE151109,-865.22,1640000184606 Council Depot Copse Road Fleetwood FY76RP 01/04/23 TO 30/04/23,Electricity
30/07/2023,People and Places,Planning and Development Servs,132C,Corona Energy Retail 4 Limited,17/07/2023,PE151106,-1127.16,1640000184606 Council Depot Copse Road Fleetwood FY76RP 01/04/23 TO 30/04/23,Electricity
30/07/2023,People and Places,Planning and Development Servs,132C,Corona Energy Retail 4 Limited,17/07/2023,PE151108,-803.72,1640000184606 Council Depot Copse Road Fleetwood FY76RP 01/05/23 TO 31/05/23,Electricity
30/07/2023,People and Places,Planning and Development Servs,132C,Corona Energy Retail 4 Limited,17/07/2023,PE151115,1127.16,1640000184606 Council Depot  Copse Road Fleetwood FY76RP 01/04/23 TO 30/04/23,Electricity
30/07/2023,People and Places,Planning and Development Servs,132C,Corona Energy Retail 4 Limited,17/07/2023,PE151260,1895.21,1640000184606 Council Depot Copse Road  Fleetwood FY76RP 01/06/23 to 30/06/23,Electricity
30/07/2023,People and Places,Planning and Development Servs,132C,Corona Energy Retail 4 Limited,17/07/2023,PE151090,1925.60,1640000184606 Council Depot Copse Road  Fleetwood FY76RP 01/05/23 TO 31/05/23,Electricity
30/07/2023,People and Places,Planning and Development Servs,132C,Corona Energy Retail 4 Limited,17/07/2023,PE151107,1099.94,1640000184606 Council Depot Copse Road  Fleetwood FY76RP 01/04/23 TO 30/04/23,Electricity
30/07/2023,People and Places,Planning and Development Servs,132C,Corona Energy Retail 4 Limited,17/07/2023,PE151110,1977.13,1640000184606 Council Depot  Copse Road Fleetwood FY76RP 01/05/23 TO 31/05/23,Electricity
30/07/2023,People and Places,Support Services,135B,Corona Energy Retail 4 Limited,17/07/2023,PE151097,11778.31,1600000162857 Civic Centre Breck Road  Blackpool FY39DT 01/05/23 TO 31/05/23,Electricity
30/07/2023,People and Places,Support Services,135B,Corona Energy Retail 4 Limited,17/07/2023,PE151093,12007.86,1600000162857 Civic Centre Breck Road  Blackpool FY39DT 01/04/23 TO 30/04/23,Electricity
30/07/2023,People and Places,Support Services,135B,Corona Energy Retail 4 Limited,17/07/2023,PE151263,10511.55,1600000162857 Civic Centre Breck Road  Blackpool FY39DT 01/06/23 to 30/06/23,Electricity
30/07/2023,People and Places,Cultural and Related Services,132A,Corona Energy Retail 4 Limited,17/07/2023,PE151258,4625.18,1600000162875 Marine Hall The Esplanade  Fleetwood FY76HF 01/06/23 to 30/06/23,Electricity
30/07/2023,People and Places,Cultural and Related Services,132A,Corona Energy Retail 4 Limited,17/07/2023,PE151104,7008.51,1600000162875 Marine Hall The Esplanade  Fleetwood FY76HF 01/04/23 TO 30/04/23,Electricity
30/07/2023,People and Places,Cultural and Related Services,132A,Corona Energy Retail 4 Limited,17/07/2023,PE151086,5734.35,1600000162875 Marine Hall The Esplanade  Fleetwood FY76HF 01/05/23 TO 31/05/23,Electricity
30/07/2023,People and Places,Planning and Development Servs,132C,Corona Energy Retail 4 Limited,17/07/2023,PE151257,804.01,1620000784666 Main Hall Adelaide Street  Fleetwood FY76AB 01/06/23 to 30/06/23,Electricity
30/07/2023,People and Places,Environmental Services,132B,Corona Energy Retail 4 Limited,17/07/2023,PE151261,71.27,1600000023675 Royles Brook Pumping Station  Off Victoria Road East Thornton FY55OX 01/06/23 to 30/06/23,Electricity
30/07/2023,People and Places,Environmental Services,132B,Corona Energy Retail 4 Limited,17/07/2023,PE151103,38.84,1600000023675 Royles Brook Pumping Station  Off Victoria Road East Thornton FY55OX 01/05/23 TO 31/05/23,Electricity
30/07/2023,People and Places,Environmental Services,132B,Corona Energy Retail 4 Limited,17/07/2023,PE151092,89.69,1600000023675 Royles Brook Pumping Station  Off Victoria Road East Thornton FY55OX 01/04/23 TO 30/04/23,Electricity
30/07/2023,People and Places,Cultural and Related Services,132A,Corona Energy Retail 4 Limited,17/07/2023,PE151259,199.00,1640000233705 Coastal Observation Point  Rossal Point Fleetwood FY78AF 01/06/23 to 30/06/23,Electricity
30/07/2023,People and Places,Cultural and Related Services,132A,Corona Energy Retail 4 Limited,17/07/2023,PE151095,127.22,1640000233705 Coastal Observation Point  Rossal Point Fleetwood FY78AF 01/04/23 TO 30/04/23,Electricity
30/07/2023,People and Places,Cultural and Related Services,132A,Corona Energy Retail 4 Limited,17/07/2023,PE151098,209.80,1640000233705 Coastal Observation Point  Rossal Point Fleetwood FY78AF 01/05/23 TO 31/05/23,Electricity
30/07/2023,People and Places,Cultural and Related Services,132A,Corona Energy Retail 4 Limited,17/07/2023,PE151112,215.20,1640000233705 Coastal  Observation Point Rossal Point Fleetwood FY78AF 01/05/23 TO 31/05/23,Electricity
30/07/2023,People and Places,Cultural and Related Services,132A,Corona Energy Retail 4 Limited,17/07/2023,PE151111,130.15,1640000233705 Coastal  Observation Point Rossal Point Fleetwood FY78AF 01/04/23 TO 30/04/23,Electricity
30/07/2023,People and Places,Cultural and Related Services,132A,Corona Energy Retail 4 Limited,19/07/2023,PE151344,230.22,1610004863632 Beach Bungalows The Esplanade  Fleetwood FY76QD 01/06/23 to 30/06/23 E,Electricity
30/07/2023,People and Places,Environmental Services,132B,Corona Energy Retail 4 Limited,19/07/2023,PE151345,1331.02,1610004347328 East Cemetry Garstang Road  East Poulton Le Fylde FY67SN 01/06/23 to 30/06/23 E,Electricity
30/07/2023,People and Places,Cultural and Related Services,132A,Corona Energy Retail 4 Limited,19/07/2023,PE151349,84.03,1610004318841 Jean Stansfield Bowling Green  Vicarage Road Poulton Le Fylde FY67BE 01/06/23 to 30/06/23,Electricity
30/07/2023,People and Places,Cultural and Related Services,132A,Corona Energy Retail 4 Limited,19/07/2023,PE151347,113.09,1610004724089 Pavilion North Drive Thornton  Cleveleys FY52QD 01/06/23 to 30/06/23,Electricity
30/07/2023,People and Places,Cultural and Related Services,132A,Corona Energy Retail 4 Limited,19/07/2023,PE151352,32.06,1610004305443 Sports Pavilion Sports  Pavilion Poulton-Le-Fylde FY67RH 01/06/23 to 30/06/23 E,Electricity
30/07/2023,People and Places,Cultural and Related Services,132A,Corona Energy Retail 4 Limited,19/07/2023,PE151354,57.86,1610004305434 Sports Pavilion Sports  Pavilion Poulton-Le-Fylde FY67RH 01/06/23 to 30/06/23 E,Electricity
30/07/2023,People and Places,Central Services to the Public,131C,Corona Energy Retail 4 Limited,19/07/2023,PE151350,3071.72,1610004322012 Womens Royal Voluntary  Service Teanlowe Day Centre Poulton-Le-Fylde FY67ST 01/06/23 to 30/06/23,Electricity
30/07/2023,People and Places,Cultural and Related Services,132A,Corona Energy Retail 4 Limited,19/07/2023,PE151360,1788.43,1610004773866 Wyre Borough Council Lecture  Hall Thornton-Cleveleys FY54AD 01/06/23 to 30/06/23 E,Electricity
30/07/2023,People and Places,Cultural and Related Services,132A,Corona Energy Retail 4 Limited,19/07/2023,PE151359,251.53,1640000960322 The Mount Lodge The Esplanade  Fleetwood FY76EZ 01/06/23 to 30/06/23,Electricity
30/07/2023,People and Places,Cultural and Related Services,132A,Corona Energy Retail 4 Limited,19/07/2023,PE151357,224.07,1650000008330 The Mount Pavilion Mount Road  Lancashire FY76EZ 01/06/23 to 30/06/23,Electricity
30/07/2023,People and Places,Cultural and Related Services,132A,Corona Energy Retail 4 Limited,19/07/2023,PE151353,8.14,1610004742404 River Road Thornton Cleveleys  Thornton Cleveleys FY55LR 01/06/23 to 30/06/23,Electricity
30/07/2023,People and Places,Cultural and Related Services,132A,Corona Energy Retail 4 Limited,19/07/2023,PE151356,277.37,1610004742399 River Road Thornton Cleveleys  Thornton Cleveleys FY55LR 01/06/23 to 30/06/23,Electricity
30/07/2023,People and Places,Cultural and Related Services,132A,Corona Energy Retail 4 Limited,19/07/2023,PE151362,180.90,1610004742431 Visitors Centre River Road  Thornton Cleveleys FY55LR 01/06/23 to 30/06/23 E,Electricity
30/07/2023,People and Places,Environmental Services,132B,Corona Energy Retail 4 Limited,19/07/2023,PE151355,580.25,1610004665168 Public Conven Public Conven  Thornton-Cleveleys FY51BW 01/06/23 to 30/06/23,Electricity
30/07/2023,People and Places,Environmental Services,132B,Corona Energy Retail 4 Limited,19/07/2023,PE151351,710.28,1610004313728 Public Convenience Off  Queensway Poulton-Le-Fylde FY67DF 01/06/23 to 30/06/23 E,Electricity
30/07/2023,People and Places,Environmental Services,132B,Corona Energy Retail 4 Limited,19/07/2023,PE151358,137.47,1610023232505 Public Conveniences Public  Conveniences Garstang PR31EA 01/06/23 to 30/06/23,Electricity
30/07/2023,People and Places,Environmental Services,132B,Corona Energy Retail 4 Limited,19/07/2023,PE151346,26.66,1610004421200 Pumping Station 2 New Lane  Thornton Cleveleys FY55NH 01/06/23 to 30/06/23 E,Electricity
30/07/2023,People and Places,Environmental Services,132B,Corona Energy Retail 4 Limited,19/07/2023,PE151348,25.74,1610004421042 Pumping Station;1 New Lane  Thornton Cleveleys FY55NS 01/06/23 to 30/06/23 E,Electricity
30/07/2023,People and Places,Environmental Services,132B,Corona Energy Retail 4 Limited,19/07/2023,PE151361,379.10,1610004742413 Stanah Pumphouse 11 River  Road Thornton Cleveleys FY55LR 01/06/23 to 30/06/23 E,Electricity
30/07/2023,Resources,Cultural and Related Services,132A,Visual Print and Design Ltd,21/07/2023,RS151473,210.00,3.2m feather flag with water-fillable base``Event here today`` artwork,Special Events
30/07/2023,People and Places,Planning and Development Servs,132C,Visual Print and Design Ltd,11/07/2023,PE150784,360.00,Feather flag for Public Consultation event,Town Centre Strategy Fund
30/07/2023,Resources,Cultural and Related Services,132A,Visual Print and Design Ltd,13/07/2023,RS151208,640.00,HAF SUMMER BROCHURES1000 x HAF Summer ages 12-16 - A5 4pp - 1202000 x HAF Summer under 12s - A5 12pp - 520,Promotions - General
30/07/2023,People and Places,Cultural and Related Services,132A,Miles Bramwell Admin Services T/A Slimming World,28/07/2023,PE151471,3510.00,Places on Slimming World for the Adult Wyre Weight Management Programme 2023/24,Weight Management Programme
30/07/2023,People and Places,Cultural and Related Services,132A,Miles Bramwell Admin Services T/A Slimming World,13/07/2023,PE150718,2970.00,Places on the Wyre adult weight management programme with Slimming World for 2023,Weight Management Programme
30/07/2023,Resources,Support Services,135B,Karen Openshaw Consultancy,13/07/2023,RS151181,520.00,Listening Services until March 22024,Occupational Health Fees
30/07/2023,People and Places,"Cultural, Environ and Planning",137B,Purcell Architecture Limited,06/07/2023,PE150941,6432.19,Fleetwood Market.  Annex Roof.  Structural Design/Analysis to facilitate replacement roof and PV Array (PSDS Works).  Includes review of existing/proposed loads.,Consultants Fees (New CCR)
30/07/2023,People and Places,"Cultural, Environ and Planning",137B,Purcell Architecture Limited,06/07/2023,PE150939,928.13,"Fleetwood Market Consultants Fees 2023/24.  This Order replaces the following outstanding Orders: PEO0025404, PEO0025405, PEO0025427 and PEO0025528",Consultants Fees (New CCR)
30/07/2023,People and Places,"Cultural, Environ and Planning",137B,Purcell Architecture Limited,06/07/2023,PE150940,2000.00,Fleetwood Market.  Consultant Fees 2023/24.  This new Order replaces PEO0025425,Consultants Fees (New CCR)
30/07/2023,People and Places,"Cultural, Environ and Planning",137B,Purcell Architecture Limited,31/07/2023,PE151739,2041.43,Fleetwood Market (RIBA 5-7) Purcell Sub Consultants (QS + Structural Eng),Consultants Fees (New CCR)
30/07/2023,People and Places,"Cultural, Environ and Planning",137B,Purcell Architecture Limited,31/07/2023,PE151741,12117.66,Fleetwood Market.  Detailed Structural Engineering Design (Birdcage+Annex Works).  Includes Purcell Admin Fee.,Consultants Fees (New CCR)
30/07/2023,People and Places,"Cultural, Environ and Planning",137B,Purcell Architecture Limited,31/07/2023,PE151740,2122.63,Fleetwood Market.  Consultant Fees 2023/24.  This new Order replaces PEO0025425,Consultants Fees (New CCR)
30/07/2023,People and Places,"Cultural, Environ and Planning",137B,Purcell Architecture Limited,04/07/2023,PE150853,10000.00,"Fleetwood Market Consultants Fees 2023/24.  This Order replaces the following outstanding Orders: PEO0025404, PEO0025405, PEO0025427 and PEO0025528",Consultants Fees (New CCR)
30/07/2023,People and Places,"Cultural, Environ and Planning",137B,Purcell Architecture Limited,04/07/2023,PE150854,2041.43,Fleetwood Market (RIBA 5-7) Purcell Sub Consultants (QS + Structural Eng),Consultants Fees (New CCR)
30/07/2023,People and Places,Parking Services,133F,CHIPSIDE LTD,18/07/2023,PE151383,957.03,provision of notice processing services 1 April 2023 - 31 March 2024; including postage,Private Contractors
30/07/2023,People and Places,Parking Services,133F,CHIPSIDE LTD,17/07/2023,PE150908,15.00,Provide 2 no. 500 Mb SIMS for Wyre handheld units - 1 April 2023 - 31 March 2024,Maintenance of Tools or Equipment
30/07/2023,People and Places,Parking Services,133F,CHIPSIDE LTD,31/07/2023,PE151481,15.00,Provide 2 no. 500 Mb SIMS for Wyre handheld units - 1 April 2023 - 31 March 2024,Maintenance of Tools or Equipment
30/07/2023,People and Places,Parking Services,133F,CHIPSIDE LTD,05/07/2023,PE150907,64.10,Wyre Council bank transaction fees 1 April 2023 - 31 March 2024,Private Contractors
30/07/2023,Resources,Environmental Services,132B,VODAFONE LIMITED,25/07/2023,RS151372,12.53,Monthly Mobile Charges,Mobile Devices
30/07/2023,Resources,Housing General Fund,134A,VODAFONE LIMITED,25/07/2023,RS151372,36.00,Monthly Mobile Charges,Mobile Devices
30/07/2023,Resources,Support Services,135B,VODAFONE LIMITED,25/07/2023,RS151372,36.00,Monthly Mobile Charges,Mobile Devices
30/07/2023,Resources,Support Services,135B,VODAFONE LIMITED,25/07/2023,RS151372,120.00,Monthly Mobile Charges,Mobile Devices
30/07/2023,Resources,Support Services,135B,VODAFONE LIMITED,25/07/2023,RS151372,60.00,Monthly Mobile Charges,Mobile Devices
30/07/2023,Resources,Support Services,135B,VODAFONE LIMITED,25/07/2023,RS151372,156.00,Monthly Mobile Charges,Mobile Devices
30/07/2023,Resources,Support Services,135B,VODAFONE LIMITED,25/07/2023,RS151372,12.00,Monthly Mobile Charges,Mobile Devices
30/07/2023,Resources,Cultural and Related Services,132A,VODAFONE LIMITED,25/07/2023,RS151372,12.00,Monthly Mobile Charges,Mobile Devices
30/07/2023,Resources,Cultural and Related Services,132A,VODAFONE LIMITED,25/07/2023,RS151372,24.00,Monthly Mobile Charges,Mobile Devices
30/07/2023,Resources,Housing General Fund,134A,VODAFONE LIMITED,25/07/2023,RS151372,72.00,Monthly Mobile Charges,Mobile Devices
30/07/2023,Resources,Housing General Fund,134A,VODAFONE LIMITED,25/07/2023,RS151372,32.00,Monthly Mobile Charges,Mobile Devices
30/07/2023,Resources,Support Services,135B,VODAFONE LIMITED,25/07/2023,RS151372,36.00,Monthly Mobile Charges,Mobile Devices
30/07/2023,Resources,Support Services,135B,VODAFONE LIMITED,25/07/2023,RS151372,289.03,Monthly Mobile Charges,Mobile Devices
30/07/2023,Resources,Support Services,135B,VODAFONE LIMITED,25/07/2023,RS151372,24.20,Monthly Mobile Charges,Mobile Devices
30/07/2023,Resources,Support Services,135B,VODAFONE LIMITED,25/07/2023,RS151372,28.53,Monthly Mobile Charges,Mobile Devices
30/07/2023,Resources,Support Services,135B,VODAFONE LIMITED,25/07/2023,RS151372,36.66,Monthly Mobile Charges,Mobile Devices
30/07/2023,Resources,Support Services,135B,VODAFONE LIMITED,25/07/2023,RS151372,20.00,Monthly Mobile Charges,Mobile Devices
30/07/2023,Resources,Support Services,135B,VODAFONE LIMITED,25/07/2023,RS151372,176.53,Monthly Mobile Charges,Mobile Devices
30/07/2023,Resources,Central Services to the Public,131C,VODAFONE LIMITED,25/07/2023,RS151372,12.00,Monthly Mobile Charges,Mobile Devices
30/07/2023,Resources,Corporate and Democratic Core,131A,VODAFONE LIMITED,25/07/2023,RS151372,8.80,Monthly Mobile Charges,Mobile Devices
30/07/2023,Resources,Environmental Services,132B,VODAFONE LIMITED,25/07/2023,RS151372,84.00,Monthly Mobile Charges,Mobile Devices
30/07/2023,Resources,Support Services,135B,VODAFONE LIMITED,25/07/2023,RS151372,28.00,Monthly Mobile Charges,Mobile Devices
30/07/2023,Resources,Support Services,135B,VODAFONE LIMITED,25/07/2023,RS151372,80.66,Monthly Mobile Charges,Mobile Devices
30/07/2023,Resources,Support Services,135B,VODAFONE LIMITED,25/07/2023,RS151372,50.84,Monthly Mobile Charges,Mobile Devices
30/07/2023,Resources,Support Services,135B,VODAFONE LIMITED,25/07/2023,RS151372,48.00,Monthly Mobile Charges,Mobile Devices
30/07/2023,Resources,Support Services,135B,VODAFONE LIMITED,25/07/2023,RS151372,12.00,Monthly Mobile Charges,Mobile Devices
30/07/2023,Resources,Support Services,135B,VODAFONE LIMITED,25/07/2023,RS151372,24.33,Monthly Mobile Charges,Mobile Devices
30/07/2023,Resources,Support Services,135B,VODAFONE LIMITED,25/07/2023,RS151372,168.33,Monthly Mobile Charges,Mobile Devices
30/07/2023,Resources,Support Services,135B,VODAFONE LIMITED,25/07/2023,RS151372,208.33,Monthly Mobile Charges,Mobile Devices
30/07/2023,Resources,Central Services to the Public,131C,VODAFONE LIMITED,25/07/2023,RS151372,24.00,Monthly Mobile Charges,Mobile Devices
30/07/2023,Resources,Cultural and Related Services,132A,VODAFONE LIMITED,25/07/2023,RS151372,24.00,Monthly Mobile Charges,Mobile Devices
30/07/2023,Resources,Cultural and Related Services,132A,VODAFONE LIMITED,25/07/2023,RS151372,12.00,Monthly Mobile Charges,Mobile Devices
30/07/2023,People and Places,Cultural and Related Services,132A,Knight Rigging Services Ltd,04/07/2023,PE150876,1376.20,Pit Barrier Hire - Marine Hall,Hire of Tools or Equipment
30/07/2023,People and Places,"Cultural, Environ and Planning",137B,Susannah Bleakley Consulting,06/07/2023,PE150935,7461.65,ECO-CoBS Project,Consultants Fees (New CCR)
30/07/2023,People and Places,Public Transport,133G,George Hewitt Fabrications,17/07/2023,PE151338,700.00,2 Galvanised Flag pole brackets,Ferry Dock Maintenance
30/07/2023,People and Places,Parking Services,133F,George Hewitt Fabrications,17/07/2023,PE151338,216.00,1 Catcher post for height barrier,"Paths, Roads and Car Park Mtnce Annual"
30/07/2023,People and Places,Parking Services,133F,George Hewitt Fabrications,17/07/2023,PE151338,160.00,8 Barrier catchers,"Paths, Roads and Car Park Mtnce Annual"
30/07/2023,People and Places,Parking Services,133F,George Hewitt Fabrications,17/07/2023,PE151338,35.00,Welding of up sign post,"Paths, Roads and Car Park Mtnce Annual"
30/07/2023,People and Places,Environmental Services,132B,George Hewitt Fabrications,17/07/2023,PE151338,550.00,2 Stainless steel Defibrillator post,Materials and Consumables
30/07/2023,People and Places,Environmental Services,132B,George Hewitt Fabrications,17/07/2023,PE151338,700.00,2 Stainless Steel Bollards,Materials and Consumables
30/07/2023,People and Places,Parking Services,133F,George Hewitt Fabrications,17/07/2023,PE151338,1550.00,1 complete 8m height barrier,"Paths, Roads and Car Park Mtnce Annual"
30/07/2023,People and Places,Parking Services,133F,Park Now Limited,31/07/2023,PE151317,671.42,RingGo Fees for 1 April 2023 - 31 March 2024 - service charges - text summary charges - text reminder charges - card processing fess,Other Parking Fees and Commission
30/07/2023,People and Places,Support Services,135B,The Pitchmark Group Ltd,25/07/2023,PE151498,3540.00,"Supply and deliver paint quotation QTE-9206  Delivery to Wyre Council, Copse Road, Fleetwood, Lancashire, FY7 6RP",Materials and Consumables
30/07/2023,People and Places,Planning and Development Servs,132C,PSM Group,28/07/2023,PE151708,520.00,SIGN FITTED ON RAILINGS REQUESTED AT FORUM MEETING,Promotions - General
30/07/2023,People and Places,Support Services,135B,Amazon Business,28/07/2023,PE151703,20.15,16 Black folders @ 4.03 each,Materials and Consumables
30/07/2023,Resources,Support Services,135B,Amazon Business,24/07/2023,RS151327,41.76,Order # 205-4505719-5333127 Payment request # 1QMP-7F4D-1MMK x4 Combination Padlock Heavy Duty Locks,Comp Hardware Purchases
30/07/2023,Resources,Support Services,135B,Amazon Business,21/07/2023,RS151256,2.91,Plain Round Real Cork Coasters (6).,Purchase Furniture
30/07/2023,Resources,Support Services,135B,Amazon Business,24/07/2023,RS151270,17.30,"UGREEN USB Serial Cable USB to RS232 DB9 9 pin Converter Cable for Connecting Cisco Routers and Switches,Celestron Telescope Nexstar hand Controller, Extron Crestron Products with PL2303 Chipset (2m).",Comp Hardware Purchases
30/07/2023,Resources,Support Services,135B,Amazon Business,24/07/2023,RS150503,20.98,"Cisco Console Cable USB to RJ45 Cable FTDI for Windows 8, 7, Vista,MAC, Linux RS232 6 Ft (Blue).",Comp Hardware Purchases
30/07/2023,Resources,Support Services,135B,Amazon Business,24/07/2023,RS150709,196.64,Samsung 24inch 1920 x1080 Bezelless Monitor IPS. Item model number: LS24R650FDUXXU.,Comp Hardware Purchases
30/07/2023,Resources,Support Services,135B,Amazon Business,24/07/2023,RS150983,32.08,"Logitech K400 Plus Wireless Touch TV Keyboard With Easy Media Control and Built-in Touchpad, HTPC Keyboard for PC-connected TV, Windows, Android, Chrome OS, Laptop, QWERTY UK English Layout - Black.",Comp Hardware Purchases
30/07/2023,People and Places,Support Services,135B,Amazon Business,24/07/2023,PE150354,24.99,"Reference # INV-GB-161271101-2023-2260 Order date: 12 June 2023 Order # 205-3903657-5778700 10Gtek External Mini SAS HD SFF-8644 to Mini SAS SFF-8088 Hybrid Cable, 3-Meter ASIN: B01NA6AA1S",Comp Hardware Purchases
30/07/2023,People and Places,Support Services,135B,Amazon Business,28/07/2023,PE151689,44.33,16 Black folders @ 4.03 each,Materials and Consumables
30/07/2023,Resources,Support Services,135B,Amazon Business,11/07/2023,RS150511,114.13,"ASRock Intel Arc A380 Challenger ITX 6GB OC, 6GB DDR6, PCIe4, HDMI, 3 DP, 2250MHz Clock, 0dB Cooling, Compact Design.",Comp Hardware Purchases
30/07/2023,Resources,Support Services,135B,Amazon Business,21/07/2023,RS151190,42.48,ENERGISER INDUSTRIAL C TYPE BATTERIES (PACK OF 12),Purchase of Tools or Equipment
30/07/2023,Resources,Support Services,135B,Amazon Business,24/07/2023,RS151432,1146.64,NETGEAR Nighthawk 5G Router With Sim Slot Unlocked (MR5200) | Mobile WiFi 6 Router | MiFi Device | Fast and Reliable WiFi Anywhere | Up to 1.8Gbps.,Comp Hardware Purchases
30/07/2023,Resources,Support Services,135B,Amazon Business,10/07/2023,RS150986,2.29,Silverline Steel Rule 300mm (MT66),Stationery
30/07/2023,Resources,Support Services,135B,Amazon Business,10/07/2023,RS150944,5.00,Osco Bamboo Square Pen Pot.,Stationery
30/07/2023,Resources,Support Services,135B,Amazon Business,17/07/2023,RS151268,15.99,"SEYMAC stock iPad Mini 6 Case 2021 8.3 Inch, Shockproof Full Body Protective Case with Screen Protector Pencil Holder [360 Rotating Stand] & Hand/Shoulder Strap for iPad Mini 6th Generation (Black).",Computer Stationery and Consumables
30/07/2023,Resources,Cultural and Related Services,132A,Amazon Business,19/07/2023,RS151324,7.99,"beach balls, hawaiian garlands, novelty sunglasses and giant ice cream cones",Exhibitions and Events
30/07/2023,Resources,Cultural and Related Services,132A,Amazon Business,19/07/2023,RS151322,3.74,"beach balls, hawaiian garlands, novelty sunglasses and giant ice cream cones",Exhibitions and Events
30/07/2023,Resources,Cultural and Related Services,132A,Amazon Business,19/07/2023,RS151321,9.96,"beach balls, hawaiian garlands, novelty sunglasses and giant ice cream cones",Exhibitions and Events
30/07/2023,Resources,Cultural and Related Services,132A,Amazon Business,19/07/2023,RS151391,19.16,"beach balls, hawaiian garlands, novelty sunglasses and giant ice cream cones",Exhibitions and Events
30/07/2023,People and Places,Environmental Services,132B,Amazon Business,31/07/2023,PE151706,24.74,Safety boots,Protective Clothing
30/07/2023,People and Places,Environmental Services,132B,Amazon Business,31/07/2023,PE151704,18.32,Clipboards,Street Cleansing Projects
30/07/2023,People and Places,Support Services,135B,Amazon Business,31/07/2023,PE151705,13.24,15 white folders @ 3.31 each,Materials and Consumables
30/07/2023,People and Places,Support Services,135B,Amazon Business,31/07/2023,PE151722,36.41,15 white folders @ 3.31 each,Materials and Consumables
30/07/2023,People and Places,Support Services,135B,Amazon Business,21/07/2023,PE151429,10.99,Ribbon and scissors,Public Relations
30/07/2023,Resources,Support Services,135B,Amazon Business,11/07/2023,RS150669,99.16,"AMD Ryzen 5 5600 Desktop Processor (6-core/12-thread, 35 MB cache, up to 4.4 GHz max boost).",Comp Hardware Purchases
30/07/2023,Resources,Support Services,135B,Amazon Business,11/07/2023,RS150668,49.96,"Antec 550W EarthWatts Gold Pro Power Supply, 80 Plus Gold, Semi-Modular, Seven Year Warranty.",Comp Hardware Purchases
30/07/2023,Resources,Support Services,135B,Amazon Business,31/07/2023,RS151659,19.84,"Samsung Galaxy Official 25W Travel Adapter, Super-Fast Charging (UK Plug without USB Type-C Cable), Black.",Comp Hardware Purchases
30/07/2023,Resources,Support Services,135B,Amazon Business,11/07/2023,RS150627,28.28,VILEDA ULTRA MAX REFILL,Purchase of Tools or Equipment
30/07/2023,Resources,Support Services,135B,Amazon Business,11/07/2023,RS150712,12.12,VILEDA ULTRA MAX REFILL,Purchase of Tools or Equipment
30/07/2023,Resources,Support Services,135B,Amazon Business,12/07/2023,RS151081,34.60,"B2C Flowerpot Round Plastic plant pot Crystal Modern Decorative Large  (Gold, 30 cm)",Purchase Furniture
30/07/2023,Resources,Support Services,135B,Amazon Business,12/07/2023,RS151032,13.42,Long Rake Spar Flamingo Gravel Decorative Aggregates Slate Chippings Garden Gravel 14-20mm 20 Kg,Purchase Furniture
30/07/2023,Resources,Support Services,135B,Amazon Business,11/07/2023,RS150667,22.70,"ARCTIC F12 PWM PST (5 Pack) - 120 mm PWM PST Case Fan with PWM Sharing Technology (PST), quiet motor, Computer, Fan Speed: 230-1350 RPM - Black.",Comp Hardware Purchases
30/07/2023,Resources,Support Services,135B,Amazon Business,11/07/2023,RS150666,29.98,"Corsair CMK16GX4M2B3200C16 Vengeance LPX 16 GB (2 x 8 GB) DDR4 3200 MHz C16 XMP 2.0 High Performance Desktop Memory Kit, Black.",Comp Hardware Purchases
30/07/2023,Resources,Support Services,135B,Amazon Business,11/07/2023,RS150521,89.99,"MSI B550-A PRO Motherboard ATX - Supports AMD Ryzen 3rd Gen Processors, AM4, DDR4 Boost (4400MHz/OC), 1 x PCIe 4.0/3.0 x16, 1 x PCIe 3.0/3.0 x16, 1 x M.2 Gen4 x4, 1 x M.2 Gen3 x4, HDMI, Gigabit LAN.",Comp Hardware Purchases
30/07/2023,Resources,Support Services,135B,Amazon Business,17/07/2023,RS151267,8.32,"OneLeaf 80PCS Reusable Cable Ties, Black Adjustable 150mm Cord Organizer Ties, Multi-Purpose Hook Loop Cable Management Wire Ties for Organizing Home, Office, Data Centers.",Materials and Consumables
30/07/2023,Resources,Support Services,135B,Amazon Business,04/07/2023,RS150823,18.34,Milwaukee 4932464599 GEN III Magnetic Tape Measure 5m (Width 27mm) Metric only.,Purchase of Tools or Equipment
30/07/2023,Resources,Support Services,135B,Amazon Business,17/07/2023,RS151271,38.94,Invision Ultra Strong TV Wall Bracket Mount Double Arm Tilt & Swivel for 37-75 Inch (94-190.5cm) LED LCD OLED Plasma & Curved Screens - Up to VESA 600mm(w) x 400mm(h) - Max Load 50kg (HDTV-DXL).,Purchase of Tools or Equipment
30/07/2023,Resources,Support Services,135B,Amazon Business,10/07/2023,RS150944,3.13,Westcott Professional Safety Cutter Knife.,Purchase of Tools or Equipment
30/07/2023,Resources,Support Services,135B,Amazon Business,10/07/2023,RS150984,116.64,IDP 650634 Color Ribbon - YMCKO - 250 prints by IDP.,Computer Stationery and Consumables
30/07/2023,Resources,Support Services,135B,Amazon Business,10/07/2023,RS150985,10.62,"TriPole USB Desk Fan, 3 Speeds Adjustable Strong Wind Table Fan, 360� Rotation Mini Personal Fan, 5.5 Inches Portable Cooling Fan for Desktop Office Home Bedroom Car Outdoor Camping, Black.",Purchase Furniture
30/07/2023,Resources,Support Services,135B,Amazon Business,11/07/2023,RS150510,19.98,"Lacdo Hard Carrying Case for SanDisk Extreme PRO/SanDisk Extreme Portable SSD 500GB 1TB 2TB 4TB USB-C EVA External Solid State Drive Shockproof Water Repellent Protective Storage Travel Bag, Black.",Purchase of Tools or Equipment
30/07/2023,Resources,Support Services,135B,Amazon Business,11/07/2023,RS150508,16.64,"AIPIE Laptop Sleeve 15-15.6 Inch Notebook Case Bump Absorb Briefcase Carrying Bag Compatible with MacBook, Acer, Asus, Dell, Lenovo, Microsoft, HP Durable Laptop Cover.",Purchase of Tools or Equipment
30/07/2023,Resources,Support Services,135B,Amazon Business,11/07/2023,RS150729,21.64,"UGREEN Hard Drive Case, Portable External Hard Drive Case for 2.5 Inch HDD SSD, Waterproof Protective Storage Pouch EVA Compatible with Solid State Drive WD Western Seagate Toshiba Lacie T5 T3.",Computer Stationery and Consumables
30/07/2023,Resources,Support Services,135B,Amazon Business,11/07/2023,RS150507,5.82,Oksdown Reusable Cable Ties Black 100 Pack Cable Straps Adjustable Releasable Wire Ties Hook and Loop Cable Tie Tidy for Desk Compatible PC Cable Management Cord Organiser.,Materials and Consumables
30/07/2023,Resources,Support Services,135B,Amazon Business,11/07/2023,RS150509,25.20,Brother 12 mm Tape - Black/White.,Materials and Consumables
30/07/2023,Resources,Support Services,135B,Amazon Business,11/07/2023,RS150543,5.49,"Thermal Grizzly - Kryonaut thermal paste - For cooling all processors, graphics cards and heat sinks in computers and consoles (1 Gram).",Materials and Consumables
30/07/2023,People and Places,Support Services,135B,Amazon Business,19/07/2023,PE151427,4.45,"Fan and special request stationery,",Stationery
30/07/2023,People and Places,Cultural and Related Services,132A,Amazon Business,19/07/2023,PE150027,9.98,"display panels , gaffer tape , Velcro , for countryside rangers - the big green event",Materials and Consumables
30/07/2023,People and Places,Environmental Services,132B,Amazon Business,10/07/2023,PE150769,50.81,"Fan for Copse Road Meeting Room ,  for team meetings",Purchase of Tools or Equipment
30/07/2023,People and Places,Environmental Services,132B,Amazon Business,10/07/2023,PE150768,11.22,3 x long bladed scissors for Asbestos collection,Materials and Consumables
30/07/2023,People and Places,Support Services,135B,Amazon Business,25/07/2023,PE151444,14.16,kettle for Fleetwood Mobile Crew brew room,Materials and Consumables
30/07/2023,People and Places,Cultural and Related Services,132A,Amazon Business,26/07/2023,PE151392,57.49,Camera kit,Daywork Materials (Excl.Tyres)
30/07/2023,Resources,Support Services,135B,Amazon Business,21/07/2023,RS151466,21.22,EasyAcc Power Bank Bag For Anker PowerCore Essential 20000 Case Shockproof EVA Hard Drive Case 2.5 Compatible Cable Earphone SD Card U Disk HDD SSD Like WD My Passport Lacie Porsche Rugged Samsung 5T.,Computer Stationery and Consumables
30/07/2023,Resources,Support Services,135B,Amazon Business,21/07/2023,RS151482,24.52,RLSOCO Hard Case for NETGEAR Nighthawk M2/M5/M6/M6 Pro Mobile wifi Router MR2100/MR5200/MR6150/MR6450/MR6500.,Computer Stationery and Consumables
30/07/2023,People and Places,Support Services,135B,Amazon Business,10/07/2023,PE150758,13.24,"Fan and special request stationery,",Stationery
30/07/2023,People and Places,Support Services,135B,Amazon Business,10/07/2023,PE150780,5.62,"Fan and special request stationery,",Stationery
30/07/2023,Resources,Support Services,135B,Amazon Business,21/07/2023,RS151443,49.80,TESA POWER BOND ULTRA STRONG,Responsive Building Maintenance
30/07/2023,Resources,Support Services,135B,Amazon Business,21/07/2023,RS151465,1.87,TESA MASKING TAPE,Responsive Building Maintenance
30/07/2023,Resources,Support Services,135B,Amazon Business,21/07/2023,RS150163,19.16,"13`` Selfie Ring Light with Tripod Stand & Phone Holder, 74``/187cm Tall Large LED Ringlight Dimmable 3-Color Floor & Desk Circle Lights for Makeup TikTok YouTube Video Vlog Live Streaming Zoom Meeting",Computer Stationery and Consumables
30/07/2023,Resources,Support Services,135B,Amazon Business,14/07/2023,RS151187,4.04,VILEDA ULTRA MAX REFILL,Purchase of Tools or Equipment
30/07/2023,Resources,Support Services,135B,Amazon Business,18/07/2023,RS151365,23.98,REY ADAGIO A3 80GSM YELLOW PAPER (1REAM 500SHEETS),Purchase of Tools or Equipment
30/07/2023,People and Places,Support Services,135B,G2V Recruitment Group Ltd T/A G2 Recruitment Solu,13/07/2023,PE150946,1657.20,Payment of invoice 124981 - G Ivett Period End 02/07/2023,Agency Staff
30/07/2023,Resources,Support Services,135B,G2V Recruitment Group Ltd T/A G2 Recruitment Solu,21/07/2023,RS150184,1110.35,Payment of invoice 123380 - G Ivett Period End 04/06/2023,Agency Staff
30/07/2023,Resources,Support Services,135B,G2V Recruitment Group Ltd T/A G2 Recruitment Solu,18/07/2023,RS151398,1654.05,Payment of invoice - NO - 124114 / G Ivett Period End 18/06/2023,Agency Staff
30/07/2023,Resources,Support Services,135B,G2V Recruitment Group Ltd T/A G2 Recruitment Solu,18/07/2023,RS151399,1649.25,Payment of invoice - 125359 - G Ivett Period End 09,Agency Staff
30/07/2023,Resources,Support Services,135B,G2V Recruitment Group Ltd T/A G2 Recruitment Solu,13/07/2023,RS150786,1651.35,Payment of invoice 124490 - G Ivett Period End 25/06/2023,Agency Staff
30/07/2023,Resources,Support Services,135B,G2V Recruitment Group Ltd T/A G2 Recruitment Solu,24/07/2023,RS151445,1663.05,payment of invoice 125747 - G Ivett Period End 16/07/2023,Agency Staff
30/07/2023,Resources,Support Services,135B,Park Avenue Recruitment Ltd,26/07/2023,RS151658,2311.70,Appointment of an interim Estates Surveyor,Agency Staff
30/07/2023,Resources,Support Services,135B,Park Avenue Recruitment Ltd,26/07/2023,RS151657,1950.00,Appointment of an interim Estates Surveyor,Agency Staff
30/07/2023,Resources,Support Services,135B,Park Avenue Recruitment Ltd,11/07/2023,RS150686,2260.35,Appointment of an interim Estates Surveyor,Agency Staff
30/07/2023,Resources,Support Services,135B,Park Avenue Recruitment Ltd,11/07/2023,RS150687,1705.85,Appointment of an interim Estates Surveyor,Agency Staff
30/07/2023,Resources,Support Services,135B,Park Avenue Recruitment Ltd,11/07/2023,RS150687,94.35,Appointment of an interim Estates Surveyor,Agency Staff
30/07/2023,Resources,Support Services,135B,Park Avenue Recruitment Ltd,11/07/2023,RS150792,1651.10,Appointment of an interim Estates Surveyor,Agency Staff
30/07/2023,Resources,Support Services,135B,Park Avenue Recruitment Ltd,19/07/2023,RS150974,2157.20,Appointment of an interim Estates Surveyor,Agency Staff
30/07/2023,Resources,Support Services,135B,Park Avenue Recruitment Ltd,19/07/2023,RS150791,1662.60,Appointment of an interim Estates Surveyor,Agency Staff
30/07/2023,People and Places,Planning and Development Servs,132C,Capita Property and Infrastructure Ltd,10/07/2023,PE150730,4586.50,Planning application support provided by Capita (May2023),Consultants Fees
30/07/2023,People and Places,Cultural and Related Services,132A,Carlton Entertainment,27/07/2023,PE151646,6459.17,Cher - Strong Enough 23/06/23 ticket sales,Refund of Ticket Sales to Ext Promoters
30/07/2023,Resources,Support Services,135B,Michael Page International Recruitment Limited,12/07/2023,RS151131,891.48,"Paul Cooper, Building Control Manager - staffing and expense cost",Agency Staff
30/07/2023,Resources,Support Services,135B,Michael Page International Recruitment Limited,05/07/2023,RS150767,200.18,"Paul Cooper, Building Control Manager - staffing and expense cost",Agency Staff
30/07/2023,Resources,Support Services,135B,Michael Page International Recruitment Limited,05/07/2023,RS150838,891.48,"Paul Cooper, Building Control Manager - staffing and expense cost",Agency Staff
30/07/2023,Resources,Support Services,135B,Michael Page International Recruitment Limited,04/07/2023,RS150502,891.48,"Paul Cooper, Building Control Manager - staffing and expense cost",Agency Staff
30/07/2023,Resources,Support Services,135B,Michael Page International Recruitment Limited,04/07/2023,RS150754,891.48,"Paul Cooper, Building Control Manager - staffing and expense cost",Agency Staff
30/07/2023,People and Places,Cultural and Related Services,132A,Melrose Development Services Ltd,06/07/2023,PE150820,1428.25,Marsh Mill Rental. Period 1 July 2023- 30 September 2023. Marsh Mill service charge The Mill Thornton. Period 1 July 2023- 30 September 2023,Private Contractors
30/07/2023,People and Places,Planning and Development Servs,132C,Drax Energy Solutions Limited,11/07/2023,PE150991,127.42,"3200000534700 Unit 2, Dock Ave, Fleetwood, FY7 6PS 01/06/2023-30/06/2023",Electricity
30/07/2023,People and Places,Planning and Development Servs,132C,Drax Energy Solutions Limited,11/07/2023,PE150993,129.78,"3200000534728 Unit 4, Dock Ave, Fleetwood, FY7 6PS 01/06/2023-30/06/2023",Electricity
30/07/2023,People and Places,Planning and Development Servs,132C,Drax Energy Solutions Limited,11/07/2023,PE150992,128.10,"3200000534719 Unit 3, Dock Ave, Fleetwood, FY7 6PS 01/06/2023-30/06/2023",Electricity
30/07/2023,People and Places,Planning and Development Servs,132C,Drax Energy Solutions Limited,11/07/2023,PE151001,122.70,"3200000534807 LL Supply c/o ABP Port Office, Dock Ave, Fleetwood, FY7 6PS 01/06/2023-30/06/2023",Electricity
30/07/2023,People and Places,Planning and Development Servs,132C,Drax Energy Solutions Limited,11/07/2023,PE151000,127.42,"3200000534791 Unit 10, Dock Ave, Fleetwood, FY7 6PS 01/06/2023-30/06/2023",Electricity
30/07/2023,People and Places,Planning and Development Servs,132C,Drax Energy Solutions Limited,11/07/2023,PE150999,128.43,"3200000534782 Unit 9, Dock Ave, Fleetwood, FY7 6PS 01/06/2023-30/06/2023",Electricity
30/07/2023,People and Places,Planning and Development Servs,132C,Drax Energy Solutions Limited,11/07/2023,PE150998,132.48,"3200000534773 Unit 8, Dock Ave, Fleetwood, FY7 6PS 01/06/2023-30/06/2023",Electricity
30/07/2023,People and Places,Planning and Development Servs,132C,Drax Energy Solutions Limited,11/07/2023,PE150997,126.41,"3200000534764 Unit 7B, Dock Ave, Fleetwood, FY7 6PS 01/06/2023-30/06/2023",Electricity
30/07/2023,People and Places,Planning and Development Servs,132C,Drax Energy Solutions Limited,11/07/2023,PE150996,128.77,"3200000534755 Unit 7A, Dock Ave, Fleetwood, FY7 6PS 01/06/2023-30/06/2023",Electricity
30/07/2023,People and Places,Planning and Development Servs,132C,Drax Energy Solutions Limited,11/07/2023,PE150995,128.43,"3200000534746 Unit 6, Dock Ave, Fleetwood, FY7 6PS 01/06/2023-30/06/2023",Electricity
30/07/2023,People and Places,Planning and Development Servs,132C,Drax Energy Solutions Limited,20/07/2023,PE151425,1077.86,"3200000534694 1 Dock Ave, Fleetwood 01/06/23 to 30/06/23",Electricity
30/07/2023,People and Places,Planning and Development Servs,132C,Drax Energy Solutions Limited,20/07/2023,PE151425,3.33,"3200000534694 1 Dock Ave, Fleetwood 01/06/23 to 30/06/23",Electricity
30/07/2023,People and Places,Planning and Development Servs,132C,Drax Energy Solutions Limited,19/07/2023,PE151393,795.60,"3200000534694 1 Dock Ave, Fleetwood: 01/12/22 to 31/12/22",Electricity
30/07/2023,People and Places,Planning and Development Servs,132C,Drax Energy Solutions Limited,19/07/2023,PE151393,3.33,"3200000534694 1 Dock Ave, Fleetwood: 01/12/22 to 31/12/22",Electricity
30/07/2023,People and Places,Planning and Development Servs,132C,Drax Energy Solutions Limited,14/07/2023,PE151143,1111.65,"3200000534694 1 Dock Ave, Fleetwood 01/05/12 to 31/05/23",Electricity
30/07/2023,People and Places,Planning and Development Servs,132C,Drax Energy Solutions Limited,14/07/2023,PE151143,3.33,"3200000534694 1 Dock Ave, Fleetwood 01/05/12 to 31/05/23",Electricity
30/07/2023,People and Places,Planning and Development Servs,132C,Drax Energy Solutions Limited,11/07/2023,PE150994,128.10,"3200000534737 Unit 5, Dock Ave, Fleetwood, FY7 6PS 01/06/2023-30/06/2023",Electricity
30/07/2023,People and Places,Support Services,135B,HMA Tree Care,17/07/2023,PE151316,880.00,"Quote No: 400Site Address duck pond , Victoria road west , Thornton Cleveleys , Lancashire , FY5 3QET1 hybrid black poplar - remove branches extending towards highway back to main unions 120.00T2 White poplar Crown Lift to provide 4 metres cl",Special Maintenance - Trees
30/07/2023,People and Places,Support Services,135B,HMA Tree Care,17/07/2023,PE151336,200.00,"Quote No: 346Site Address parkland , Thornton gate , Cleveleys , Lancashire , FY5 1LET1 Sycamore Fell to ground level and remove all arisings 200.00Total Value: 200.00Vat(20%): 40.00Total Inc Vat: 240.00",Special Maintenance - Trees
30/07/2023,People and Places,Support Services,135B,HMA Tree Care,10/07/2023,PE150989,300.00,"Quote No: 405  Site Address Preesall Cemetery, cemetery lane , preesall, poulton le Fylde , Lancashire , FY6 0PH  G2 T1-5 Sycamore Fell to ground level and remove all arisings to 3ft stems 250.00 G9 option 1 T9 Sycamore Remove 1 branch back stem leaning",Special Maintenance - Trees
30/07/2023,People and Places,Support Services,135B,HMA Tree Care,10/07/2023,PE151008,220.00,"Quote No: 404 Surveyor: Ben Waller Site Ref No: 462   Site Address Barton square , Lancaster road , knott end on sea , poulton le Fylde , Lancashire , FY6 0BN   T1-2 Holly Crown Lift to provide 4 metres clearance from ground level on raised beds, reduce b",Special Maintenance - Trees
30/07/2023,People and Places,Highways,133B,HMA Tree Care,27/07/2023,PE151676,750.00,"Quote No: 345Site Address 16 , elm avenue , poulton LR Fylde , Lancashire , FY6 7SPT1 Sycamore Crown Lift to provide 4 metres clearance from ground level. Crown reduction to byupto to 2 metres.340.00T2 Sycamore Crown Lift to provide 4 metre",Maintenance of Trees and Shrubs
30/07/2023,People and Places,Environmental Services,132B,Contenur UK Ltd,24/07/2023,PE151479,5770.65,"240ltr Anthracite Grey Body c/w 0300 Green Lid,  2 standard wheels & axle, logo, in Virgin polymer  @ 22.63 per unit  Prices as per ESPO Contract Schedule 860ADD  Anticipated delivery ASAP  (can accept delivery any time, but please advise in advance if p","Provision of Bins, Boxes and Sacks"
30/07/2023,People and Places,Environmental Services,132B,Contenur UK Ltd,12/07/2023,PE151029,7943.13,"240ltr Anthracite Grey Body c/w 0801 Blue Lid, 2 standard wheels + axle, logo, in Virgin polymer @ 22.63 per unit","Provision of Bins, Boxes and Sacks"
30/07/2023,People and Places,Environmental Services,132B,Contenur UK Ltd,12/07/2023,PE151029,2172.48,"240ltr Anthracite Grey Body c/w 0300 Green Lid, 2 standard wheels & axle, logo, in Virgin polymer @ 22.63 per unitPrices as per ESPO Contract Schedule 860ADDAnticipated delivery ASAP (can accept delivery any time, but please advise in advan","Provision of Bins, Boxes and Sacks"
30/07/2023,People and Places,Cultural and Related Services,132A,Engie Power Limited,05/07/2023,PE150594,470.50,"1610004890636  Fishermans Walk, Lord St, Fleetwood, FY7 6DU 01/02/23 to 28/02/23 Est",Electricity
30/07/2023,People and Places,Environmental Services,132B,Engie Power Limited,17/07/2023,PE151214,116.31,"1640000258365 PC, River Road, Thornton  Cleveleys, FY5 5LR 01/06/23 - 30/06/23 E",Electricity
30/07/2023,People and Places,Cultural and Related Services,132A,Engie Power Limited,17/07/2023,PE151215,78.49,"1640000400837 PC, River Road, Thornton  Cleveleys, FY5 5LR 01/06/23 - 30/06/23 E",Electricity
30/07/2023,People and Places,Planning and Development Servs,132C,Engie Power Limited,17/07/2023,PE151213,50.51,"1640000947181 Kiosk 6, Fleetwood Market,  Adelaide St, Fleetwood, FY7 6AB 01/06/23 - 30/06/23 A",Electricity
30/07/2023,People and Places,Planning and Development Servs,132C,Engie Power Limited,17/07/2023,PE151216,49.23,"1640000947136 Kiosk 1, Fleetwood Market,  Adelaide St, Fleetwood, FY7 6AB 01/06/23 - 30/06/23 A",Electricity
30/07/2023,People and Places,Planning and Development Servs,132C,Engie Power Limited,17/07/2023,PE151212,80.26,"1640000947172 Kiosk 5, Fleetwood Market,  Adelaide St, Fleetwood, FY7 6AB 01/06/23 - 30/06/23 A",Electricity
30/07/2023,People and Places,Planning and Development Servs,132C,Engie Power Limited,17/07/2023,PE151211,154.36,"1640000947163 Kiosk 4, Fleetwood Market,  Adelaide St, Fleetwood, FY7 6AB 01/06/23 - 30/06/23 A",Electricity
30/07/2023,People and Places,Planning and Development Servs,132C,Engie Power Limited,17/07/2023,PE151210,53.88,"1640000947154 Kiosk 3, Fleetwood Market,  Adelaide St, Fleetwood, FY7 6AB 01/06/23 - 30/06/23 A",Electricity
30/07/2023,People and Places,Cultural and Related Services,132A,Engie Power Limited,17/07/2023,PE151218,278.64,"1640000118533 Feeder Pillar, Vicarage Rd,  Poulton le Fylde, FY6 7BE 01/06/23 - 30/06/23 A",Electricity
30/07/2023,People and Places,Planning and Development Servs,132C,Engie Power Limited,17/07/2023,PE151217,51.49,"1640000947145 Kiosk 2, Fleetwood Market,  Adelaie St, Fleetwood, FY7 6AB 01/06/23 - 30/06/23 A",Electricity
30/07/2023,People and Places,Environmental Services,132B,Engie Power Limited,17/07/2023,PE151242,186.80,"1610004933625 Springfield Pumping Station  17, Fleeetwood Road, Fleetwood, Lancashire, FY7 8TW 01/06/23 - 30/06/23 E",Electricity
30/07/2023,People and Places,Environmental Services,132B,Engie Power Limited,17/07/2023,PE151233,228.82,"1610004845313 Fleetwood Corp Cemetery,  Beach Rd, Fleetwood, FY7 8PH 01/06/23 - 30/06/23 E",Electricity
30/07/2023,People and Places,Environmental Services,132B,Engie Power Limited,17/07/2023,PE151232,105.84,"1610004845304 Fleetwood Corp Cemetery,  Beach Rd, Fleetwood, FY7 8PH 01/06/23 - 30/06/23 A",Electricity
30/07/2023,People and Places,Cultural and Related Services,132A,Engie Power Limited,17/07/2023,PE151250,93.71,"1630000841586 Garstang Tourist Info Ctr,  Unit 1, Cherestanc Sq, Preston, PR3 1EF 01/06/23 - 30/06/23 A",Electricity
30/07/2023,People and Places,Cultural and Related Services,132A,Engie Power Limited,17/07/2023,PE151234,101.67,"1610004775074 The Windmill, Fleetwood Rd  North, Thornton Cleveleys, FY5 4BP 01/06/23 - 30/06/23 A",Electricity
30/07/2023,People and Places,Cultural and Related Services,132A,Engie Power Limited,17/07/2023,PE151230,275.82,"1610004775083 The Windmill, Fleetwood Road  North, Thornton Cleveleys, FY5 4BP 01/06/23 - 30/06/23 A",Electricity
30/07/2023,People and Places,Cultural and Related Services,132A,Engie Power Limited,17/07/2023,PE151223,291.89,"1610004846558 Pump Station, The Esplanade,  Fleetwood, FY7 6HF 01/06/23 - 30/06/23 E",Electricity
30/07/2023,People and Places,Cultural and Related Services,132A,Engie Power Limited,17/07/2023,PE151227,250.75,"1610004846390 Pump House, Model Yacht Pond,  Laidleys Walk, Fleetwood, FY7 7JL 01/06/23 - 30/06/23 A",Electricity
30/07/2023,People and Places,Cultural and Related Services,132A,Engie Power Limited,17/07/2023,PE151240,393.02,"1610004897400 Ladies Bowls Pavilion,  Memorial Park, Fleetwood, FY7 7AE 01/06/23 - 30/06/23 E",Electricity
30/07/2023,People and Places,Cultural and Related Services,132A,Engie Power Limited,17/07/2023,PE151239,104.02,"1610004897394 Bowls House, Memorial Park,  Fleetwood, FY7 7AE 01/06/23 - 30/06/23 A",Electricity
30/07/2023,People and Places,Cultural and Related Services,132A,Engie Power Limited,17/07/2023,PE151246,216.07,"1610004897385 Tennis Pavillion, Memorial  Park, Fleetwood, FY7 7AE 01/06/23 - 30/06/23 E",Electricity
30/07/2023,People and Places,Cultural and Related Services,132A,Engie Power Limited,17/07/2023,PE151243,126.81,"1610004867488 Mount Pavilion, Mount Rd,  Fleetwood, FY7 6EZ 01/06/23 - 30/06/23 E",Electricity
30/07/2023,People and Places,Cultural and Related Services,132A,Engie Power Limited,17/07/2023,PE151249,126.86,"1610004867441 Mount Hotel, Mount Rd,  Fleetwood, FY7 6RA 01/06/23 - 30/06/23 E",Electricity
30/07/2023,People and Places,Cultural and Related Services,132A,Engie Power Limited,17/07/2023,PE151248,332.28,"1610004867432 Mount Hotel, Mount Rd,  Fleetwood, FY7 6RA 01/06/23 - 30/06/23 E",Electricity
30/07/2023,People and Places,Environmental Services,132B,Engie Power Limited,17/07/2023,PE151231,468.40,"1610004828771 Council Depot, Chatsworth Day  Centre, Chatsworth Ave, Fleetwood, FY7 8AP 01/06/23 - 30/06/23 E",Electricity
30/07/2023,People and Places,Environmental Services,132B,Engie Power Limited,17/07/2023,PE151229,194.01,"1610004846520 Boating Lake, Laidleys Walk,  Fleetwood, FY7 7HU 01/06/23 - 30/06/23 E",Electricity
30/07/2023,People and Places,Environmental Services,132B,Engie Power Limited,17/07/2023,PE151226,125.90,"1610004845322 PC, Beach Rd, Fleetwood, FY7  8PH 01/06/23 - 30/06/23 E",Electricity
30/07/2023,People and Places,Environmental Services,132B,Engie Power Limited,17/07/2023,PE151219,150.01,"1640000218200 PC, Bold St, Fleetwood, FY7  6BW 01/06/23 - 30/06/23 E",Electricity
30/07/2023,People and Places,Environmental Services,132B,Engie Power Limited,17/07/2023,PE151244,362.12,"1610004885487 PC, Preston St, Fleetwood,  FY7 6JA 01/06/23 - 30/06/23 E",Electricity
30/07/2023,People and Places,Environmental Services,132B,Engie Power Limited,17/07/2023,PE151238,249.72,"1610023251891 PC, Gubberford Lane, Scorton,  PR3 1BL 01/06/23 - 30/06/23 E",Electricity
30/07/2023,People and Places,Environmental Services,132B,Engie Power Limited,17/07/2023,PE151237,197.37,"1610023195261 PC, Smallwood Hey, Pilling,  Preston, PR3 6HJ 01/06/23 - 30/06/23 E",Electricity
30/07/2023,People and Places,Environmental Services,132B,Engie Power Limited,17/07/2023,PE151236,130.42,"1610023169146 Public Conveniences, Barton  Square, Knott End on Sea, Lancashire, FY6 0AG 01/06/23 - 30/06/23 E",Electricity
30/07/2023,People and Places,Environmental Services,132B,Engie Power Limited,17/07/2023,PE151235,175.50,"1610013371994 PC, The Weind, Great  Eccleston, PR3 0ZU 01/06/23 - 30/06/23 E",Electricity
30/07/2023,People and Places,Environmental Services,132B,Engie Power Limited,17/07/2023,PE151252,103.92,"1620001343345 PC, Thornton Centre, Victoria  Rd East, FY5 5DZ 01/06/23 - 30/06/23 A",Electricity
30/07/2023,People and Places,Cultural and Related Services,132A,Engie Power Limited,17/07/2023,PE151251,101.31,"1640000004924 Feeder Pillar, Hawthorne  Park, Hawthorne Rd, Thornton Cleveleys, FY5 5DH 01/06/23 - 30/06/23 A",Electricity
30/07/2023,People and Places,Cultural and Related Services,132A,Engie Power Limited,17/07/2023,PE151247,71.16,"1610004863776 Tourist Information Office,  The Esplanade, Fleetwood, FY7 6DL 01/06/23 - 30/06/23 A",Electricity
30/07/2023,People and Places,Planning and Development Servs,132C,Engie Power Limited,17/07/2023,PE151220,284.65,"1640000947190 Kiosk 7, Fleetwood Market,  Adelaide St, Fleetwood, FY7 6AB 01/06/23 - 30/06/23 A",Electricity
30/07/2023,People and Places,Planning and Development Servs,132C,Engie Power Limited,17/07/2023,PE151222,47.86,"1640000947215 Landlord Supply, Fleetwood  Market, Adelaide St, Fleetwood, FY7 6AB 01/06/23 - 30/06/23 A",Electricity
30/07/2023,People and Places,Planning and Development Servs,132C,Engie Power Limited,17/07/2023,PE151221,53.88,"1640000947206 Kiosk 8, Fleetwood Market,  Adelaide St, Fleetwood, FY7 6AB 01/06/23 - 30/06/23 A",Electricity
30/07/2023,People and Places,Cultural and Related Services,132A,Engie Power Limited,17/07/2023,PE151241,85.42,"1610004932427 King Georges Field,  Boradwater, Fleetwood Road, Fleetwood, Lancashire, FY7 8BD 01/06/23 -  30/06/23 E",Electricity
30/07/2023,People and Places,Cultural and Related Services,132A,Engie Power Limited,17/07/2023,PE151245,393.34,"1610004890636 Fishermans Walk, Lord St,  Fleetwood, FY7 6DU 01/06/23 - 30/06/23 E",Electricity
30/07/2023,People and Places,Cultural and Related Services,132A,Engie Power Limited,17/07/2023,PE151228,71.34,"1610004846502 Valve House, Marine Lake,  Laidleys Walk, Fleetwood, FY7 7JL 01/06/23 - 30/06/23 E",Electricity
30/07/2023,People and Places,Cultural and Related Services,132A,Engie Power Limited,17/07/2023,PE151225,393.02,"1610004863623 Pitch &amp; Putt Kiosk, Carr  Rd, The Esplanade, Fleetwood, FY7 6QE 01/06/23 - 30/06/23 E",Electricity
30/07/2023,People and Places,Cultural and Related Services,132A,Engie Power Limited,17/07/2023,PE151224,517.14,"1610004863605 Central Toilets Kiosk, The  Esplanade, Fleetwood, FY7 7BE 01/06/23 - 30/06/23 A",Electricity
30/07/2023,People and Places,Cultural and Related Services,132A,Engie Power Limited,05/07/2023,PE150566,239.07,"1640000118533  Feeder Pillar, Vicarage Rd, Poulton le Fylde, FY6 7BE 01/02/23 to 28/02/23  Act",Electricity
30/07/2023,People and Places,Environmental Services,132B,Engie Power Limited,05/07/2023,PE150580,495.36,"1610004828771  Council Depot, Chatsworth Day Centre, Chatsworth Ave, Fleetwood, FY7 8AP  01/02/23 to 28/02/23 Est",Electricity
30/07/2023,People and Places,Planning and Development Servs,132C,Engie Power Limited,05/07/2023,PE150568,235.61,"1640000947190  Kiosk 7, Fleetwood Market, Adelaide St, Fleetwood, FY7 6AB 01/02/23 to  28/02/23 Act",Electricity
30/07/2023,People and Places,Planning and Development Servs,132C,Engie Power Limited,05/07/2023,PE150571,44.65,"1640000947215  Landlord Supply, Fleetwood Market, Adelaide St, Fleetwood, FY7 6AB 01/02/23  to 28/02/23 Act",Electricity
30/07/2023,People and Places,Planning and Development Servs,132C,Engie Power Limited,05/07/2023,PE150569,52.34,"1640000947206  Kiosk 8, Fleetwood Market, Adelaide St, Fleetwood, FY7 6AB 01/02/23 to  28/02/23 Act",Electricity
30/07/2023,People and Places,Planning and Development Servs,132C,Engie Power Limited,05/07/2023,PE150561,55.64,"1640000947181  Kiosk 6, Fleetwood Market, Adelaide St, Fleetwood, FY7 6AB 01/02/23 to  28/02/23 Act",Electricity
30/07/2023,People and Places,Planning and Development Servs,132C,Engie Power Limited,05/07/2023,PE150560,58.22,"1640000947172  Kiosk 5, Fleetwood Market, Adelaide St, Fleetwood, FY7 6AB 01/02/23 to  28/02/23 Act",Electricity
30/07/2023,People and Places,Planning and Development Servs,132C,Engie Power Limited,05/07/2023,PE150559,70.90,"1640000947163  Kiosk 4, Fleetwood Market, Adelaide St, Fleetwood, FY7 6AB 01/02/23 to  28/02/23 Act",Electricity
30/07/2023,People and Places,Planning and Development Servs,132C,Engie Power Limited,05/07/2023,PE150565,62.57,"1640000947145  Kiosk 2, Fleetwood Market, Adelaie St, Fleetwood, FY7 6AB 01/02/23 to  28/02/23 Act",Electricity
30/07/2023,People and Places,Planning and Development Servs,132C,Engie Power Limited,05/07/2023,PE150564,50.33,"1640000947136  Kiosk 1, Fleetwood Market, Adelaide St, Fleetwood, FY7 6AB 01/02/23 to  28/02/23 Act",Electricity
30/07/2023,People and Places,Environmental Services,132B,Engie Power Limited,05/07/2023,PE150602,214.31,"1630000584632  PC, rear of Tesco, Rough Lea Rd, Thornton Cleveleys, FY5 1BW 01/02/23 to  28/02/23 Est",Electricity
30/07/2023,People and Places,Environmental Services,132B,Engie Power Limited,05/07/2023,PE150601,102.55,"1620001343345  PC, Thornton Centre, Victoria Rd East, FY5 5DZ 01/02/23 to 28/02/23 Act",Electricity
30/07/2023,People and Places,Environmental Services,132B,Engie Power Limited,05/07/2023,PE150604,134.28,"1630000819048  Public Conveniences, Cherestanc Square, Garstang, Lancashire, PR3 1EF  01/02/23 to 28/02/23 Est",Electricity
30/07/2023,People and Places,Environmental Services,132B,Engie Power Limited,05/07/2023,PE150603,263.35,"1630000740099  PC, Wyreside, Knott End on Sea, FY6 0AA 01/02/23 to 28/02/23 Est",Electricity
30/07/2023,People and Places,Cultural and Related Services,132A,Engie Power Limited,05/07/2023,PE150595,257.40,"1610004897385  Tennis Pavillion, Memorial Park, Fleetwood, FY7 7AE 01/02/23 to 28/02/23 Est",Electricity
30/07/2023,People and Places,Cultural and Related Services,132A,Engie Power Limited,05/07/2023,PE150598,170.57,"1610004867441  Mount Hotel, Mount Rd, Fleetwood, FY7 6RA 01/02/23 to 28/02/23 Est",Electricity
30/07/2023,People and Places,Cultural and Related Services,132A,Engie Power Limited,05/07/2023,PE150597,393.93,"1610004867432  Mount Hotel, Mount Rd, Fleetwood, FY7 6RA 01/02/23 to 28/02/23 Est",Electricity
30/07/2023,People and Places,Cultural and Related Services,132A,Engie Power Limited,05/07/2023,PE150600,92.44,"1640000004924  Feeder Pillar, Hawthorne Park, Hawthorne Rd, Thornton Cleveleys, FY5 5DH  01/02/23 to 28/02/23 Act",Electricity
30/07/2023,People and Places,Cultural and Related Services,132A,Engie Power Limited,05/07/2023,PE150596,66.42,"1610004863776  Tourist Information Office, The Esplanade, Fleetwood, FY7 6DL 01/02/23 to  28/02/23 Act",Electricity
30/07/2023,People and Places,Cultural and Related Services,132A,Engie Power Limited,05/07/2023,PE150599,201.03,"1630000841586  Garstang Tourist Info Ctr, Unit 1, Cherestanc Sq, Preston, PR3 1EF 01/02/23  to 28/02/23 Est",Electricity
30/07/2023,People and Places,Cultural and Related Services,132A,Engie Power Limited,05/07/2023,PE150592,170.46,"1610004867488  Mount Pavilion, Mount Rd, Fleetwood, FY7 6EZ 01/02/23 to 28/02/23 Est",Electricity
30/07/2023,People and Places,Cultural and Related Services,132A,Engie Power Limited,05/07/2023,PE150577,66.62,"1610004846502  Valve House, Marine Lake, Laidleys Walk, Fleetwood, FY7 7JL 01/02/23 to  28/02/23 Est",Electricity
30/07/2023,People and Places,Cultural and Related Services,132A,Engie Power Limited,05/07/2023,PE150574,470.10,"1610004863623  Pitch &amp; Putt Kiosk, Carr Rd, The Esplanade, Fleetwood, FY7 6QE 01/02/23  to 28/02/23 Est",Electricity
30/07/2023,People and Places,Cultural and Related Services,132A,Engie Power Limited,05/07/2023,PE150573,401.02,"1610004863605  Central Toilets Kiosk, The Esplanade, Fleetwood, FY7 7BE 01/02/23 to 28/02/23  Act",Electricity
30/07/2023,People and Places,Cultural and Related Services,132A,Engie Power Limited,05/07/2023,PE150572,74.63,"1610004846558  Pump Station, The Esplanade, Fleetwood, FY7 6HF 01/02/23 to 28/02/23 Act",Electricity
30/07/2023,People and Places,Cultural and Related Services,132A,Engie Power Limited,05/07/2023,PE150576,227.91,"1610004846390  Pump House, Model Yacht Pond, Laidleys Walk, Fleetwood, FY7 7JL 01/02/23 to  28/02/23 Act",Electricity
30/07/2023,People and Places,Cultural and Related Services,132A,Engie Power Limited,05/07/2023,PE150589,470.07,"1610004897400  Ladies Bowls Pavilion, Memorial Park, Fleetwood, FY7 7AE 01/02/23 to 28/02/23  Est",Electricity
30/07/2023,People and Places,Cultural and Related Services,132A,Engie Power Limited,05/07/2023,PE150590,93.08,"1610004932427  King Georges Field, Broadwater, Fleetwood Road, Fleetwood, Lancashire, FY7  8BD 01/02/23 to 28/02/23 Est",Electricity
30/07/2023,People and Places,Cultural and Related Services,132A,Engie Power Limited,05/07/2023,PE150583,98.51,"1610004775074  The Windmill, Fleetwood Rd North, Thornton Cleveleys, FY5 4BP 01/02/23 to  28/02/23 Act",Electricity
30/07/2023,People and Places,Cultural and Related Services,132A,Engie Power Limited,05/07/2023,PE150579,105.23,"1610004775083  The Windmill, Fleetwood Road North, Thornton Cleveleys, FY5 4BP 01/02/23 to  28/02/23 Est",Electricity
30/07/2023,People and Places,Environmental Services,132B,Engie Power Limited,05/07/2023,PE150584,194.22,"1610013371994  PC, The Weind, Great Eccleston, PR3 0ZU 01/02/23 to 28/02/23 Est",Electricity
30/07/2023,People and Places,Environmental Services,132B,Engie Power Limited,05/07/2023,PE150578,211.51,"1610004846520  Boating Lake, Laidleys Walk, Fleetwood, FY7 7HU 01/02/23 to 28/02/23 Est",Electricity
30/07/2023,People and Places,Environmental Services,132B,Engie Power Limited,05/07/2023,PE150587,285.12,"1610023251891  PC, Gubberford Lane, Scorton, PR3 1BL 01/02/23 to 28/02/23 Est",Electricity
30/07/2023,People and Places,Environmental Services,132B,Engie Power Limited,05/07/2023,PE150586,221.01,"1610023195261  PC, Smallwood Hey, Pilling, Preston, PR3 6HJ 01/02/23 to 28/02/23 Est",Electricity
30/07/2023,People and Places,Environmental Services,132B,Engie Power Limited,05/07/2023,PE150585,142.61,"1610023169146  Public Conveniences, Barton Square, Knott End on Sea, Lancashire, FY6 0AG  01/02/23 to 28/02/23 Est",Electricity
30/07/2023,People and Places,Environmental Services,132B,Engie Power Limited,05/07/2023,PE150562,127.85,"1640000258365  PC, River Road, Thornton Cleveleys, FY5 5LR 01/02/23 to 28/02/23 Est",Electricity
30/07/2023,People and Places,Environmental Services,132B,Engie Power Limited,05/07/2023,PE150575,133.46,"1610004845322  PC, Beach Rd, Fleetwood, FY7 8PH 01/02/23 to 28/02/23 Est",Electricity
30/07/2023,People and Places,Environmental Services,132B,Engie Power Limited,05/07/2023,PE150567,168.77,"1640000218200  PC, Bold St, Fleetwood, FY7 6BW 01/02/23 to 28/02/23 Est",Electricity
30/07/2023,People and Places,Environmental Services,132B,Engie Power Limited,05/07/2023,PE150593,431.35,"1610004885487  PC, Preston St, Fleetwood, FY7 6JA 01/02/23 to 28/02/23 Est",Electricity
30/07/2023,People and Places,Cultural and Related Services,132A,Engie Power Limited,05/07/2023,PE150588,157.38,"1610004897394  Bowls House, Memorial Park, Fleetwood, FY7 7AE 01/02/23 to 28/02/23 Act",Electricity
30/07/2023,People and Places,Cultural and Related Services,132A,Engie Power Limited,05/07/2023,PE150563,81.92,"1640000400837  PC, River Road, Thornton Cleveleys, FY5 5LR 01/02/23 to 28/02/23 Est",Electricity
30/07/2023,People and Places,Environmental Services,132B,Engie Power Limited,05/07/2023,PE150591,216.50,"1610004933625  Springfield Pumping Station 17, Fleeetwood Road, Fleetwood, Lancashire, FY7  8TW 01/02/23 to 28/02/23 Est",Electricity
30/07/2023,People and Places,Environmental Services,132B,Engie Power Limited,05/07/2023,PE150581,427.31,"1610004845304  Fleetwood Corp Cemetery, Beach Rd, Fleetwood, FY7 8PH 01/02/23 to 28/02/23  Act",Electricity
30/07/2023,People and Places,Planning and Development Servs,132C,Engie Power Limited,05/07/2023,PE150558,84.78,"1640000947154  Kiosk 3, Fleetwood Market, Adelaide St, Fleetwood, FY7 6AB 01/02/23 to  28/02/23 Est",Electricity
30/07/2023,People and Places,Environmental Services,132B,Engie Power Limited,05/07/2023,PE150582,82.05,"1610004845313  Fleetwood Corp Cemetery, Beach Rd, Fleetwood, FY7 8PH 01/02/23 to 28/02/23  Est",Electricity
30/07/2023,People and Places,Environmental Services,132B,Engie Power Limited,17/07/2023,PE151255,126.54,"1630000819048 Public Conveniences,  Cherestanc Square, Garstang, Lancashire, PR3 1EF 01/06/23 - 30/06/23 E",Electricity
30/07/2023,People and Places,Environmental Services,132B,Engie Power Limited,17/07/2023,PE151254,231.91,"1630000740099 PC, Wyreside, Knott End on  Sea, FY6 0AA 01/06/23 - 30/06/23 E",Electricity
30/07/2023,People and Places,Environmental Services,132B,Engie Power Limited,17/07/2023,PE151253,191.87,"1630000584632 PC, rear of Tesco, Rough Lea  Rd, Thornton Cleveleys, FY5 1BW 01/06/23 - 30/06/23 E",Electricity
30/07/2023,People and Places,"Cultural, Environ and Planning",137B,WSP Real Estate and Infrastructure Limited,11/07/2023,PE150802,4560.28,"Project Management Services    Annual amount 78,000  Potentially for 4 years.",Consultants Fees (New CCR)
30/07/2023,Resources,"Cultural, Environ and Planning",137B,WSP Real Estate and Infrastructure Limited,10/07/2023,RS151030,2293.32,"Project Management Services    Annual amount 78,000  Potentially for 4 years.",Consultants Fees (New CCR)
30/07/2023,People and Places,Planning and Development Servs,132C,Maintenance Supplies Contracts Ltd,26/07/2023,PE149921,80665.20,"Re : Unit 10 Omitted ABP Ports, Fleetwood, FY7 6PP: 6-9mm Polyurethane Resin Screed System Installation  FOOD GRADE POLYURETHANE RESIN SCREED Total Area Size: 2,421m2 Product Depth: 6-9mm Colour: RAL TBC  1. Vacuum Shotblast to create a key with the concr",Responsive Building Maintenance
30/07/2023,People and Places,Support Services,135B,8x8 UK Limited,10/07/2023,PE150932,251.00,Additional Local Number,Internet and Telephone Charges
30/07/2023,People and Places,Support Services,135B,8x8 UK Limited,10/07/2023,PE150932,1117.20,SVC: X Series - X1 UK Gov,Internet and Telephone Charges
30/07/2023,People and Places,Support Services,135B,8x8 UK Limited,10/07/2023,PE150932,218.40,X Series - X2,Internet and Telephone Charges
30/07/2023,People and Places,Support Services,135B,8x8 UK Limited,10/07/2023,PE150932,580.00,X Series - X4,Internet and Telephone Charges
30/07/2023,People and Places,Cultural and Related Services,132A,Kingfisher Media Ltd,06/07/2023,PE150460,1495.00,Hardback guest book regional hospitality advertising - We are Wyre,Advertising - General
30/07/2023,Resources,Support Services,135B,GBICS.COM Ltd,18/07/2023,RS151408,1620.00,10GBASE-T SFP+ RJ45 30m Fortinet Compatible.,Comp Hardware Purchases
30/07/2023,People and Places,Cultural and Related Services,132A,Move n Smooth,07/07/2023,PE150967,1180.00,"Smoothie Bike with the branding and wheelguard option, the total;New Bike: 995Wheelguard and branding: 100Shipping: 85���������-Total: 1,180",Special Events
30/07/2023,People and Places,Highways,133B,T-Fer Tree Surgeons,25/07/2023,PE151637,340.00,quotation 002 21/07/23Rowland lane ThorntonPruning of 17 highway trees340,Maintenance of Trees and Shrubs
30/07/2023,People and Places,Highways,133B,T-Fer Tree Surgeons,24/07/2023,PE151490,60.00,18/07/2023     quotation 3 highcross avenue plf 8byRemoval of dead tree and stump60,Maintenance of Trees and Shrubs
30/07/2023,People and Places,Support Services,135B,T-Fer Tree Surgeons,31/07/2023,PE151714,640.00,"21/07/21 quotation 003 Derby road, Poulton	Tree pruning and tree removal works in relation to all tree work items requested on quotation - Price	640",Special Maintenance - Trees
30/07/2023,People and Places,Environmental Services,132B,Macfarlane Packaging ltd,17/07/2023,PE151339,509.40,Visqueen wrapping PCFBL-250-1000-40001/4mx25m/1000GBlue DPM M?F SHTNG10 rolls @ 50.94 per rollQuote Gill Liddle,"Provision of Bins, Boxes and Sacks"
30/07/2023,People and Places,Cultural and Related Services,132A,The Crown Ballroom,28/07/2023,PE151693,2865.00,Iconic 01/07/23 ticket sales,Refund of Ticket Sales to Ext Promoters
30/07/2023,People and Places,"Cultural, Environ and Planning",137B,F PARKINSON LTD,07/07/2023,PE150965,2116.29,Fleetwood Market Contract.  HSHAZ (Historic England) Work Elements (2023/24),Contract (New CCR)
30/07/2023,People and Places,"Cultural, Environ and Planning",137B,F PARKINSON LTD,07/07/2023,PE150964,23494.69,Fleetwood Market.  PSDS Works Contribution,Contract (New CCR)
30/07/2023,People and Places,"Cultural, Environ and Planning",137B,F PARKINSON LTD,07/07/2023,PE150963,43431.98,Fleetwood Market Contract Works 2023/24,Contract (New CCR)
30/07/2023,People and Places,Support Services,135B,GARRY CARR BUILDING SERVICES LTD,10/07/2023,PE150706,591.00,Civic Ventre: Room 156a - decorate and remove carpet and gripper rods,Responsive Building Maintenance
30/07/2023,People and Places,Cultural and Related Services,132A,GARRY CARR BUILDING SERVICES LTD,10/07/2023,PE150696,167.00,"Boat Store, Marine Lake: remove loose concrete to ceiling, clean and paint.  Fill cracks to edge of roof and week jkill",Responsive Building Maintenance
30/07/2023,People and Places,Support Services,135B,GARRY CARR BUILDING SERVICES LTD,17/07/2023,PE151180,46.00,Civic Centre: re-fix nosing to stairs adjacent to room 63,Responsive Building Maintenance
30/07/2023,People and Places,Environmental Services,132B,GARRY CARR BUILDING SERVICES LTD,26/07/2023,PE151655,200.00,Grave WorksPreesall Cemetery C of E Area BPlot 2872ft 4``,Special Works
30/07/2023,People and Places,Cultural and Related Services,132A,GARRY CARR BUILDING SERVICES LTD,24/07/2023,PE151205,440.00,Garstang Road Cemetery: Pre-painting to external wall cladding.  Supply and fit heavy duty hanging wall brackets,Responsive Building Maintenance
30/07/2023,People and Places,Environmental Services,132B,GARRY CARR BUILDING SERVICES LTD,24/07/2023,PE151203,2900.00,Garstang Road Cemetery: External paint of the chapel,Responsive Building Maintenance
30/07/2023,People and Places,Cultural and Related Services,132A,GARRY CARR BUILDING SERVICES LTD,24/07/2023,PE151285,745.00,"Public clock, Victoria Rd, Cleveleys: Prepare, prime and apply 2 coats rust inhibiting gloss",Clock Maintenance - Responsive
30/07/2023,People and Places,Cultural and Related Services,132A,GARRY CARR BUILDING SERVICES LTD,24/07/2023,PE151204,1710.00,"Public clock Victoria Road, Cleveleys: Repair/replace brickwork to large planter surrounded to rotary clock and build brick chamber for access to electrics",Responsive Building Maintenance
30/07/2023,People and Places,Cultural and Related Services,132A,GARRY CARR BUILDING SERVICES LTD,14/07/2023,PE151178,100.00,Marsh Mill: turning of sails 11/06/23,Special Events
30/07/2023,People and Places,Cultural and Related Services,132A,GARRY CARR BUILDING SERVICES LTD,17/07/2023,PE151286,140.00,"Public Clock, Victoria Rd, Cleveleys: Excavate ground at base of clock for electrician and brick layer, reinstate on completion, barrier of the planter whilst work is being carried out",Clock Maintenance - Responsive
30/07/2023,People and Places,Cultural and Related Services,132A,GARRY CARR BUILDING SERVICES LTD,24/07/2023,PE151118,1204.00,"Splash pad, Fleetwood: Clean up prior to opening",Responsive Building Maintenance
30/07/2023,People and Places,Cultural and Related Services,132A,GARRY CARR BUILDING SERVICES LTD,24/07/2023,PE151202,180.00,Occupation Rd Allotments: Empty contents of shed and store items in garage at Derby Road,General and Electrical Repairs - Non-Bui
30/07/2023,People and Places,Support Services,135B,GARRY CARR BUILDING SERVICES LTD,19/07/2023,PE151201,586.00,"Civic Centre Room 156A: Prepare sub floor, screed and fit carpet tiles.  Fit boarding to skirting board",Responsive Building Maintenance
30/07/2023,People and Places,Support Services,135B,GARRY CARR BUILDING SERVICES LTD,19/07/2023,PE151175,4220.00,"Members Lounge, Civic Centre: flooring refurbishment works. remove old carpet, underlay and gripper rods. Sand floor and apply 3 coats of sports coat diamond lacquer",Purchase Furniture
30/07/2023,People and Places,Support Services,135B,GARRY CARR BUILDING SERVICES LTD,19/07/2023,PE151177,6738.00,civic Centre: Decoration and refurbishment work to member`s lounge,Purchase Furniture
30/07/2023,People and Places,Support Services,135B,GARRY CARR BUILDING SERVICES LTD,19/07/2023,PE151176,730.00,Painting of Planters @ poulton as per email from Christina Marginson,Private Contractors
30/07/2023,People and Places,"Cultural, Environ and Planning",137B,HORTICON LTD,28/07/2023,PE151715,1400.52,Preesall Playing Field - Release of retention,Contract (New CCR)
30/07/2023,People and Places,Planning and Development Servs,132C,EVOLUTION CONSTRUCTION GROUP LTD,10/07/2023,PE150805,63.89,Copse Rd Depot: please friction hinges to manager`s office window,Responsive Building Maintenance
30/07/2023,People and Places,Cultural and Related Services,132A,EVOLUTION CONSTRUCTION GROUP LTD,10/07/2023,PE150923,136.54,Marine Hall: Pigeon proofing to external shaft,Pest Control
30/07/2023,People and Places,Support Services,135B,EVOLUTION CONSTRUCTION GROUP LTD,10/07/2023,PE150810,49.10,"Street Scene, Civic Centre: remove combination lock form door and refix to room 131",Responsive Building Maintenance
30/07/2023,People and Places,Support Services,135B,EVOLUTION CONSTRUCTION GROUP LTD,10/07/2023,PE150813,24.55,Civic Centre room 27 - ease and adjust all windows,Responsive Building Maintenance
30/07/2023,People and Places,Cultural and Related Services,132A,EVOLUTION CONSTRUCTION GROUP LTD,10/07/2023,PE150814,85.93,"Riverside Room & Rangers office, River Road, Stannah: re-site TV screen and projector screen",Responsive Building Maintenance
30/07/2023,People and Places,Cultural and Related Services,132A,EVOLUTION CONSTRUCTION GROUP LTD,10/07/2023,PE150811,162.75,Cottam Hall Pavilion: Vandalism to verandah: emergency repairs to verandah floor to rear of building,Responsive Building Maintenance
30/07/2023,People and Places,Cultural and Related Services,132A,EVOLUTION CONSTRUCTION GROUP LTD,10/07/2023,PE150924,127.71,Garstang TIC at Boothe: replace kick plate to front door and clean shop front,Responsive Building Maintenance
30/07/2023,People and Places,Cultural and Related Services,132A,EVOLUTION CONSTRUCTION GROUP LTD,10/07/2023,PE150816,49.10,Mount Pavilion: Vandalism: Re-glaze one pane of glass,Responsive Building Maintenance
30/07/2023,People and Places,Cultural and Related Services,132A,EVOLUTION CONSTRUCTION GROUP LTD,10/07/2023,PE150927,49.10,Marine Hall: repairs to letterbox,Responsive Building Maintenance
30/07/2023,People and Places,Cultural and Related Services,132A,EVOLUTION CONSTRUCTION GROUP LTD,10/07/2023,PE150809,49.10,Marine Hall: investigate and rectify 2 x faults to left door to main entrance,Responsive Building Maintenance
30/07/2023,People and Places,Cultural and Related Services,132A,EVOLUTION CONSTRUCTION GROUP LTD,10/07/2023,PE150806,201.75,Thornton Little Theatre: replace window lock to upstairs dressing room. Repair door threshold into main hall. Repair stair edging corridor to backstage,Responsive Building Maintenance
30/07/2023,People and Places,Cultural and Related Services,132A,EVOLUTION CONSTRUCTION GROUP LTD,10/07/2023,PE150812,24.55,Marine Hall: Bin Store door repair,Responsive Building Maintenance
30/07/2023,People and Places,Cultural and Related Services,132A,EVOLUTION CONSTRUCTION GROUP LTD,10/07/2023,PE150926,73.65,Mount Pavilion: hand Edwardian Barometer,Responsive Building Maintenance
30/07/2023,People and Places,Cultural and Related Services,132A,EVOLUTION CONSTRUCTION GROUP LTD,10/07/2023,PE150925,194.79,"Splash Pad, YMCA Fleetwood: Decking repairs",Responsive Building Maintenance
30/07/2023,People and Places,Cultural and Related Services,132A,EVOLUTION CONSTRUCTION GROUP LTD,10/07/2023,PE150808,49.10,Cottam Hall Pavilion: Vandalism to roof 08/05 - clear all debris and report back any damaged roof tiles,Responsive Building Maintenance
30/07/2023,People and Places,Cultural and Related Services,132A,EVOLUTION CONSTRUCTION GROUP LTD,10/07/2023,PE150807,73.65,Garstang TIC at Booths: Repair/replace panic bar to rear fire door,Responsive Building Maintenance
30/07/2023,People and Places,Planning and Development Servs,132C,EVOLUTION CONSTRUCTION GROUP LTD,10/07/2023,PE150815,113.60,Fleetwood Market: Cash office lock/electric cupboard lock,Responsive Building Maintenance
30/07/2023,People and Places,Support Services,135B,EVOLUTION CONSTRUCTION GROUP LTD,10/07/2023,PE150922,125.09,Civic Centre: Investigate and rectify fault to sash windows room 075a,Responsive Building Maintenance
30/07/2023,People and Places,Parking Services,133F,FLOWBIRD SMART CITY UK LTD,31/07/2023,PE151663,60.00,Please provide 10no. C140160 Test token for CWTC machines  Delivery to   Paul Long R135 Wyre Council Civic Centre Breck Road Poulton-le-Fylde FY6 7PU,Maintenance of Tools or Equipment
30/07/2023,People and Places,Parking Services,133F,FLOWBIRD SMART CITY UK LTD,12/07/2023,PE150445,8067.25,Renew maintenance contract CUK21-994-Wyre Council for the period 30 June 2023 - 31 March 2024.  To include maintenance of 16 no CWT meters,Maintenance of Tools or Equipment
30/07/2023,People and Places,Cultural and Related Services,132A,SUPPORT IN SPORT UK LTD,12/07/2023,PE151074,6995.00,Resurface/ Remedial works to 3G pitch  To uplift and replace an area 2m x 50m of existing 3G surface with new SISTurf Xtreme 50 including sand infill. To supply and install 6 tonnes of SBR infill graunle to entire pitch including new area at Thornton Leis,Purchase of Tools or Equipment
30/07/2023,People and Places,Housing General Fund,134A,J A DICKENS LIMITED,18/07/2023,PE151380,200.00,REDACT,Minor Adaptations
30/07/2023,People and Places,Housing General Fund,134A,J A DICKENS LIMITED,18/07/2023,PE151380,241.00,REDACT,Minor Adaptations
30/07/2023,Resources,Housing General Fund,134A,J A DICKENS LIMITED,17/07/2023,RS151292,73.00,REDACT,Minor Adaptations
30/07/2023,Resources,Housing General Fund,134A,J A DICKENS LIMITED,17/07/2023,RS151292,60.00,REDACT,Minor Adaptations
30/07/2023,Resources,Housing General Fund,134A,J A DICKENS LIMITED,17/07/2023,RS151293,80.00,REDACT,Minor Adaptations
30/07/2023,Resources,Housing General Fund,134A,J A DICKENS LIMITED,17/07/2023,RS151293,74.00,REDACT,Minor Adaptations
30/07/2023,Resources,Housing General Fund,134A,J A DICKENS LIMITED,17/07/2023,RS151302,150.00,REDACT,Minor Adaptations
30/07/2023,Resources,Housing General Fund,134A,J A DICKENS LIMITED,17/07/2023,RS151302,158.00,REDACT,Minor Adaptations
30/07/2023,Resources,Housing General Fund,134A,J A DICKENS LIMITED,17/07/2023,RS151303,120.00,REDACT,Minor Adaptations
30/07/2023,Resources,Housing General Fund,134A,J A DICKENS LIMITED,17/07/2023,RS151303,188.00,REDACT,Minor Adaptations
30/07/2023,Resources,Housing General Fund,134A,J A DICKENS LIMITED,17/07/2023,RS151304,170.00,REDACT,Minor Adaptations
30/07/2023,Resources,Housing General Fund,134A,J A DICKENS LIMITED,17/07/2023,RS151304,138.00,REDACT,Minor Adaptations
30/07/2023,Resources,Housing General Fund,134A,J A DICKENS LIMITED,17/07/2023,RS151305,278.00,REDACT,Minor Adaptations
30/07/2023,Resources,Housing General Fund,134A,J A DICKENS LIMITED,17/07/2023,RS151305,184.00,REDACT,Minor Adaptations
30/07/2023,Resources,Housing General Fund,134A,J A DICKENS LIMITED,17/07/2023,RS151294,80.00,REDACT,Minor Adaptations
30/07/2023,Resources,Housing General Fund,134A,J A DICKENS LIMITED,17/07/2023,RS151294,74.00,REDACT,Minor Adaptations
30/07/2023,Resources,Housing General Fund,134A,J A DICKENS LIMITED,17/07/2023,RS151295,80.00,REDACT,Minor Adaptations
30/07/2023,Resources,Housing General Fund,134A,J A DICKENS LIMITED,17/07/2023,RS151295,74.00,REDACT,Minor Adaptations
30/07/2023,Resources,Housing General Fund,134A,J A DICKENS LIMITED,17/07/2023,RS151296,104.00,REDACT,Minor Adaptations
30/07/2023,Resources,Housing General Fund,134A,J A DICKENS LIMITED,17/07/2023,RS151296,50.00,REDACT,Minor Adaptations
30/07/2023,Resources,Housing General Fund,134A,J A DICKENS LIMITED,17/07/2023,RS151297,140.00,REDACT,Minor Adaptations
30/07/2023,Resources,Housing General Fund,134A,J A DICKENS LIMITED,17/07/2023,RS151297,147.00,REDACT,Minor Adaptations
30/07/2023,Resources,Housing General Fund,134A,J A DICKENS LIMITED,17/07/2023,RS151298,140.00,REDACT,Minor Adaptations
30/07/2023,Resources,Housing General Fund,134A,J A DICKENS LIMITED,17/07/2023,RS151298,147.00,REDACT,Minor Adaptations
30/07/2023,Resources,Housing General Fund,134A,J A DICKENS LIMITED,17/07/2023,RS151299,150.00,REDACT,Minor Adaptations
30/07/2023,Resources,Housing General Fund,134A,J A DICKENS LIMITED,17/07/2023,RS151299,158.00,REDACT,Minor Adaptations
30/07/2023,Resources,Housing General Fund,134A,J A DICKENS LIMITED,17/07/2023,RS151300,150.00,REDACT,Minor Adaptations
30/07/2023,Resources,Housing General Fund,134A,J A DICKENS LIMITED,17/07/2023,RS151300,158.00,REDACT,Minor Adaptations
30/07/2023,Resources,Housing General Fund,134A,J A DICKENS LIMITED,17/07/2023,RS151301,150.00,REDACT,Minor Adaptations
30/07/2023,Resources,Housing General Fund,134A,J A DICKENS LIMITED,17/07/2023,RS151301,158.00,REDACT,Minor Adaptations
30/07/2023,Resources,Housing General Fund,134A,J A DICKENS LIMITED,17/07/2023,RS151307,320.00,REDACT,Minor Adaptations
30/07/2023,Resources,Housing General Fund,134A,J A DICKENS LIMITED,17/07/2023,RS151306,380.00,REDACT,Minor Adaptations
30/07/2023,Resources,Housing General Fund,134A,J A DICKENS LIMITED,17/07/2023,RS151306,360.00,REDACT,Minor Adaptations
30/07/2023,Resources,Housing General Fund,134A,J A DICKENS LIMITED,17/07/2023,RS151307,400.00,REDACT,Minor Adaptations
30/07/2023,Resources,Housing General Fund,134A,J A DICKENS LIMITED,18/07/2023,RS151382,140.00,REDACT,Minor Adaptations
30/07/2023,Resources,Housing General Fund,134A,J A DICKENS LIMITED,18/07/2023,RS151382,120.00,REDACT,Minor Adaptations
30/07/2023,Resources,Housing General Fund,134A,J A DICKENS LIMITED,18/07/2023,RS151379,60.00,REDACT,Minor Adaptations
30/07/2023,Resources,Housing General Fund,134A,J A DICKENS LIMITED,18/07/2023,RS151379,94.00,REDACT,Minor Adaptations
30/07/2023,Resources,Housing General Fund,134A,J A DICKENS LIMITED,18/07/2023,RS151381,240.00,REDACT,Minor Adaptations
30/07/2023,Resources,Housing General Fund,134A,J A DICKENS LIMITED,18/07/2023,RS151381,180.00,REDACT,Minor Adaptations
30/07/2023,Resources,Housing General Fund,134A,J A DICKENS LIMITED,24/07/2023,RS151485,420.00,REDACT,Minor Adaptations
30/07/2023,Resources,Housing General Fund,134A,J A DICKENS LIMITED,24/07/2023,RS151485,340.00,REDACT,Minor Adaptations
30/07/2023,People and Places,Environmental Services,132B,Idverde Limited,11/07/2023,PE150081,13513.65,Wyre Highway Weed Control - Urban,Private Contractors
30/07/2023,People and Places,Environmental Services,132B,Idverde Limited,11/07/2023,PE150081,4504.55,Wyre Highway Weed Control - Rural,Private Contractors
